Organisation Name,Organisation Code,Effective Date,Directorate,Service (Sercop),SERCOP URI,Supplier Name,Purpose of Spend,Type,Transaction No.,Seq No.,Payment Date,Net Amount,Irrecoverable VAT,Merchant Category,P-Card Tran,Contract
Wakefield MDC,E08000036,30/06/2016,CHILDYOU,4,Children�s and Education Services,ARRIVA,Advertising,Revenue,160826,137,03/06/2016,50.00,Nil,BUS LINES,GPC,Not Yet Available
Wakefield MDC,E08000036,30/06/2016,REGENCULT,L,Cultural and Related Services,EASY ART,Advertising,Revenue,160818,1202,10/05/2016,28.32,Nil,ART DEALERS AND GALLERIES,GPC,Not Yet Available
Wakefield MDC,E08000036,30/06/2016,BUSINESS,A,Net (Surplus) / Deficit of Trading Operations,FACEBOOK,Advertising,Revenue,160830,105,17/06/2016,600.17,Nil,ADVERTISING SERVICES,GPC,Not Yet Available
Wakefield MDC,E08000036,30/06/2016,BUSINESS,A,Net (Surplus) / Deficit of Trading Operations,FACEBOOK,Advertising,Revenue,160819,393,13/05/2016,15.33,Nil,ADVERTISING SERVICES,GPC,Not Yet Available
Wakefield MDC,E08000036,30/06/2016,BUSINESS,A,Net (Surplus) / Deficit of Trading Operations,FACEBOOK,Advertising,Revenue,160819,474,13/05/2016,602.75,Nil,ADVERTISING SERVICES,GPC,Not Yet Available
Wakefield MDC,E08000036,30/06/2016,BUSINESS,A,Net (Surplus) / Deficit of Trading Operations,FACEBOOK,Advertising,Revenue,160830,403,17/06/2016,368.21,Nil,ADVERTISING SERVICES,GPC,Not Yet Available
Wakefield MDC,E08000036,30/06/2016,BUSINESS,A,Net (Surplus) / Deficit of Trading Operations,FACEBOOK,Advertising,Revenue,160815,71,22/04/2016,563.15,Nil,ADVERTISING SERVICES,GPC,Not Yet Available
Wakefield MDC,E08000036,30/06/2016,BUSINESS,A,Net (Surplus) / Deficit of Trading Operations,FACEBOOK,Advertising,Revenue,160819,137,13/05/2016,600.42,Nil,ADVERTISING SERVICES,GPC,Not Yet Available
Wakefield MDC,E08000036,30/06/2016,BUSINESS,A,Net (Surplus) / Deficit of Trading Operations,FACEBOOK,Advertising,Revenue,160818,1604,10/05/2016,10.16,Nil,ADVERTISING SERVICES,GPC,Not Yet Available
Wakefield MDC,E08000036,30/06/2016,BUSINESS,A,Net (Surplus) / Deficit of Trading Operations,FACEBOOK,Advertising,Revenue,160816,46,26/04/2016,4.81,Nil,ADVERTISING SERVICES,GPC,Not Yet Available
Wakefield MDC,E08000036,30/06/2016,BUSINESS,A,Net (Surplus) / Deficit of Trading Operations,FACEBOOK,Advertising,Revenue,160816,36,26/04/2016,40.02,Nil,ADVERTISING SERVICES,GPC,Not Yet Available
Wakefield MDC,E08000036,30/06/2016,CHILDYOU,4,Children�s and Education Services,FACEBOOK,Advertising,Revenue,160826,32,03/06/2016,14.62,Nil,ADVERTISING SERVICES,GPC,Not Yet Available
Wakefield MDC,E08000036,30/06/2016,CHILDYOU,4,Children�s and Education Services,FACEBOOK,Advertising,Revenue,160827,622,08/06/2016,137.19,Nil,ADVERTISING SERVICES,GPC,Not Yet Available
Wakefield MDC,E08000036,30/06/2016,CHILDYOU,4,Children�s and Education Services,FACEBOOK,Advertising,Revenue,160826,171,03/06/2016,37.44,Nil,ADVERTISING SERVICES,GPC,Not Yet Available
Wakefield MDC,E08000036,30/06/2016,CHILDYOU,4,Children�s and Education Services,FACEBOOK,Advertising,Revenue,160826,144,03/06/2016,166.76,Nil,ADVERTISING SERVICES,GPC,Not Yet Available
Wakefield MDC,E08000036,30/06/2016,CHILDYOU,4,Children�s and Education Services,FACEBOOK,Advertising,Revenue,160826,18,03/06/2016,16.68,Nil,ADVERTISING SERVICES,GPC,Not Yet Available
Wakefield MDC,E08000036,30/06/2016,CHILDYOU,4,Children�s and Education Services,FACEBOOK,Advertising,Revenue,160826,60,03/06/2016,33.33,Nil,ADVERTISING SERVICES,GPC,Not Yet Available
Wakefield MDC,E08000036,30/06/2016,ADULTS,6,Housing Services,NORMANTON ADVERTISING,Advertising,Revenue,160813,28,15/04/2016,41.60,Nil,QUICK COPYREPRODUCTION AND BLUEPRINTING SERVICES,GPC,Not Yet Available
Wakefield MDC,E08000036,30/06/2016,BUSINESS,A,Net (Surplus) / Deficit of Trading Operations,TESCO STORES ,Advertising,Revenue,160816,40,26/04/2016,9.45,Nil,GROCERY STORES SUPERMARKETS,GPC,Not Yet Available
Wakefield MDC,E08000036,30/06/2016,CHILDYOU,4,Children�s and Education Services,AIRPORT DIRECT TRAVEL,Assistance To Families (Section 34),Revenue,160819,113,13/05/2016,108.00,Nil,TRAVEL AGENCIES AND TOUR OPERATORS,GPC,Not Yet Available
Wakefield MDC,E08000036,30/06/2016,CHILDYOU,4,Children�s and Education Services,ARGOS LTD,Assistance To Families (Section 34),Revenue,160827,40,08/06/2016,63.94,Nil,DISCOUNT STORES,GPC,Not Yet Available
Wakefield MDC,E08000036,30/06/2016,CHILDYOU,4,Children�s and Education Services,ARGOS LTD,Assistance To Families (Section 34),Revenue,160812,8,12/04/2016,83.94,Nil,DISCOUNT STORES,GPC,Not Yet Available
Wakefield MDC,E08000036,30/06/2016,CHILDYOU,4,Children�s and Education Services,ARGOS LTD,Assistance To Families (Section 34),Revenue,160812,9,12/04/2016,244.93,Nil,DISCOUNT STORES,GPC,Not Yet Available
Wakefield MDC,E08000036,30/06/2016,CHILDYOU,4,Children�s and Education Services,ARGOS LTD,Assistance To Families (Section 34),Revenue,160826,149,03/06/2016,26.62,Nil,DISCOUNT STORES,GPC,Not Yet Available
Wakefield MDC,E08000036,30/06/2016,CHILDYOU,4,Children�s and Education Services,ARGOS LTD,Assistance To Families (Section 34),Revenue,160831,73,21/06/2016,322.45,Nil,DISCOUNT STORES,GPC,Not Yet Available
Wakefield MDC,E08000036,30/06/2016,CHILDYOU,4,Children�s and Education Services,ARRIVA,Assistance To Families (Section 34),Revenue,160817,269,29/04/2016,28.00,Nil,BUS LINES,GPC,Not Yet Available
Wakefield MDC,E08000036,30/06/2016,CHILDYOU,4,Children�s and Education Services,ARRIVA,Assistance To Families (Section 34),Revenue,160817,82,29/04/2016,68.00,Nil,BUS LINES,GPC,Not Yet Available
Wakefield MDC,E08000036,30/06/2016,CHILDYOU,4,Children�s and Education Services,ARRIVA,Assistance To Families (Section 34),Revenue,160823,436,25/05/2016,28.00,Nil,BUS LINES,GPC,Not Yet Available
Wakefield MDC,E08000036,30/06/2016,CHILDYOU,4,Children�s and Education Services,ASDA STORES,Assistance To Families (Section 34),Revenue,160831,10,21/06/2016,96.50,Nil,GROCERY STORES SUPERMARKETS,GPC,Not Yet Available
Wakefield MDC,E08000036,30/06/2016,CHILDYOU,4,Children�s and Education Services,CEDAR COURT HOTEL,Assistance To Families (Section 34),Revenue,160820,185,17/05/2016,37.50,Nil,HOTELS & ACCOMMODATION,GPC,Not Yet Available
Wakefield MDC,E08000036,30/06/2016,CHILDYOU,4,Children�s and Education Services,CEDAR COURT HOTEL,Assistance To Families (Section 34),Revenue,160820,176,17/05/2016,37.50,Nil,HOTELS & ACCOMMODATION,GPC,Not Yet Available
Wakefield MDC,E08000036,30/06/2016,CHILDYOU,4,Children�s and Education Services,CROSS COUNTRY,Assistance To Families (Section 34),Revenue,160819,1,13/05/2016,63.20,Nil,PASSENGER RAILWAYS,GPC,Not Yet Available
Wakefield MDC,E08000036,30/06/2016,CHILDYOU,4,Children�s and Education Services,FTPE WEBTIS 1,Assistance To Families (Section 34),Revenue,160834,124,01/07/2016,57.20,Nil,PASSENGER RAILWAYS,GPC,Not Yet Available
Wakefield MDC,E08000036,30/06/2016,CHILDYOU,4,Children�s and Education Services,NEWS POINT,Assistance To Families (Section 34),Revenue,160819,22,13/05/2016,18.50,Nil,NEWS DEALERS AND NEWSSTANDS,GPC,Not Yet Available
Wakefield MDC,E08000036,30/06/2016,CHILDYOU,4,Children�s and Education Services,PREMIER INN,Assistance To Families (Section 34),Revenue,160831,57,21/06/2016,98.32,Nil,HOTELS & ACCOMMODATION,GPC,Not Yet Available
Wakefield MDC,E08000036,30/06/2016,CHILDYOU,4,Children�s and Education Services,PREMIER INN,Assistance To Families (Section 34),Revenue,160831,54,21/06/2016,93.32,Nil,HOTELS & ACCOMMODATION,GPC,Not Yet Available
Wakefield MDC,E08000036,30/06/2016,CHILDYOU,4,Children�s and Education Services,PREMIER INN,Assistance To Families (Section 34),Revenue,160831,55,21/06/2016,84.98,Nil,HOTELS & ACCOMMODATION,GPC,Not Yet Available
Wakefield MDC,E08000036,30/06/2016,CHILDYOU,4,Children�s and Education Services,PREMIER INN,Assistance To Families (Section 34),Revenue,160831,308,21/06/2016,71.66,Nil,HOTELS & ACCOMMODATION,GPC,Not Yet Available
Wakefield MDC,E08000036,30/06/2016,CHILDYOU,4,Children�s and Education Services,TENPIN,Assistance To Families (Section 34),Revenue,160834,123,01/07/2016,24.00,Nil,CLUBS-CNTRYMBRSHIP(ATHLETRECSPRTSPRIVATE GOLF,GPC,Not Yet Available
Wakefield MDC,E08000036,30/06/2016,CHILDYOU,4,Children�s and Education Services,TRAINLINE,Assistance To Families (Section 34),Revenue,160827,645,08/06/2016,66.61,Nil,PASSENGER RAILWAYS,GPC,Not Yet Available
Wakefield MDC,E08000036,30/06/2016,CHILDYOU,4,Children�s and Education Services,TRAINLINE,Assistance To Families (Section 34),Revenue,160811,628,08/04/2016,145.86,Nil,PASSENGER RAILWAYS,GPC,Not Yet Available
Wakefield MDC,E08000036,30/06/2016,CHILDYOU,4,Children�s and Education Services,TRAINLINE,Assistance To Families (Section 34),Revenue,160824,341,27/05/2016,117.71,Nil,PASSENGER RAILWAYS,GPC,Not Yet Available
Wakefield MDC,E08000036,30/06/2016,CHILDYOU,4,Children�s and Education Services,TRAINLINE,Assistance To Families (Section 34),Revenue,160834,55,01/07/2016,110.06,Nil,PASSENGER RAILWAYS,GPC,Not Yet Available
Wakefield MDC,E08000036,30/06/2016,CHILDYOU,4,Children�s and Education Services,TRAINLINE,Assistance To Families (Section 34),Revenue,160820,444,17/05/2016,98.02,Nil,PASSENGER RAILWAYS,GPC,Not Yet Available
Wakefield MDC,E08000036,30/06/2016,CHILDYOU,4,Children�s and Education Services,TRAINLINE,Assistance To Families (Section 34),Revenue,160820,56,17/05/2016,96.59,Nil,PASSENGER RAILWAYS,GPC,Not Yet Available
Wakefield MDC,E08000036,30/06/2016,CHILDYOU,4,Children�s and Education Services,TRAINLINE,Assistance To Families (Section 34),Revenue,160820,97,17/05/2016,126.38,Nil,PASSENGER RAILWAYS,GPC,Not Yet Available
Wakefield MDC,E08000036,30/06/2016,CHILDYOU,4,Children�s and Education Services,TRAINLINE,Assistance To Families (Section 34),Revenue,160834,33,01/07/2016,203.59,Nil,PASSENGER RAILWAYS,GPC,Not Yet Available
Wakefield MDC,E08000036,30/06/2016,CHILDYOU,4,Children�s and Education Services,TRAINLINE,Assistance To Families (Section 34),Revenue,160811,476,08/04/2016,97.92,Nil,PASSENGER RAILWAYS,GPC,Not Yet Available
Wakefield MDC,E08000036,30/06/2016,CHILDYOU,4,Children�s and Education Services,TRAINLINE,Assistance To Families (Section 34),Revenue,160811,478,08/04/2016,155.75,Nil,PASSENGER RAILWAYS,GPC,Not Yet Available
Wakefield MDC,E08000036,30/06/2016,CHILDYOU,4,Children�s and Education Services,TRAINLINE,Assistance To Families (Section 34),Revenue,160813,126,15/04/2016,26.16,Nil,PASSENGER RAILWAYS,GPC,Not Yet Available
Wakefield MDC,E08000036,30/06/2016,CHILDYOU,4,Children�s and Education Services,TRAINLINE,Assistance To Families (Section 34),Revenue,160820,57,17/05/2016,20.15,Nil,PASSENGER RAILWAYS,GPC,Not Yet Available
Wakefield MDC,E08000036,30/06/2016,CHILDYOU,4,Children�s and Education Services,TRAINLINE,Assistance To Families (Section 34),Revenue,160811,518,08/04/2016,52.43,Nil,PASSENGER RAILWAYS,GPC,Not Yet Available
Wakefield MDC,E08000036,30/06/2016,CHILDYOU,4,Children�s and Education Services,TRAINLINE,Assistance To Families (Section 34),Revenue,160834,68,01/07/2016,63.55,Nil,PASSENGER RAILWAYS,GPC,Not Yet Available
Wakefield MDC,E08000036,30/06/2016,CHILDYOU,4,Children�s and Education Services,TRAINLINE,Assistance To Families (Section 34),Revenue,160834,110,01/07/2016,214.30,Nil,PASSENGER RAILWAYS,GPC,Not Yet Available
Wakefield MDC,E08000036,30/06/2016,CHILDYOU,4,Children�s and Education Services,TRAINLINE,Assistance To Families (Section 34),Revenue,160820,83,17/05/2016,115.67,Nil,PASSENGER RAILWAYS,GPC,Not Yet Available
Wakefield MDC,E08000036,30/06/2016,CHILDYOU,4,Children�s and Education Services,TRAINLINE,Assistance To Families (Section 34),Revenue,160831,22,21/06/2016,315.79,Nil,PASSENGER RAILWAYS,GPC,Not Yet Available
Wakefield MDC,E08000036,30/06/2016,CHILDYOU,4,Children�s and Education Services,TRAINLINE,Assistance To Families (Section 34),Revenue,160831,195,21/06/2016,295.39,Nil,PASSENGER RAILWAYS,GPC,Not Yet Available
Wakefield MDC,E08000036,30/06/2016,CHILDYOU,4,Children�s and Education Services,TRAINLINE,Assistance To Families (Section 34),Revenue,160820,169,17/05/2016,295.39,Nil,PASSENGER RAILWAYS,GPC,Not Yet Available
Wakefield MDC,E08000036,30/06/2016,CHILDYOU,4,Children�s and Education Services,TRAINLINE,Assistance To Families (Section 34),Revenue,160831,441,21/06/2016,315.79,Nil,PASSENGER RAILWAYS,GPC,Not Yet Available
Wakefield MDC,E08000036,30/06/2016,CHILDYOU,4,Children�s and Education Services,TRAINLINE,Assistance To Families (Section 34),Revenue,160831,40,21/06/2016,158.00,Nil,PASSENGER RAILWAYS,GPC,Not Yet Available
Wakefield MDC,E08000036,30/06/2016,CHILDYOU,4,Children�s and Education Services,TRAINLINE,Assistance To Families (Section 34),Revenue,160831,341,21/06/2016,53.75,Nil,PASSENGER RAILWAYS,GPC,Not Yet Available
Wakefield MDC,E08000036,30/06/2016,CHILDYOU,4,Children�s and Education Services,TRAINLINE,Assistance To Families (Section 34),Revenue,160831,231,21/06/2016,306.82,Nil,PASSENGER RAILWAYS,GPC,Not Yet Available
Wakefield MDC,E08000036,30/06/2016,CHILDYOU,4,Children�s and Education Services,VIRGIN TRAINS,Assistance To Families (Section 34),Revenue,160828,396,10/06/2016,41.50,Nil,PASSENGER RAILWAYS,GPC,Not Yet Available
Wakefield MDC,E08000036,30/06/2016,CHILDYOU,4,Children�s and Education Services,VIRGIN TRAINS,Assistance To Families (Section 34),Revenue,160818,619,10/05/2016,32.00,Nil,PASSENGER RAILWAYS,GPC,Not Yet Available
Wakefield MDC,E08000036,30/06/2016,CHILDYOU,4,Children�s and Education Services,VIRGIN TRAINS,Assistance To Families (Section 34),Revenue,160811,720,08/04/2016,110.40,Nil,PASSENGER RAILWAYS,GPC,Not Yet Available
Wakefield MDC,E08000036,30/06/2016,CHILDYOU,4,Children�s and Education Services,VIRGIN TRAINS,Assistance To Families (Section 34),Revenue,160819,562,13/05/2016,9.70,Nil,PASSENGER RAILWAYS,GPC,Not Yet Available
Wakefield MDC,E08000036,30/06/2016,CHILDYOU,4,Children�s and Education Services,VIRGIN TRAINS,Assistance To Families (Section 34),Revenue,160819,632,13/05/2016,9.70,Nil,PASSENGER RAILWAYS,GPC,Not Yet Available
Wakefield MDC,E08000036,30/06/2016,CHILDYOU,4,Children�s and Education Services,VIRGIN TRAINS,Assistance To Families (Section 34),Revenue,160827,586,08/06/2016,105.40,Nil,PASSENGER RAILWAYS,GPC,Not Yet Available
Wakefield MDC,E08000036,30/06/2016,CHILDYOU,4,Children�s and Education Services,ARGOS LTD,Birthday Allowance,Revenue,160820,121,17/05/2016,24.99,Nil,DISCOUNT STORES,GPC,Not Yet Available
Wakefield MDC,E08000036,30/06/2016,CHILDYOU,4,Children�s and Education Services,ARGOS LTD,Birthday Allowance,Revenue,160818,1024,10/05/2016,54.99,Nil,DISCOUNT STORES,GPC,Not Yet Available
Wakefield MDC,E08000036,30/06/2016,CHILDYOU,4,Children�s and Education Services,CASTLEFORD TOYTOWN,Birthday Allowance,Revenue,160827,117,08/06/2016,30.94,Nil,GAME TOY AND HOBBY SHOPS,GPC,Not Yet Available
Wakefield MDC,E08000036,30/06/2016,CHILDYOU,4,Children�s and Education Services,CEX,Birthday Allowance,Revenue,160811,273,08/04/2016,120.00,Nil,MISCELLANEOUS AND SPECIALTY RETAIL STORES,GPC,Not Yet Available
Wakefield MDC,E08000036,30/06/2016,CHILDYOU,4,Children�s and Education Services,CEX,Birthday Allowance,Revenue,160828,64,10/06/2016,62.50,Nil,MISCELLANEOUS AND SPECIALTY RETAIL STORES,GPC,Not Yet Available
Wakefield MDC,E08000036,30/06/2016,CHILDYOU,4,Children�s and Education Services,HALLMARK CARDS PLC,Birthday Allowance,Revenue,160827,116,08/06/2016,6.03,Nil,GIFT CARD NOVELTY AND SOUVENIR SHOPS,GPC,Not Yet Available
Wakefield MDC,E08000036,30/06/2016,CHILDYOU,4,Children�s and Education Services,MATALAN,Birthday Allowance,Revenue,160818,1026,10/05/2016,2.12,Nil,MEN�S AND WOMEN�S CLOTHING STORES,GPC,Not Yet Available
Wakefield MDC,E08000036,30/06/2016,CHILDYOU,4,Children�s and Education Services,MATALAN,Birthday Allowance,Revenue,160818,1027,10/05/2016,9.00,Nil,MEN�S AND WOMEN�S CLOTHING STORES,GPC,Not Yet Available
Wakefield MDC,E08000036,30/06/2016,CHILDYOU,4,Children�s and Education Services,MOTHERCARE WORLD,Birthday Allowance,Revenue,160818,751,10/05/2016,24.03,Nil,DEPARTMENT STORES,GPC,Not Yet Available
Wakefield MDC,E08000036,30/06/2016,CHILDYOU,4,Children�s and Education Services,PANDORA,Birthday Allowance,Revenue,160818,1301,10/05/2016,35.00,Nil,CLOCK JEWELRY WATCH AND SILVERWARE STORE,GPC,Not Yet Available
Wakefield MDC,E08000036,30/06/2016,CHILDYOU,4,Children�s and Education Services,T K MAXX,Birthday Allowance,Revenue,160824,178,27/05/2016,40.02,Nil,VARIETY STORES,GPC,Not Yet Available
Wakefield MDC,E08000036,30/06/2016,CHILDYOU,4,Children�s and Education Services,THATS ENTERTAINMENT,Birthday Allowance,Revenue,160811,271,08/04/2016,25.99,Nil,RECORD SHOPS,GPC,Not Yet Available
Wakefield MDC,E08000036,30/06/2016,CHILDYOU,4,Children�s and Education Services,THE PERFUME SHOP,Birthday Allowance,Revenue,160811,272,08/04/2016,24.99,Nil,COSMETIC STORES,GPC,Not Yet Available
Wakefield MDC,E08000036,30/06/2016,CHILDYOU,4,Children�s and Education Services,TOYS R US,Birthday Allowance,Revenue,160818,1022,10/05/2016,39.23,Nil,MISCELLANEOUS GENERAL MERCHANDISE,GPC,Not Yet Available
Wakefield MDC,E08000036,30/06/2016,BUSINESS,1,Central Services,AMAZON,Books & Other Publications,Revenue,160818,,10/05/2016,27.15,Nil,DIRECT MARKETING-OTHER DIRECT MARKETERS/NOT ELSEW.,GPC,Not Yet Available
Wakefield MDC,E08000036,30/06/2016,BUSINESS,6,Housing Services,AMAZON,Books & Other Publications,Revenue,160817,564,29/04/2016,25.99,Nil,DIRECT MARKETING-OTHER DIRECT MARKETERS/NOT ELSEW.,GPC,Not Yet Available
Wakefield MDC,E08000036,30/06/2016,CHILDYOU,4,Children�s and Education Services,AMAZON,Books & Other Publications,Revenue,160824,482,27/05/2016,77.60,Nil,BOOK STORES,GPC,Not Yet Available
Wakefield MDC,E08000036,30/06/2016,CHILDYOU,4,Children�s and Education Services,AMAZON,Books & Other Publications,Revenue,160820,64,17/05/2016,38.80,Nil,BOOK STORES,GPC,Not Yet Available
Wakefield MDC,E08000036,30/06/2016,CHILDYOU,4,Children�s and Education Services,AMAZON,Books & Other Publications,Revenue,160811,578,08/04/2016,36.98,Nil,DIRECT MARKETING-OTHER DIRECT MARKETERS/NOT ELSEW.,GPC,Not Yet Available
Wakefield MDC,E08000036,30/06/2016,CHILDYOU,4,Children�s and Education Services,AMAZON,Books & Other Publications,Revenue,160831,186,21/06/2016,62.90,Nil,DIRECT MARKETING-OTHER DIRECT MARKETERS/NOT ELSEW.,GPC,Not Yet Available
Wakefield MDC,E08000036,30/06/2016,CHILDYOU,4,Children�s and Education Services,AMAZON,Books & Other Publications,Revenue,160826,329,03/06/2016,19.97,Nil,DIRECT MARKETING-OTHER DIRECT MARKETERS/NOT ELSEW.,GPC,Not Yet Available
Wakefield MDC,E08000036,30/06/2016,CHILDYOU,4,Children�s and Education Services,AMAZON,Books & Other Publications,Revenue,160831,205,21/06/2016,203.61,Nil,DIRECT MARKETING-OTHER DIRECT MARKETERS/NOT ELSEW.,GPC,Not Yet Available
Wakefield MDC,E08000036,30/06/2016,CHILDYOU,4,Children�s and Education Services,AMAZON,Books & Other Publications,Revenue,160831,253,21/06/2016,71.92,Nil,MISCELLANEOUS AND SPECIALTY RETAIL STORES,GPC,Not Yet Available
Wakefield MDC,E08000036,30/06/2016,CHILDYOU,4,Children�s and Education Services,AMAZON,Books & Other Publications,Revenue,160815,547,22/04/2016,20.00,Nil,DIRECT MARKETING-OTHER DIRECT MARKETERS/NOT ELSEW.,GPC,Not Yet Available
Wakefield MDC,E08000036,30/06/2016,CHILDYOU,4,Children�s and Education Services,AMAZON,Books & Other Publications,Revenue,160815,546,22/04/2016,19.38,Nil,BOOK STORES,GPC,Not Yet Available
Wakefield MDC,E08000036,30/06/2016,CHILDYOU,4,Children�s and Education Services,AMAZON,Books & Other Publications,Revenue,160829,230,14/06/2016,54.70,Nil,DIRECT MARKETING-OTHER DIRECT MARKETERS/NOT ELSEW.,GPC,Not Yet Available
Wakefield MDC,E08000036,30/06/2016,CHILDYOU,4,Children�s and Education Services,AMAZON,Books & Other Publications,Revenue,160834,30,01/07/2016,13.28,Nil,DIRECT MARKETING-OTHER DIRECT MARKETERS/NOT ELSEW.,GPC,Not Yet Available
Wakefield MDC,E08000036,30/06/2016,CHILDYOU,4,Children�s and Education Services,AMAZON,Books & Other Publications,Revenue,160834,32,01/07/2016,51.78,Nil,DIRECT MARKETING-OTHER DIRECT MARKETERS/NOT ELSEW.,GPC,Not Yet Available
Wakefield MDC,E08000036,30/06/2016,CHILDYOU,4,Children�s and Education Services,AMAZON,Books & Other Publications,Revenue,160826,294,03/06/2016,9.55,Nil,BOOK STORES,GPC,Not Yet Available
Wakefield MDC,E08000036,30/06/2016,CHILDYOU,4,Children�s and Education Services,AMAZON,Books & Other Publications,Revenue,160825,3,31/05/2016,19.99,Nil,DIRECT MARKETING-OTHER DIRECT MARKETERS/NOT ELSEW.,GPC,Not Yet Available
Wakefield MDC,E08000036,30/06/2016,CHILDYOU,4,Children�s and Education Services,AMAZON,Books & Other Publications,Revenue,160825,23,31/05/2016,19.99,Nil,DIRECT MARKETING-OTHER DIRECT MARKETERS/NOT ELSEW.,GPC,Not Yet Available
Wakefield MDC,E08000036,30/06/2016,REGENCULT,6,Housing Services,B R E LTD,Books & Other Publications,Revenue,160833,66,28/06/2016,33.00,Nil,BOOK STORES,GPC,Not Yet Available
Wakefield MDC,E08000036,30/06/2016,BUSINESS,A,Net (Surplus) / Deficit of Trading Operations,BES LTD,Books & Other Publications,Revenue,160811,683,08/04/2016,167.00,Nil,HARDWARE STORES,GPC,Not Yet Available
Wakefield MDC,E08000036,30/06/2016,BUSINESS,A,Net (Surplus) / Deficit of Trading Operations,BES LTD,Books & Other Publications,Revenue,160811,684,08/04/2016,5.00,Nil,HARDWARE STORES,GPC,Not Yet Available
Wakefield MDC,E08000036,30/06/2016,CHILDYOU,4,Children�s and Education Services,BOOK NETWORK INTERNATIONAL,Books & Other Publications,Revenue,160820,372,17/05/2016,49.75,Nil,BOOK STORES,GPC,Not Yet Available
Wakefield MDC,E08000036,30/06/2016,CHILDYOU,4,Children�s and Education Services,CHANGE PEOPLE,Books & Other Publications,Revenue,160833,166,28/06/2016,141.80,Nil,ORGANIZATIONS CHARITABLE AND SOCIAL SERVICES,GPC,Not Yet Available
Wakefield MDC,E08000036,30/06/2016,CHILDYOU,4,Children�s and Education Services,CIEH,Books & Other Publications,Revenue,160815,557,22/04/2016,10.34,Nil,ORGANIZATIONS MEMBERSHIP-NOT ELSEWHERE CLASSIFIED,GPC,Not Yet Available
Wakefield MDC,E08000036,30/06/2016,CHILDYOU,4,Children�s and Education Services,D C THOMSON & CO,Books & Other Publications,Revenue,160823,516,25/05/2016,792.00,Nil,NEWS DEALERS AND NEWSSTANDS,GPC,Not Yet Available
Wakefield MDC,E08000036,30/06/2016,CHILDYOU,4,Children�s and Education Services,FINDEL ED LTD,Books & Other Publications,Revenue,160815,239,22/04/2016,173.94,Nil,DIRECT MARKETING-OTHER DIRECT MARKETERS/NOT ELSEW.,GPC,Not Yet Available
Wakefield MDC,E08000036,30/06/2016,CHILDYOU,4,Children�s and Education Services,FIRST NEWS,Books & Other Publications,Revenue,160811,90,08/04/2016,57.99,Nil,NEWS DEALERS AND NEWSSTANDS,GPC,Not Yet Available
Wakefield MDC,E08000036,30/06/2016,CHILDYOU,4,Children�s and Education Services,GL ASSESMENT,Books & Other Publications,Revenue,160826,319,03/06/2016,63.00,Nil,BOOK STORES,GPC,Not Yet Available
Wakefield MDC,E08000036,30/06/2016,CHILDYOU,4,Children�s and Education Services,HIVE,Books & Other Publications,Revenue,160831,288,21/06/2016,29.08,Nil,BOOK STORES,GPC,Not Yet Available
Wakefield MDC,E08000036,30/06/2016,BUSINESS,A,Net (Surplus) / Deficit of Trading Operations,PIRONGS,Books & Other Publications,Revenue,160823,476,25/05/2016,124.55,Nil,BOOKSPERIODICALS AND NEWSPAPERS,GPC,Not Yet Available
Wakefield MDC,E08000036,30/06/2016,BUSINESS,6,Housing Services,SHELTER,Books & Other Publications,Revenue,160816,402,26/04/2016,126.00,Nil,ORGANIZATIONS CHARITABLE AND SOCIAL SERVICES,GPC,Not Yet Available
Wakefield MDC,E08000036,30/06/2016,CHILDYOU,4,Children�s and Education Services,STATIONERY OFFICE,Books & Other Publications,Revenue,160818,1130,10/05/2016,17.50,Nil,BOOK STORES,GPC,Not Yet Available
Wakefield MDC,E08000036,30/06/2016,CHILDYOU,4,Children�s and Education Services,THE WORKS,Books & Other Publications,Revenue,160831,521,21/06/2016,70.00,Nil,DISCOUNT STORES,GPC,Not Yet Available
Wakefield MDC,E08000036,30/06/2016,REGENCULT,5,Highways & Transport Services,TRANSPORT XTRA,Books & Other Publications,Revenue,160826,172,03/06/2016,130.00,Nil,BUSINESS SERVICES-NOT ELSEWHERE CLASSIFIED,GPC,Not Yet Available
Wakefield MDC,E08000036,30/06/2016,CHILDYOU,4,Children�s and Education Services,UNIQUE MAGAZINES LTD,Books & Other Publications,Revenue,160823,643,25/05/2016,31.99,Nil,NEWS DEALERS AND NEWSSTANDS,GPC,Not Yet Available
Wakefield MDC,E08000036,30/06/2016,BUSINESS,A,Net (Surplus) / Deficit of Trading Operations,WORDERY,Books & Other Publications,Revenue,160819,227,13/05/2016,80.93,Nil,BOOK STORES,GPC,Not Yet Available
Wakefield MDC,E08000036,30/06/2016,BUSINESS,A,Net (Surplus) / Deficit of Trading Operations,AAJ LOCKSMITHS ,Building Materials,Revenue,160816,463,26/04/2016,11.41,Nil,BUSINESS SERVICES-NOT ELSEWHERE CLASSIFIED,GPC,Not Yet Available
Wakefield MDC,E08000036,30/06/2016,BUSINESS,A,Net (Surplus) / Deficit of Trading Operations,AAJ LOCKSMITHS ,Building Materials,Revenue,160822,684,20/05/2016,16.25,Nil,BUSINESS SERVICES-NOT ELSEWHERE CLASSIFIED,GPC,Not Yet Available
Wakefield MDC,E08000036,30/06/2016,BUSINESS,A,Net (Surplus) / Deficit of Trading Operations,AAJ LOCKSMITHS ,Building Materials,Revenue,160822,734,20/05/2016,7.00,Nil,BUSINESS SERVICES-NOT ELSEWHERE CLASSIFIED,GPC,Not Yet Available
Wakefield MDC,E08000036,30/06/2016,BUSINESS,A,Net (Surplus) / Deficit of Trading Operations,AAJ LOCKSMITHS ,Building Materials,Revenue,160826,335,03/06/2016,7.00,Nil,BUSINESS SERVICES-NOT ELSEWHERE CLASSIFIED,GPC,Not Yet Available
Wakefield MDC,E08000036,30/06/2016,BUSINESS,A,Net (Surplus) / Deficit of Trading Operations,AAJ LOCKSMITHS ,Building Materials,Revenue,160834,191,01/07/2016,4.95,Nil,BUSINESS SERVICES-NOT ELSEWHERE CLASSIFIED,GPC,Not Yet Available
Wakefield MDC,E08000036,30/06/2016,BUSINESS,A,Net (Surplus) / Deficit of Trading Operations,ACE FILTRATION,Building Materials,Revenue,160811,459,08/04/2016,162.68,Nil,INDUSTRIAL SUPPLIES NOT ELSEWHERE CLASSIFIED,GPC,Not Yet Available
Wakefield MDC,E08000036,30/06/2016,BUSINESS,A,Net (Surplus) / Deficit of Trading Operations,AJH PUMP SUPPLY & REPAIRS,Building Materials,Revenue,160824,580,27/05/2016,650.00,Nil,ELECTRICAL PARTS AND EQUIPMENT,GPC,Not Yet Available
Wakefield MDC,E08000036,30/06/2016,BUSINESS,A,Net (Surplus) / Deficit of Trading Operations,AJH PUMP SUPPLY & REPAIRS,Building Materials,Revenue,160824,581,27/05/2016,222.00,Nil,ELECTRICAL PARTS AND EQUIPMENT,GPC,Not Yet Available
Wakefield MDC,E08000036,30/06/2016,BUSINESS,A,Net (Surplus) / Deficit of Trading Operations,AJH PUMP SUPPLY & REPAIRS,Building Materials,Revenue,160811,691,08/04/2016,154.00,Nil,ELECTRICAL PARTS AND EQUIPMENT,GPC,Not Yet Available
Wakefield MDC,E08000036,30/06/2016,BUSINESS,A,Net (Surplus) / Deficit of Trading Operations,AJH PUMP SUPPLY & REPAIRS,Building Materials,Revenue,160828,184,10/06/2016,222.00,Nil,ELECTRICAL PARTS AND EQUIPMENT,GPC,Not Yet Available
Wakefield MDC,E08000036,30/06/2016,BUSINESS,A,Net (Surplus) / Deficit of Trading Operations,AJH PUMP SUPPLY & REPAIRS,Building Materials,Revenue,160824,620,27/05/2016,222.00,Nil,ELECTRICAL PARTS AND EQUIPMENT,GPC,Not Yet Available
Wakefield MDC,E08000036,30/06/2016,BUSINESS,A,Net (Surplus) / Deficit of Trading Operations,ALLGAS (WAKEFIELD) LTD,Building Materials,Revenue,160814,23,19/04/2016,43.77,Nil,PLUMBING AND HEATING EQUIPMENT,GPC,Not Yet Available
Wakefield MDC,E08000036,30/06/2016,BUSINESS,A,Net (Surplus) / Deficit of Trading Operations,ALLGAS (WAKEFIELD) LTD,Building Materials,Revenue,160831,230,21/06/2016,70.00,Nil,PLUMBING AND HEATING EQUIPMENT,GPC,Not Yet Available
Wakefield MDC,E08000036,30/06/2016,BUSINESS,A,Net (Surplus) / Deficit of Trading Operations,ALLGAS (WAKEFIELD) LTD,Building Materials,Revenue,160814,384,19/04/2016,50.64,Nil,PLUMBING AND HEATING EQUIPMENT,GPC,Not Yet Available
Wakefield MDC,E08000036,30/06/2016,BUSINESS,A,Net (Surplus) / Deficit of Trading Operations,ALLGAS (WAKEFIELD) LTD,Building Materials,Revenue,160814,387,19/04/2016,9.81,Nil,PLUMBING AND HEATING EQUIPMENT,GPC,Not Yet Available
Wakefield MDC,E08000036,30/06/2016,BUSINESS,A,Net (Surplus) / Deficit of Trading Operations,ALLGAS (WAKEFIELD) LTD,Building Materials,Revenue,160814,362,19/04/2016,14.98,Nil,PLUMBING AND HEATING EQUIPMENT,GPC,Not Yet Available
Wakefield MDC,E08000036,30/06/2016,BUSINESS,A,Net (Surplus) / Deficit of Trading Operations,ALLGAS (WAKEFIELD) LTD,Building Materials,Revenue,160814,349,19/04/2016,-159.89,Nil,PLUMBING AND HEATING EQUIPMENT,GPC,Not Yet Available
Wakefield MDC,E08000036,30/06/2016,BUSINESS,A,Net (Surplus) / Deficit of Trading Operations,ALLGAS (WAKEFIELD) LTD,Building Materials,Revenue,160814,286,19/04/2016,166.04,Nil,PLUMBING AND HEATING EQUIPMENT,GPC,Not Yet Available
Wakefield MDC,E08000036,30/06/2016,BUSINESS,A,Net (Surplus) / Deficit of Trading Operations,ALLGAS (WAKEFIELD) LTD,Building Materials,Revenue,160814,289,19/04/2016,133.24,Nil,PLUMBING AND HEATING EQUIPMENT,GPC,Not Yet Available
Wakefield MDC,E08000036,30/06/2016,BUSINESS,A,Net (Surplus) / Deficit of Trading Operations,ALLGAS (WAKEFIELD) LTD,Building Materials,Revenue,160814,267,19/04/2016,25.65,Nil,PLUMBING AND HEATING EQUIPMENT,GPC,Not Yet Available
Wakefield MDC,E08000036,30/06/2016,BUSINESS,A,Net (Surplus) / Deficit of Trading Operations,ALLGAS (WAKEFIELD) LTD,Building Materials,Revenue,160814,268,19/04/2016,28.58,Nil,PLUMBING AND HEATING EQUIPMENT,GPC,Not Yet Available
Wakefield MDC,E08000036,30/06/2016,BUSINESS,A,Net (Surplus) / Deficit of Trading Operations,ALLGAS (WAKEFIELD) LTD,Building Materials,Revenue,160814,269,19/04/2016,97.74,Nil,PLUMBING AND HEATING EQUIPMENT,GPC,Not Yet Available
Wakefield MDC,E08000036,30/06/2016,BUSINESS,A,Net (Surplus) / Deficit of Trading Operations,ALLGAS (WAKEFIELD) LTD,Building Materials,Revenue,160818,672,10/05/2016,106.65,Nil,PLUMBING AND HEATING EQUIPMENT,GPC,Not Yet Available
Wakefield MDC,E08000036,30/06/2016,BUSINESS,A,Net (Surplus) / Deficit of Trading Operations,ALLGAS (WAKEFIELD) LTD,Building Materials,Revenue,160818,328,10/05/2016,66.57,Nil,PLUMBING AND HEATING EQUIPMENT,GPC,Not Yet Available
Wakefield MDC,E08000036,30/06/2016,BUSINESS,A,Net (Surplus) / Deficit of Trading Operations,ALLGAS (WAKEFIELD) LTD,Building Materials,Revenue,160823,497,25/05/2016,6.19,Nil,PLUMBING AND HEATING EQUIPMENT,GPC,Not Yet Available
Wakefield MDC,E08000036,30/06/2016,BUSINESS,A,Net (Surplus) / Deficit of Trading Operations,ALLGAS (WAKEFIELD) LTD,Building Materials,Revenue,160823,564,25/05/2016,31.05,Nil,PLUMBING AND HEATING EQUIPMENT,GPC,Not Yet Available
Wakefield MDC,E08000036,30/06/2016,BUSINESS,A,Net (Surplus) / Deficit of Trading Operations,ALLGAS (WAKEFIELD) LTD,Building Materials,Revenue,160823,46,25/05/2016,159.52,Nil,PLUMBING AND HEATING EQUIPMENT,GPC,Not Yet Available
Wakefield MDC,E08000036,30/06/2016,BUSINESS,A,Net (Surplus) / Deficit of Trading Operations,ALLGAS (WAKEFIELD) LTD,Building Materials,Revenue,160823,467,25/05/2016,61.98,Nil,PLUMBING AND HEATING EQUIPMENT,GPC,Not Yet Available
Wakefield MDC,E08000036,30/06/2016,BUSINESS,A,Net (Surplus) / Deficit of Trading Operations,ALLGAS (WAKEFIELD) LTD,Building Materials,Revenue,160814,93,19/04/2016,85.05,Nil,PLUMBING AND HEATING EQUIPMENT,GPC,Not Yet Available
Wakefield MDC,E08000036,30/06/2016,BUSINESS,A,Net (Surplus) / Deficit of Trading Operations,ALLGAS (WAKEFIELD) LTD,Building Materials,Revenue,160814,143,19/04/2016,6.80,Nil,PLUMBING AND HEATING EQUIPMENT,GPC,Not Yet Available
Wakefield MDC,E08000036,30/06/2016,BUSINESS,A,Net (Surplus) / Deficit of Trading Operations,ALLGAS (WAKEFIELD) LTD,Building Materials,Revenue,160824,648,27/05/2016,69.09,Nil,PLUMBING AND HEATING EQUIPMENT,GPC,Not Yet Available
Wakefield MDC,E08000036,30/06/2016,BUSINESS,A,Net (Surplus) / Deficit of Trading Operations,ALLGAS (WAKEFIELD) LTD,Building Materials,Revenue,160814,11,19/04/2016,46.51,Nil,PLUMBING AND HEATING EQUIPMENT,GPC,Not Yet Available
Wakefield MDC,E08000036,30/06/2016,BUSINESS,A,Net (Surplus) / Deficit of Trading Operations,ALLGAS (WAKEFIELD) LTD,Building Materials,Revenue,160814,152,19/04/2016,143.84,Nil,PLUMBING AND HEATING EQUIPMENT,GPC,Not Yet Available
Wakefield MDC,E08000036,30/06/2016,BUSINESS,A,Net (Surplus) / Deficit of Trading Operations,ALLGAS (WAKEFIELD) LTD,Building Materials,Revenue,160814,150,19/04/2016,208.01,Nil,PLUMBING AND HEATING EQUIPMENT,GPC,Not Yet Available
Wakefield MDC,E08000036,30/06/2016,BUSINESS,A,Net (Surplus) / Deficit of Trading Operations,ALLGAS (WAKEFIELD) LTD,Building Materials,Revenue,160814,176,19/04/2016,-407.99,Nil,PLUMBING AND HEATING EQUIPMENT,GPC,Not Yet Available
Wakefield MDC,E08000036,30/06/2016,BUSINESS,A,Net (Surplus) / Deficit of Trading Operations,ALLGAS (WAKEFIELD) LTD,Building Materials,Revenue,160814,203,19/04/2016,11.74,Nil,PLUMBING AND HEATING EQUIPMENT,GPC,Not Yet Available
Wakefield MDC,E08000036,30/06/2016,BUSINESS,A,Net (Surplus) / Deficit of Trading Operations,ALLGAS (WAKEFIELD) LTD,Building Materials,Revenue,160823,912,25/05/2016,176.90,Nil,PLUMBING AND HEATING EQUIPMENT,GPC,Not Yet Available
Wakefield MDC,E08000036,30/06/2016,BUSINESS,A,Net (Surplus) / Deficit of Trading Operations,ALLGAS (WAKEFIELD) LTD,Building Materials,Revenue,160811,453,08/04/2016,54.00,Nil,PLUMBING AND HEATING EQUIPMENT,GPC,Not Yet Available
Wakefield MDC,E08000036,30/06/2016,BUSINESS,A,Net (Surplus) / Deficit of Trading Operations,ALLGAS (WAKEFIELD) LTD,Building Materials,Revenue,160811,686,08/04/2016,65.70,Nil,PLUMBING AND HEATING EQUIPMENT,GPC,Not Yet Available
Wakefield MDC,E08000036,30/06/2016,BUSINESS,A,Net (Surplus) / Deficit of Trading Operations,ALLGAS (WAKEFIELD) LTD,Building Materials,Revenue,160811,360,08/04/2016,28.86,Nil,PLUMBING AND HEATING EQUIPMENT,GPC,Not Yet Available
Wakefield MDC,E08000036,30/06/2016,BUSINESS,A,Net (Surplus) / Deficit of Trading Operations,ALLGAS (WAKEFIELD) LTD,Building Materials,Revenue,160811,535,08/04/2016,411.40,Nil,PLUMBING AND HEATING EQUIPMENT,GPC,Not Yet Available
Wakefield MDC,E08000036,30/06/2016,BUSINESS,A,Net (Surplus) / Deficit of Trading Operations,ALLGAS (WAKEFIELD) LTD,Building Materials,Revenue,160811,537,08/04/2016,339.99,Nil,PLUMBING AND HEATING EQUIPMENT,GPC,Not Yet Available
Wakefield MDC,E08000036,30/06/2016,BUSINESS,A,Net (Surplus) / Deficit of Trading Operations,ALLGAS (WAKEFIELD) LTD,Building Materials,Revenue,160823,707,25/05/2016,313.42,Nil,PLUMBING AND HEATING EQUIPMENT,GPC,Not Yet Available
Wakefield MDC,E08000036,30/06/2016,BUSINESS,A,Net (Surplus) / Deficit of Trading Operations,ALLGAS (WAKEFIELD) LTD,Building Materials,Revenue,160828,163,10/06/2016,85.37,Nil,PLUMBING AND HEATING EQUIPMENT,GPC,Not Yet Available
Wakefield MDC,E08000036,30/06/2016,BUSINESS,A,Net (Surplus) / Deficit of Trading Operations,ALLGAS (WAKEFIELD) LTD,Building Materials,Revenue,160830,1,17/06/2016,175.95,Nil,PLUMBING AND HEATING EQUIPMENT,GPC,Not Yet Available
Wakefield MDC,E08000036,30/06/2016,BUSINESS,A,Net (Surplus) / Deficit of Trading Operations,ALLGAS (WAKEFIELD) LTD,Building Materials,Revenue,160818,323,10/05/2016,25.65,Nil,PLUMBING AND HEATING EQUIPMENT,GPC,Not Yet Available
Wakefield MDC,E08000036,30/06/2016,BUSINESS,A,Net (Surplus) / Deficit of Trading Operations,ALLGAS (WAKEFIELD) LTD,Building Materials,Revenue,160818,324,10/05/2016,156.71,Nil,PLUMBING AND HEATING EQUIPMENT,GPC,Not Yet Available
Wakefield MDC,E08000036,30/06/2016,BUSINESS,A,Net (Surplus) / Deficit of Trading Operations,ALLGAS (WAKEFIELD) LTD,Building Materials,Revenue,160818,1124,10/05/2016,63.68,Nil,PLUMBING AND HEATING EQUIPMENT,GPC,Not Yet Available
Wakefield MDC,E08000036,30/06/2016,BUSINESS,A,Net (Surplus) / Deficit of Trading Operations,ALLGAS (WAKEFIELD) LTD,Building Materials,Revenue,160818,1520,10/05/2016,35.84,Nil,PLUMBING AND HEATING EQUIPMENT,GPC,Not Yet Available
Wakefield MDC,E08000036,30/06/2016,BUSINESS,A,Net (Surplus) / Deficit of Trading Operations,ALLGAS (WAKEFIELD) LTD,Building Materials,Revenue,160824,414,27/05/2016,156.71,Nil,PLUMBING AND HEATING EQUIPMENT,GPC,Not Yet Available
Wakefield MDC,E08000036,30/06/2016,BUSINESS,A,Net (Surplus) / Deficit of Trading Operations,AMAZON,Building Materials,Revenue,160819,431,13/05/2016,27.62,Nil,BOOK STORES,GPC,Not Yet Available
Wakefield MDC,E08000036,30/06/2016,BUSINESS,A,Net (Surplus) / Deficit of Trading Operations,APPLEGREEN,Building Materials,Revenue,160834,334,01/07/2016,7.25,Nil,SERVICE STATIONS WITH OR WITHOUT ANCILLARY SERVICE,GPC,Not Yet Available
Wakefield MDC,E08000036,30/06/2016,BUSINESS,A,Net (Surplus) / Deficit of Trading Operations,ARBOLES UK LTD,Building Materials,Revenue,160811,382,08/04/2016,62.38,Nil,DENTAL/LAB/MED/OPHTHALMIC HOSP EQUIP & SUPPLIES,GPC,Not Yet Available
Wakefield MDC,E08000036,30/06/2016,BUSINESS,A,Net (Surplus) / Deficit of Trading Operations,ARBOLES UK LTD,Building Materials,Revenue,160814,395,19/04/2016,64.63,Nil,DENTAL/LAB/MED/OPHTHALMIC HOSP EQUIP & SUPPLIES,GPC,Not Yet Available
Wakefield MDC,E08000036,30/06/2016,BUSINESS,A,Net (Surplus) / Deficit of Trading Operations,ARBOLES UK LTD,Building Materials,Revenue,160831,222,21/06/2016,188.29,Nil,DENTAL/LAB/MED/OPHTHALMIC HOSP EQUIP & SUPPLIES,GPC,Not Yet Available
Wakefield MDC,E08000036,30/06/2016,BUSINESS,A,Net (Surplus) / Deficit of Trading Operations,ARCO LTD,Building Materials,Revenue,160815,562,22/04/2016,299.20,Nil,INDUSTRIAL SUPPLIES NOT ELSEWHERE CLASSIFIED,GPC,Not Yet Available
Wakefield MDC,E08000036,30/06/2016,BUSINESS,A,Net (Surplus) / Deficit of Trading Operations,B & Q,Building Materials,Revenue,160811,646,08/04/2016,24.42,Nil,BUILDING MATERIALS LUMBER STORES,GPC,Not Yet Available
Wakefield MDC,E08000036,30/06/2016,BUSINESS,A,Net (Surplus) / Deficit of Trading Operations,B & Q,Building Materials,Revenue,160824,757,27/05/2016,18.75,Nil,BUILDING MATERIALS LUMBER STORES,GPC,Not Yet Available
Wakefield MDC,E08000036,30/06/2016,BUSINESS,A,Net (Surplus) / Deficit of Trading Operations,B & Q,Building Materials,Revenue,160832,713,24/06/2016,13.33,Nil,BUILDING MATERIALS LUMBER STORES,GPC,Not Yet Available
Wakefield MDC,E08000036,30/06/2016,BUSINESS,A,Net (Surplus) / Deficit of Trading Operations,B & Q,Building Materials,Revenue,160822,686,20/05/2016,22.47,Nil,BUILDING MATERIALS LUMBER STORES,GPC,Not Yet Available
Wakefield MDC,E08000036,30/06/2016,BUSINESS,A,Net (Surplus) / Deficit of Trading Operations,B & Q,Building Materials,Revenue,160822,311,20/05/2016,8.54,Nil,BUILDING MATERIALS LUMBER STORES,GPC,Not Yet Available
Wakefield MDC,E08000036,30/06/2016,BUSINESS,A,Net (Surplus) / Deficit of Trading Operations,B & Q,Building Materials,Revenue,160822,308,20/05/2016,16.94,Nil,BUILDING MATERIALS LUMBER STORES,GPC,Not Yet Available
Wakefield MDC,E08000036,30/06/2016,BUSINESS,A,Net (Surplus) / Deficit of Trading Operations,B & Q,Building Materials,Revenue,160822,386,20/05/2016,5.62,Nil,BUILDING MATERIALS LUMBER STORES,GPC,Not Yet Available
Wakefield MDC,E08000036,30/06/2016,BUSINESS,A,Net (Surplus) / Deficit of Trading Operations,B & Q,Building Materials,Revenue,160822,389,20/05/2016,17.56,Nil,BUILDING MATERIALS LUMBER STORES,GPC,Not Yet Available
Wakefield MDC,E08000036,30/06/2016,BUSINESS,A,Net (Surplus) / Deficit of Trading Operations,B & Q,Building Materials,Revenue,160819,527,13/05/2016,6.42,Nil,BUILDING MATERIALS LUMBER STORES,GPC,Not Yet Available
Wakefield MDC,E08000036,30/06/2016,BUSINESS,A,Net (Surplus) / Deficit of Trading Operations,B & Q,Building Materials,Revenue,160834,182,01/07/2016,18.33,Nil,BUILDING MATERIALS LUMBER STORES,GPC,Not Yet Available
Wakefield MDC,E08000036,30/06/2016,BUSINESS,A,Net (Surplus) / Deficit of Trading Operations,B & Q,Building Materials,Revenue,160814,447,19/04/2016,5.83,Nil,BUILDING MATERIALS LUMBER STORES,GPC,Not Yet Available
Wakefield MDC,E08000036,30/06/2016,BUSINESS,A,Net (Surplus) / Deficit of Trading Operations,B & Q,Building Materials,Revenue,160818,1649,10/05/2016,12.11,Nil,BUILDING MATERIALS LUMBER STORES,GPC,Not Yet Available
Wakefield MDC,E08000036,30/06/2016,BUSINESS,A,Net (Surplus) / Deficit of Trading Operations,BANSON TOOL HIRE LTD,Building Materials,Revenue,160824,717,27/05/2016,52.50,Nil,HARDWARE EQUIPMENT AND SUPPLIES,GPC,Not Yet Available
Wakefield MDC,E08000036,30/06/2016,BUSINESS,A,Net (Surplus) / Deficit of Trading Operations,BMB BUILDBASE,Building Materials,Revenue,160829,176,14/06/2016,15.89,Nil,BUILDING MATERIALS LUMBER STORES,GPC,Not Yet Available
Wakefield MDC,E08000036,30/06/2016,BUSINESS,A,Net (Surplus) / Deficit of Trading Operations,BMB BUILDBASE,Building Materials,Revenue,160811,670,08/04/2016,147.16,Nil,BUILDING MATERIALS LUMBER STORES,GPC,Not Yet Available
Wakefield MDC,E08000036,30/06/2016,BUSINESS,A,Net (Surplus) / Deficit of Trading Operations,BMB BUILDBASE,Building Materials,Revenue,160815,510,22/04/2016,38.00,Nil,BUILDING MATERIALS LUMBER STORES,GPC,Not Yet Available
Wakefield MDC,E08000036,30/06/2016,BUSINESS,A,Net (Surplus) / Deficit of Trading Operations,BMB BUILDBASE,Building Materials,Revenue,160827,522,08/06/2016,14.78,Nil,BUILDING MATERIALS LUMBER STORES,GPC,Not Yet Available
Wakefield MDC,E08000036,30/06/2016,BUSINESS,A,Net (Surplus) / Deficit of Trading Operations,BMB BUILDBASE,Building Materials,Revenue,160831,488,21/06/2016,29.00,Nil,BUILDING MATERIALS LUMBER STORES,GPC,Not Yet Available
Wakefield MDC,E08000036,30/06/2016,BUSINESS,A,Net (Surplus) / Deficit of Trading Operations,BMB BUILDBASE,Building Materials,Revenue,160823,1071,25/05/2016,4.44,Nil,BUILDING MATERIALS LUMBER STORES,GPC,Not Yet Available
Wakefield MDC,E08000036,30/06/2016,BUSINESS,A,Net (Surplus) / Deficit of Trading Operations,BMB BUILDBASE,Building Materials,Revenue,160818,335,10/05/2016,4.61,Nil,BUILDING MATERIALS LUMBER STORES,GPC,Not Yet Available
Wakefield MDC,E08000036,30/06/2016,BUSINESS,A,Net (Surplus) / Deficit of Trading Operations,BMB BUILDBASE,Building Materials,Revenue,160834,578,01/07/2016,13.18,Nil,BUILDING MATERIALS LUMBER STORES,GPC,Not Yet Available
Wakefield MDC,E08000036,30/06/2016,BUSINESS,A,Net (Surplus) / Deficit of Trading Operations,BMB BUILDBASE,Building Materials,Revenue,160826,320,03/06/2016,2.00,Nil,BUILDING MATERIALS LUMBER STORES,GPC,Not Yet Available
Wakefield MDC,E08000036,30/06/2016,BUSINESS,A,Net (Surplus) / Deficit of Trading Operations,BMB BUILDBASE,Building Materials,Revenue,160834,420,01/07/2016,32.80,Nil,BUILDING MATERIALS LUMBER STORES,GPC,Not Yet Available
Wakefield MDC,E08000036,30/06/2016,BUSINESS,A,Net (Surplus) / Deficit of Trading Operations,BSS LEEDS,Building Materials,Revenue,160823,344,25/05/2016,26.96,Nil,PLUMBING AND HEATING EQUIPMENT,GPC,Not Yet Available
Wakefield MDC,E08000036,30/06/2016,BUSINESS,A,Net (Surplus) / Deficit of Trading Operations,BUILDBASE,Building Materials,Revenue,160811,582,08/04/2016,7.25,Nil,BUILDING MATERIALS LUMBER STORES,GPC,Not Yet Available
Wakefield MDC,E08000036,30/06/2016,BUSINESS,A,Net (Surplus) / Deficit of Trading Operations,BUILDBASE,Building Materials,Revenue,160824,755,27/05/2016,3.15,Nil,BUILDING MATERIALS LUMBER STORES,GPC,Not Yet Available
Wakefield MDC,E08000036,30/06/2016,BUSINESS,A,Net (Surplus) / Deficit of Trading Operations,BUILDBASE,Building Materials,Revenue,160822,432,20/05/2016,29.48,Nil,BUILDING MATERIALS LUMBER STORES,GPC,Not Yet Available
Wakefield MDC,E08000036,30/06/2016,BUSINESS,A,Net (Surplus) / Deficit of Trading Operations,BUILDBASE,Building Materials,Revenue,160822,458,20/05/2016,19.70,Nil,BUILDING MATERIALS LUMBER STORES,GPC,Not Yet Available
Wakefield MDC,E08000036,30/06/2016,BUSINESS,A,Net (Surplus) / Deficit of Trading Operations,BUILDBASE,Building Materials,Revenue,160824,732,27/05/2016,34.68,Nil,BUILDING MATERIALS LUMBER STORES,GPC,Not Yet Available
Wakefield MDC,E08000036,30/06/2016,BUSINESS,A,Net (Surplus) / Deficit of Trading Operations,BUILDBASE,Building Materials,Revenue,160826,380,03/06/2016,6.00,Nil,BUILDING MATERIALS LUMBER STORES,GPC,Not Yet Available
Wakefield MDC,E08000036,30/06/2016,BUSINESS,A,Net (Surplus) / Deficit of Trading Operations,BUILDBASE,Building Materials,Revenue,160834,203,01/07/2016,13.20,Nil,BUILDING MATERIALS LUMBER STORES,GPC,Not Yet Available
Wakefield MDC,E08000036,30/06/2016,BUSINESS,A,Net (Surplus) / Deficit of Trading Operations,BUILDBASE,Building Materials,Revenue,160814,394,19/04/2016,32.35,Nil,BUILDING MATERIALS LUMBER STORES,GPC,Not Yet Available
Wakefield MDC,E08000036,30/06/2016,BUSINESS,A,Net (Surplus) / Deficit of Trading Operations,CAB SPECIAL BATTERIES,Building Materials,Revenue,160811,148,08/04/2016,70.00,Nil,MISCELLANEOUS AND SPECIALTY RETAIL STORES,GPC,Not Yet Available
Wakefield MDC,E08000036,30/06/2016,BUSINESS,A,Net (Surplus) / Deficit of Trading Operations,CALDER SECURITY,Building Materials,Revenue,160813,519,15/04/2016,32.30,Nil,HARDWARE STORES,GPC,Not Yet Available
Wakefield MDC,E08000036,30/06/2016,BUSINESS,A,Net (Surplus) / Deficit of Trading Operations,CALDER SECURITY,Building Materials,Revenue,160830,292,17/06/2016,10.10,Nil,HARDWARE STORES,GPC,Not Yet Available
Wakefield MDC,E08000036,30/06/2016,BUSINESS,A,Net (Surplus) / Deficit of Trading Operations,CALDER SECURITY,Building Materials,Revenue,160811,647,08/04/2016,31.97,Nil,HARDWARE STORES,GPC,Not Yet Available
Wakefield MDC,E08000036,30/06/2016,BUSINESS,A,Net (Surplus) / Deficit of Trading Operations,CALDER SECURITY,Building Materials,Revenue,160813,512,15/04/2016,73.80,Nil,HARDWARE STORES,GPC,Not Yet Available
Wakefield MDC,E08000036,30/06/2016,BUSINESS,A,Net (Surplus) / Deficit of Trading Operations,CALDER SECURITY,Building Materials,Revenue,160816,399,26/04/2016,85.02,Nil,HARDWARE STORES,GPC,Not Yet Available
Wakefield MDC,E08000036,30/06/2016,BUSINESS,A,Net (Surplus) / Deficit of Trading Operations,CALDER SECURITY,Building Materials,Revenue,160822,693,20/05/2016,22.58,Nil,HARDWARE STORES,GPC,Not Yet Available
Wakefield MDC,E08000036,30/06/2016,BUSINESS,A,Net (Surplus) / Deficit of Trading Operations,CALDER SECURITY,Building Materials,Revenue,160813,520,15/04/2016,29.61,Nil,HARDWARE STORES,GPC,Not Yet Available
Wakefield MDC,E08000036,30/06/2016,BUSINESS,A,Net (Surplus) / Deficit of Trading Operations,CALDER SECURITY,Building Materials,Revenue,160818,1671,10/05/2016,5.63,Nil,HARDWARE STORES,GPC,Not Yet Available
Wakefield MDC,E08000036,30/06/2016,BUSINESS,A,Net (Surplus) / Deficit of Trading Operations,CALDER SECURITY,Building Materials,Revenue,160823,1025,25/05/2016,4.05,Nil,HARDWARE STORES,GPC,Not Yet Available
Wakefield MDC,E08000036,30/06/2016,BUSINESS,A,Net (Surplus) / Deficit of Trading Operations,CALDER SECURITY,Building Materials,Revenue,160824,731,27/05/2016,29.99,Nil,HARDWARE STORES,GPC,Not Yet Available
Wakefield MDC,E08000036,30/06/2016,BUSINESS,A,Net (Surplus) / Deficit of Trading Operations,CALDER SECURITY,Building Materials,Revenue,160811,673,08/04/2016,24.62,Nil,HARDWARE STORES,GPC,Not Yet Available
Wakefield MDC,E08000036,30/06/2016,BUSINESS,A,Net (Surplus) / Deficit of Trading Operations,CALDER SECURITY,Building Materials,Revenue,160822,732,20/05/2016,147.43,Nil,HARDWARE STORES,GPC,Not Yet Available
Wakefield MDC,E08000036,30/06/2016,BUSINESS,A,Net (Surplus) / Deficit of Trading Operations,CALDER SECURITY,Building Materials,Revenue,160834,176,01/07/2016,10.51,Nil,HARDWARE STORES,GPC,Not Yet Available
Wakefield MDC,E08000036,30/06/2016,BUSINESS,A,Net (Surplus) / Deficit of Trading Operations,CALDER SECURITY,Building Materials,Revenue,160834,378,01/07/2016,10.83,Nil,HARDWARE STORES,GPC,Not Yet Available
Wakefield MDC,E08000036,30/06/2016,BUSINESS,A,Net (Surplus) / Deficit of Trading Operations,CALDER SECURITY,Building Materials,Revenue,160834,535,01/07/2016,13.50,Nil,HARDWARE STORES,GPC,Not Yet Available
Wakefield MDC,E08000036,30/06/2016,BUSINESS,A,Net (Surplus) / Deficit of Trading Operations,CALDER SECURITY,Building Materials,Revenue,160814,450,19/04/2016,86.46,Nil,HARDWARE STORES,GPC,Not Yet Available
Wakefield MDC,E08000036,30/06/2016,BUSINESS,A,Net (Surplus) / Deficit of Trading Operations,CALDER SECURITY,Building Materials,Revenue,160826,361,03/06/2016,27.42,Nil,HARDWARE STORES,GPC,Not Yet Available
Wakefield MDC,E08000036,30/06/2016,BUSINESS,A,Net (Surplus) / Deficit of Trading Operations,CALDER SECURITY,Building Materials,Revenue,160834,519,01/07/2016,77.37,Nil,HARDWARE STORES,GPC,Not Yet Available
Wakefield MDC,E08000036,30/06/2016,BUSINESS,A,Net (Surplus) / Deficit of Trading Operations,CALDER SECURITY,Building Materials,Revenue,160822,502,20/05/2016,16.30,Nil,HARDWARE STORES,GPC,Not Yet Available
Wakefield MDC,E08000036,30/06/2016,BUSINESS,A,Net (Surplus) / Deficit of Trading Operations,CALDER SECURITY,Building Materials,Revenue,160818,1553,10/05/2016,19.85,Nil,HARDWARE STORES,GPC,Not Yet Available
Wakefield MDC,E08000036,30/06/2016,BUSINESS,A,Net (Surplus) / Deficit of Trading Operations,CALDER SECURITY,Building Materials,Revenue,160818,1554,10/05/2016,40.77,Nil,HARDWARE STORES,GPC,Not Yet Available
Wakefield MDC,E08000036,30/06/2016,BUSINESS,A,Net (Surplus) / Deficit of Trading Operations,CASTLEFORD BEARINGS LTD,Building Materials,Revenue,160811,432,08/04/2016,11.00,Nil,INDUSTRIAL SUPPLIES NOT ELSEWHERE CLASSIFIED,GPC,Not Yet Available
Wakefield MDC,E08000036,30/06/2016,BUSINESS,A,Net (Surplus) / Deficit of Trading Operations,CASTLEFORD BEARINGS LTD,Building Materials,Revenue,160814,98,19/04/2016,10.44,Nil,INDUSTRIAL SUPPLIES NOT ELSEWHERE CLASSIFIED,GPC,Not Yet Available
Wakefield MDC,E08000036,30/06/2016,BUSINESS,A,Net (Surplus) / Deficit of Trading Operations,CCF,Building Materials,Revenue,160834,659,01/07/2016,181.79,Nil,BUILDING MATERIALS LUMBER STORES,GPC,Not Yet Available
Wakefield MDC,E08000036,30/06/2016,BUSINESS,A,Net (Surplus) / Deficit of Trading Operations,CCL COMPUTERS,Building Materials,Revenue,160827,134,08/06/2016,78.12,Nil,COMPUTERS COMPUTER PERIPHERAL EQUIPMENT SOFTWARE,GPC,Not Yet Available
Wakefield MDC,E08000036,30/06/2016,BUSINESS,A,Net (Surplus) / Deficit of Trading Operations,CCL COMPUTERS,Building Materials,Revenue,160832,688,24/06/2016,53.32,Nil,COMPUTERS COMPUTER PERIPHERAL EQUIPMENT SOFTWARE,GPC,Not Yet Available
Wakefield MDC,E08000036,30/06/2016,BUSINESS,A,Net (Surplus) / Deficit of Trading Operations,CITY ELECTRICAL FACTORS,Building Materials,Revenue,160830,473,17/06/2016,18.64,Nil,BUILDING MATERIALS LUMBER STORES,GPC,Not Yet Available
Wakefield MDC,E08000036,30/06/2016,BUSINESS,A,Net (Surplus) / Deficit of Trading Operations,CITY ELECTRICAL FACTORS,Building Materials,Revenue,160834,556,01/07/2016,11.28,Nil,BUILDING MATERIALS LUMBER STORES,GPC,Not Yet Available
Wakefield MDC,E08000036,30/06/2016,BUSINESS,A,Net (Surplus) / Deficit of Trading Operations,CITY ELECTRICAL FACTORS,Building Materials,Revenue,160811,640,08/04/2016,3.64,Nil,BUILDING MATERIALS LUMBER STORES,GPC,Not Yet Available
Wakefield MDC,E08000036,30/06/2016,BUSINESS,A,Net (Surplus) / Deficit of Trading Operations,CITY PLUMBING,Building Materials,Revenue,160822,437,20/05/2016,-2.30,Nil,BUILDING MATERIALS LUMBER STORES,GPC,Not Yet Available
Wakefield MDC,E08000036,30/06/2016,BUSINESS,A,Net (Surplus) / Deficit of Trading Operations,CITY PLUMBING,Building Materials,Revenue,160822,441,20/05/2016,-21.62,Nil,BUILDING MATERIALS LUMBER STORES,GPC,Not Yet Available
Wakefield MDC,E08000036,30/06/2016,BUSINESS,A,Net (Surplus) / Deficit of Trading Operations,CITY PLUMBING,Building Materials,Revenue,160822,442,20/05/2016,384.65,Nil,BUILDING MATERIALS LUMBER STORES,GPC,Not Yet Available
Wakefield MDC,E08000036,30/06/2016,BUSINESS,A,Net (Surplus) / Deficit of Trading Operations,CITY PLUMBING,Building Materials,Revenue,160822,438,20/05/2016,13.78,Nil,BUILDING MATERIALS LUMBER STORES,GPC,Not Yet Available
Wakefield MDC,E08000036,30/06/2016,BUSINESS,A,Net (Surplus) / Deficit of Trading Operations,CITY PLUMBING,Building Materials,Revenue,160822,440,20/05/2016,-42.49,Nil,BUILDING MATERIALS LUMBER STORES,GPC,Not Yet Available
Wakefield MDC,E08000036,30/06/2016,BUSINESS,A,Net (Surplus) / Deficit of Trading Operations,CITY PLUMBING,Building Materials,Revenue,160823,761,25/05/2016,-21.64,Nil,BUILDING MATERIALS LUMBER STORES,GPC,Not Yet Available
Wakefield MDC,E08000036,30/06/2016,BUSINESS,A,Net (Surplus) / Deficit of Trading Operations,CITY PLUMBING,Building Materials,Revenue,160823,762,25/05/2016,129.86,Nil,BUILDING MATERIALS LUMBER STORES,GPC,Not Yet Available
Wakefield MDC,E08000036,30/06/2016,BUSINESS,A,Net (Surplus) / Deficit of Trading Operations,CITY PLUMBING,Building Materials,Revenue,160811,461,08/04/2016,23.53,Nil,BUILDING MATERIALS LUMBER STORES,GPC,Not Yet Available
Wakefield MDC,E08000036,30/06/2016,BUSINESS,A,Net (Surplus) / Deficit of Trading Operations,CITY PLUMBING,Building Materials,Revenue,160811,484,08/04/2016,10.30,Nil,BUILDING MATERIALS LUMBER STORES,GPC,Not Yet Available
Wakefield MDC,E08000036,30/06/2016,BUSINESS,A,Net (Surplus) / Deficit of Trading Operations,CITY PLUMBING,Building Materials,Revenue,160811,447,08/04/2016,12.91,Nil,BUILDING MATERIALS LUMBER STORES,GPC,Not Yet Available
Wakefield MDC,E08000036,30/06/2016,BUSINESS,A,Net (Surplus) / Deficit of Trading Operations,CITY PLUMBING,Building Materials,Revenue,160823,97,25/05/2016,12.04,Nil,BUILDING MATERIALS LUMBER STORES,GPC,Not Yet Available
Wakefield MDC,E08000036,30/06/2016,BUSINESS,A,Net (Surplus) / Deficit of Trading Operations,CITY PLUMBING,Building Materials,Revenue,160823,101,25/05/2016,5.42,Nil,BUILDING MATERIALS LUMBER STORES,GPC,Not Yet Available
Wakefield MDC,E08000036,30/06/2016,BUSINESS,A,Net (Surplus) / Deficit of Trading Operations,CITY PLUMBING,Building Materials,Revenue,160831,298,21/06/2016,53.16,Nil,BUILDING MATERIALS LUMBER STORES,GPC,Not Yet Available
Wakefield MDC,E08000036,30/06/2016,BUSINESS,A,Net (Surplus) / Deficit of Trading Operations,CITY PLUMBING,Building Materials,Revenue,160814,340,19/04/2016,23.57,Nil,BUILDING MATERIALS LUMBER STORES,GPC,Not Yet Available
Wakefield MDC,E08000036,30/06/2016,BUSINESS,A,Net (Surplus) / Deficit of Trading Operations,CITY PLUMBING,Building Materials,Revenue,160822,459,20/05/2016,-5.45,Nil,BUILDING MATERIALS LUMBER STORES,GPC,Not Yet Available
Wakefield MDC,E08000036,30/06/2016,BUSINESS,A,Net (Surplus) / Deficit of Trading Operations,CITY PLUMBING,Building Materials,Revenue,160822,460,20/05/2016,32.69,Nil,BUILDING MATERIALS LUMBER STORES,GPC,Not Yet Available
Wakefield MDC,E08000036,30/06/2016,BUSINESS,A,Net (Surplus) / Deficit of Trading Operations,CITY PLUMBING,Building Materials,Revenue,160811,383,08/04/2016,108.26,Nil,BUILDING MATERIALS LUMBER STORES,GPC,Not Yet Available
Wakefield MDC,E08000036,30/06/2016,BUSINESS,A,Net (Surplus) / Deficit of Trading Operations,CLAS OHLSON ,Building Materials,Revenue,160818,1612,10/05/2016,32.49,Nil,HOUSEHOLD APPLIANCE STORES,GPC,Not Yet Available
Wakefield MDC,E08000036,30/06/2016,BUSINESS,A,Net (Surplus) / Deficit of Trading Operations,COMLS,Building Materials,Revenue,160814,99,19/04/2016,339.85,Nil,SWIMMING POOLS - SALES AND SUPPLIES,GPC,Not Yet Available
Wakefield MDC,E08000036,30/06/2016,BUSINESS,A,Net (Surplus) / Deficit of Trading Operations,COMTEC DIRECT,Building Materials,Revenue,160831,140,21/06/2016,24.93,Nil,ELECTRICAL PARTS AND EQUIPMENT,GPC,Not Yet Available
Wakefield MDC,E08000036,30/06/2016,BUSINESS,A,Net (Surplus) / Deficit of Trading Operations,CONSTRUCTION MATERIALS,Building Materials,Revenue,160830,191,17/06/2016,37.27,Nil,BUILDING MATERIALS LUMBER STORES,GPC,Not Yet Available
Wakefield MDC,E08000036,30/06/2016,BUSINESS,A,Net (Surplus) / Deficit of Trading Operations,CPC,Building Materials,Revenue,160827,177,08/06/2016,14.50,Nil,ELECTRICAL PARTS AND EQUIPMENT,GPC,Not Yet Available
Wakefield MDC,E08000036,30/06/2016,BUSINESS,A,Net (Surplus) / Deficit of Trading Operations,CPC,Building Materials,Revenue,160827,608,08/06/2016,29.84,Nil,ELECTRICAL PARTS AND EQUIPMENT,GPC,Not Yet Available
Wakefield MDC,E08000036,30/06/2016,BUSINESS,A,Net (Surplus) / Deficit of Trading Operations,CPC,Building Materials,Revenue,160827,654,08/06/2016,11.43,Nil,ELECTRICAL PARTS AND EQUIPMENT,GPC,Not Yet Available
Wakefield MDC,E08000036,30/06/2016,BUSINESS,A,Net (Surplus) / Deficit of Trading Operations,CPC,Building Materials,Revenue,160811,489,08/04/2016,147.30,Nil,ELECTRICAL PARTS AND EQUIPMENT,GPC,Not Yet Available
Wakefield MDC,E08000036,30/06/2016,BUSINESS,A,Net (Surplus) / Deficit of Trading Operations,CROSSLING BANCROFT,Building Materials,Revenue,160828,329,10/06/2016,4.06,Nil,PLUMBING AND HEATING EQUIPMENT,GPC,Not Yet Available
Wakefield MDC,E08000036,30/06/2016,BUSINESS,A,Net (Surplus) / Deficit of Trading Operations,CROSSLING BANCROFT,Building Materials,Revenue,160811,435,08/04/2016,89.65,Nil,PLUMBING AND HEATING EQUIPMENT,GPC,Not Yet Available
Wakefield MDC,E08000036,30/06/2016,BUSINESS,A,Net (Surplus) / Deficit of Trading Operations,CROSSLING BANCROFT,Building Materials,Revenue,160831,559,21/06/2016,44.77,Nil,PLUMBING AND HEATING EQUIPMENT,GPC,Not Yet Available
Wakefield MDC,E08000036,30/06/2016,BUSINESS,A,Net (Surplus) / Deficit of Trading Operations,CROSSLING BANCROFT,Building Materials,Revenue,160814,154,19/04/2016,142.10,Nil,PLUMBING AND HEATING EQUIPMENT,GPC,Not Yet Available
Wakefield MDC,E08000036,30/06/2016,BUSINESS,A,Net (Surplus) / Deficit of Trading Operations,DISPLAY SENSE,Building Materials,Revenue,160817,627,29/04/2016,59.38,Nil,COMMERCIAL EQUIPMENT NOT ELSEWHERE CLASSIFIED,GPC,Not Yet Available
Wakefield MDC,E08000036,30/06/2016,BUSINESS,A,Net (Surplus) / Deficit of Trading Operations,DISPLAY SENSE,Building Materials,Revenue,160833,393,28/06/2016,113.15,Nil,COMMERCIAL EQUIPMENT NOT ELSEWHERE CLASSIFIED,GPC,Not Yet Available
Wakefield MDC,E08000036,30/06/2016,BUSINESS,A,Net (Surplus) / Deficit of Trading Operations,DISTRIBUTION ZONE,Building Materials,Revenue,160811,73,08/04/2016,386.65,Nil,ELECTRONIC SALES,GPC,Not Yet Available
Wakefield MDC,E08000036,30/06/2016,BUSINESS,A,Net (Surplus) / Deficit of Trading Operations,DIXON HALL AND CO,Building Materials,Revenue,160824,528,27/05/2016,22.84,Nil,HARDWARE EQUIPMENT AND SUPPLIES,GPC,Not Yet Available
Wakefield MDC,E08000036,30/06/2016,BUSINESS,A,Net (Surplus) / Deficit of Trading Operations,DIXON HALL AND CO,Building Materials,Revenue,160831,518,21/06/2016,70.58,Nil,HARDWARE EQUIPMENT AND SUPPLIES,GPC,Not Yet Available
Wakefield MDC,E08000036,30/06/2016,BUSINESS,A,Net (Surplus) / Deficit of Trading Operations,DIXON HALL AND CO,Building Materials,Revenue,160831,458,21/06/2016,22.00,Nil,HARDWARE EQUIPMENT AND SUPPLIES,GPC,Not Yet Available
Wakefield MDC,E08000036,30/06/2016,BUSINESS,A,Net (Surplus) / Deficit of Trading Operations,DIXON HALL AND CO,Building Materials,Revenue,160826,336,03/06/2016,2.62,Nil,HARDWARE EQUIPMENT AND SUPPLIES,GPC,Not Yet Available
Wakefield MDC,E08000036,30/06/2016,BUSINESS,A,Net (Surplus) / Deficit of Trading Operations,DIXON HALL AND CO,Building Materials,Revenue,160814,359,19/04/2016,32.13,Nil,HARDWARE EQUIPMENT AND SUPPLIES,GPC,Not Yet Available
Wakefield MDC,E08000036,30/06/2016,BUSINESS,A,Net (Surplus) / Deficit of Trading Operations,DIXON HALL AND CO,Building Materials,Revenue,160818,1556,10/05/2016,47.91,Nil,HARDWARE EQUIPMENT AND SUPPLIES,GPC,Not Yet Available
Wakefield MDC,E08000036,30/06/2016,BUSINESS,A,Net (Surplus) / Deficit of Trading Operations,DOOR CONTROLS DIRECT,Building Materials,Revenue,160831,512,21/06/2016,318.99,Nil,HARDWARE EQUIPMENT AND SUPPLIES,GPC,Not Yet Available
Wakefield MDC,E08000036,30/06/2016,BUSINESS,A,Net (Surplus) / Deficit of Trading Operations,DOOR FURNITURE DIRECT,Building Materials,Revenue,160829,180,14/06/2016,64.77,Nil,HARDWARE STORES,GPC,Not Yet Available
Wakefield MDC,E08000036,30/06/2016,BUSINESS,A,Net (Surplus) / Deficit of Trading Operations,DULUX DECORATOR CENTRE,Building Materials,Revenue,160830,294,17/06/2016,-6.30,Nil,PAINTSVARNISHES AND SUPPLIES,GPC,Not Yet Available
Wakefield MDC,E08000036,30/06/2016,BUSINESS,A,Net (Surplus) / Deficit of Trading Operations,DULUX DECORATOR CENTRE,Building Materials,Revenue,160830,295,17/06/2016,37.82,Nil,PAINTSVARNISHES AND SUPPLIES,GPC,Not Yet Available
Wakefield MDC,E08000036,30/06/2016,BUSINESS,A,Net (Surplus) / Deficit of Trading Operations,DULUX DECORATOR CENTRE,Building Materials,Revenue,160833,391,28/06/2016,-0.98,Nil,PAINTSVARNISHES AND SUPPLIES,GPC,Not Yet Available
Wakefield MDC,E08000036,30/06/2016,BUSINESS,A,Net (Surplus) / Deficit of Trading Operations,DULUX DECORATOR CENTRE,Building Materials,Revenue,160833,392,28/06/2016,5.86,Nil,PAINTSVARNISHES AND SUPPLIES,GPC,Not Yet Available
Wakefield MDC,E08000036,30/06/2016,BUSINESS,A,Net (Surplus) / Deficit of Trading Operations,DULUX DECORATOR CENTRE,Building Materials,Revenue,160824,739,27/05/2016,-10.21,Nil,PAINTSVARNISHES AND SUPPLIES,GPC,Not Yet Available
Wakefield MDC,E08000036,30/06/2016,BUSINESS,A,Net (Surplus) / Deficit of Trading Operations,DULUX DECORATOR CENTRE,Building Materials,Revenue,160824,740,27/05/2016,61.24,Nil,PAINTSVARNISHES AND SUPPLIES,GPC,Not Yet Available
Wakefield MDC,E08000036,30/06/2016,BUSINESS,A,Net (Surplus) / Deficit of Trading Operations,DULUX DECORATOR CENTRE,Building Materials,Revenue,160832,719,24/06/2016,-42.14,Nil,PAINTSVARNISHES AND SUPPLIES,GPC,Not Yet Available
Wakefield MDC,E08000036,30/06/2016,BUSINESS,A,Net (Surplus) / Deficit of Trading Operations,DULUX DECORATOR CENTRE,Building Materials,Revenue,160832,720,24/06/2016,252.86,Nil,PAINTSVARNISHES AND SUPPLIES,GPC,Not Yet Available
Wakefield MDC,E08000036,30/06/2016,BUSINESS,A,Net (Surplus) / Deficit of Trading Operations,DULUX DECORATOR CENTRE,Building Materials,Revenue,160811,576,08/04/2016,107.59,Nil,PAINTSVARNISHES AND SUPPLIES,GPC,Not Yet Available
Wakefield MDC,E08000036,30/06/2016,BUSINESS,A,Net (Surplus) / Deficit of Trading Operations,DULUX DECORATOR CENTRE,Building Materials,Revenue,160811,575,08/04/2016,-17.93,Nil,PAINTSVARNISHES AND SUPPLIES,GPC,Not Yet Available
Wakefield MDC,E08000036,30/06/2016,BUSINESS,A,Net (Surplus) / Deficit of Trading Operations,DULUX DECORATOR CENTRE,Building Materials,Revenue,160832,716,24/06/2016,-13.63,Nil,PAINTSVARNISHES AND SUPPLIES,GPC,Not Yet Available
Wakefield MDC,E08000036,30/06/2016,BUSINESS,A,Net (Surplus) / Deficit of Trading Operations,DULUX DECORATOR CENTRE,Building Materials,Revenue,160832,717,24/06/2016,81.79,Nil,PAINTSVARNISHES AND SUPPLIES,GPC,Not Yet Available
Wakefield MDC,E08000036,30/06/2016,BUSINESS,A,Net (Surplus) / Deficit of Trading Operations,DULUX DECORATOR CENTRE,Building Materials,Revenue,160832,710,24/06/2016,-12.71,Nil,PAINTSVARNISHES AND SUPPLIES,GPC,Not Yet Available
Wakefield MDC,E08000036,30/06/2016,BUSINESS,A,Net (Surplus) / Deficit of Trading Operations,DULUX DECORATOR CENTRE,Building Materials,Revenue,160832,711,24/06/2016,76.26,Nil,PAINTSVARNISHES AND SUPPLIES,GPC,Not Yet Available
Wakefield MDC,E08000036,30/06/2016,BUSINESS,A,Net (Surplus) / Deficit of Trading Operations,DULUX DECORATOR CENTRE,Building Materials,Revenue,160812,84,12/04/2016,39.59,Nil,PAINTSVARNISHES AND SUPPLIES,GPC,Not Yet Available
Wakefield MDC,E08000036,30/06/2016,BUSINESS,A,Net (Surplus) / Deficit of Trading Operations,DULUX DECORATOR CENTRE,Building Materials,Revenue,160812,85,12/04/2016,84.68,Nil,PAINTSVARNISHES AND SUPPLIES,GPC,Not Yet Available
Wakefield MDC,E08000036,30/06/2016,BUSINESS,A,Net (Surplus) / Deficit of Trading Operations,DULUX DECORATOR CENTRE,Building Materials,Revenue,160812,100,12/04/2016,-20.96,Nil,PAINTSVARNISHES AND SUPPLIES,GPC,Not Yet Available
Wakefield MDC,E08000036,30/06/2016,BUSINESS,A,Net (Surplus) / Deficit of Trading Operations,DULUX DECORATOR CENTRE,Building Materials,Revenue,160812,101,12/04/2016,125.78,Nil,PAINTSVARNISHES AND SUPPLIES,GPC,Not Yet Available
Wakefield MDC,E08000036,30/06/2016,BUSINESS,A,Net (Surplus) / Deficit of Trading Operations,DULUX DECORATOR CENTRE,Building Materials,Revenue,160823,745,25/05/2016,-20.47,Nil,PAINTSVARNISHES AND SUPPLIES,GPC,Not Yet Available
Wakefield MDC,E08000036,30/06/2016,BUSINESS,A,Net (Surplus) / Deficit of Trading Operations,DULUX DECORATOR CENTRE,Building Materials,Revenue,160823,746,25/05/2016,122.84,Nil,PAINTSVARNISHES AND SUPPLIES,GPC,Not Yet Available
Wakefield MDC,E08000036,30/06/2016,BUSINESS,A,Net (Surplus) / Deficit of Trading Operations,DULUX DECORATOR CENTRE,Building Materials,Revenue,160822,456,20/05/2016,-14.75,Nil,PAINTSVARNISHES AND SUPPLIES,GPC,Not Yet Available
Wakefield MDC,E08000036,30/06/2016,BUSINESS,A,Net (Surplus) / Deficit of Trading Operations,DULUX DECORATOR CENTRE,Building Materials,Revenue,160822,457,20/05/2016,88.49,Nil,PAINTSVARNISHES AND SUPPLIES,GPC,Not Yet Available
Wakefield MDC,E08000036,30/06/2016,BUSINESS,A,Net (Surplus) / Deficit of Trading Operations,DULUX DECORATOR CENTRE,Building Materials,Revenue,160819,550,13/05/2016,-3.71,Nil,PAINTSVARNISHES AND SUPPLIES,GPC,Not Yet Available
Wakefield MDC,E08000036,30/06/2016,BUSINESS,A,Net (Surplus) / Deficit of Trading Operations,DULUX DECORATOR CENTRE,Building Materials,Revenue,160819,551,13/05/2016,22.28,Nil,PAINTSVARNISHES AND SUPPLIES,GPC,Not Yet Available
Wakefield MDC,E08000036,30/06/2016,BUSINESS,A,Net (Surplus) / Deficit of Trading Operations,DULUX DECORATOR CENTRE,Building Materials,Revenue,160822,305,20/05/2016,-2.10,Nil,PAINTSVARNISHES AND SUPPLIES,GPC,Not Yet Available
Wakefield MDC,E08000036,30/06/2016,BUSINESS,A,Net (Surplus) / Deficit of Trading Operations,DULUX DECORATOR CENTRE,Building Materials,Revenue,160822,306,20/05/2016,12.59,Nil,PAINTSVARNISHES AND SUPPLIES,GPC,Not Yet Available
Wakefield MDC,E08000036,30/06/2016,BUSINESS,A,Net (Surplus) / Deficit of Trading Operations,DULUX DECORATOR CENTRE,Building Materials,Revenue,160813,543,15/04/2016,-3.37,Nil,PAINTSVARNISHES AND SUPPLIES,GPC,Not Yet Available
Wakefield MDC,E08000036,30/06/2016,BUSINESS,A,Net (Surplus) / Deficit of Trading Operations,DULUX DECORATOR CENTRE,Building Materials,Revenue,160813,544,15/04/2016,20.20,Nil,PAINTSVARNISHES AND SUPPLIES,GPC,Not Yet Available
Wakefield MDC,E08000036,30/06/2016,BUSINESS,A,Net (Surplus) / Deficit of Trading Operations,DULUX DECORATOR CENTRE,Building Materials,Revenue,160822,366,20/05/2016,-6.78,Nil,PAINTSVARNISHES AND SUPPLIES,GPC,Not Yet Available
Wakefield MDC,E08000036,30/06/2016,BUSINESS,A,Net (Surplus) / Deficit of Trading Operations,DULUX DECORATOR CENTRE,Building Materials,Revenue,160822,367,20/05/2016,40.68,Nil,PAINTSVARNISHES AND SUPPLIES,GPC,Not Yet Available
Wakefield MDC,E08000036,30/06/2016,BUSINESS,A,Net (Surplus) / Deficit of Trading Operations,DULUX DECORATOR CENTRE,Building Materials,Revenue,160812,83,12/04/2016,39.51,Nil,PAINTSVARNISHES AND SUPPLIES,GPC,Not Yet Available
Wakefield MDC,E08000036,30/06/2016,BUSINESS,A,Net (Surplus) / Deficit of Trading Operations,DULUX DECORATOR CENTRE,Building Materials,Revenue,160823,1068,25/05/2016,-2.10,Nil,PAINTSVARNISHES AND SUPPLIES,GPC,Not Yet Available
Wakefield MDC,E08000036,30/06/2016,BUSINESS,A,Net (Surplus) / Deficit of Trading Operations,DULUX DECORATOR CENTRE,Building Materials,Revenue,160823,1069,25/05/2016,12.59,Nil,PAINTSVARNISHES AND SUPPLIES,GPC,Not Yet Available
Wakefield MDC,E08000036,30/06/2016,BUSINESS,A,Net (Surplus) / Deficit of Trading Operations,DULUX DECORATOR CENTRE,Building Materials,Revenue,160824,758,27/05/2016,-12.87,Nil,PAINTSVARNISHES AND SUPPLIES,GPC,Not Yet Available
Wakefield MDC,E08000036,30/06/2016,BUSINESS,A,Net (Surplus) / Deficit of Trading Operations,DULUX DECORATOR CENTRE,Building Materials,Revenue,160824,759,27/05/2016,77.20,Nil,PAINTSVARNISHES AND SUPPLIES,GPC,Not Yet Available
Wakefield MDC,E08000036,30/06/2016,BUSINESS,A,Net (Surplus) / Deficit of Trading Operations,EDMUNDSON ELECTRICAL,Building Materials,Revenue,160815,558,22/04/2016,90.00,Nil,ELECTRICAL PARTS AND EQUIPMENT,GPC,Not Yet Available
Wakefield MDC,E08000036,30/06/2016,BUSINESS,A,Net (Surplus) / Deficit of Trading Operations,EDMUNDSON ELECTRICAL,Building Materials,Revenue,160817,538,29/04/2016,50.00,Nil,ELECTRICAL PARTS AND EQUIPMENT,GPC,Not Yet Available
Wakefield MDC,E08000036,30/06/2016,BUSINESS,A,Net (Surplus) / Deficit of Trading Operations,EDMUNDSON ELECTRICAL,Building Materials,Revenue,160811,385,08/04/2016,5.43,Nil,ELECTRICAL PARTS AND EQUIPMENT,GPC,Not Yet Available
Wakefield MDC,E08000036,30/06/2016,BUSINESS,A,Net (Surplus) / Deficit of Trading Operations,EDMUNDSON ELECTRICAL,Building Materials,Revenue,160815,499,22/04/2016,160.00,Nil,ELECTRICAL PARTS AND EQUIPMENT,GPC,Not Yet Available
Wakefield MDC,E08000036,30/06/2016,BUSINESS,A,Net (Surplus) / Deficit of Trading Operations,EDMUNDSON ELECTRICAL,Building Materials,Revenue,160815,500,22/04/2016,50.00,Nil,ELECTRICAL PARTS AND EQUIPMENT,GPC,Not Yet Available
Wakefield MDC,E08000036,30/06/2016,BUSINESS,A,Net (Surplus) / Deficit of Trading Operations,EDMUNDSON ELECTRICAL,Building Materials,Revenue,160818,7,10/05/2016,100.00,Nil,ELECTRICAL PARTS AND EQUIPMENT,GPC,Not Yet Available
Wakefield MDC,E08000036,30/06/2016,BUSINESS,A,Net (Surplus) / Deficit of Trading Operations,EDMUNDSON ELECTRICAL,Building Materials,Revenue,160832,826,24/06/2016,180.00,Nil,ELECTRICAL PARTS AND EQUIPMENT,GPC,Not Yet Available
Wakefield MDC,E08000036,30/06/2016,BUSINESS,A,Net (Surplus) / Deficit of Trading Operations,EDMUNDSON ELECTRICAL,Building Materials,Revenue,160813,424,15/04/2016,38.90,Nil,ELECTRICAL PARTS AND EQUIPMENT,GPC,Not Yet Available
Wakefield MDC,E08000036,30/06/2016,BUSINESS,A,Net (Surplus) / Deficit of Trading Operations,EDMUNDSON ELECTRICAL,Building Materials,Revenue,160814,397,19/04/2016,25.00,Nil,ELECTRICAL PARTS AND EQUIPMENT,GPC,Not Yet Available
Wakefield MDC,E08000036,30/06/2016,BUSINESS,A,Net (Surplus) / Deficit of Trading Operations,EDMUNDSON ELECTRICAL,Building Materials,Revenue,160811,419,08/04/2016,29.18,Nil,ELECTRICAL PARTS AND EQUIPMENT,GPC,Not Yet Available
Wakefield MDC,E08000036,30/06/2016,BUSINESS,A,Net (Surplus) / Deficit of Trading Operations,EDMUNDSON ELECTRICAL,Building Materials,Revenue,160811,454,08/04/2016,10.48,Nil,ELECTRICAL PARTS AND EQUIPMENT,GPC,Not Yet Available
Wakefield MDC,E08000036,30/06/2016,BUSINESS,A,Net (Surplus) / Deficit of Trading Operations,EDMUNDSON ELECTRICAL,Building Materials,Revenue,160811,621,08/04/2016,25.83,Nil,ELECTRICAL PARTS AND EQUIPMENT,GPC,Not Yet Available
Wakefield MDC,E08000036,30/06/2016,BUSINESS,A,Net (Surplus) / Deficit of Trading Operations,EDMUNDSON ELECTRICAL,Building Materials,Revenue,160811,622,08/04/2016,85.00,Nil,ELECTRICAL PARTS AND EQUIPMENT,GPC,Not Yet Available
Wakefield MDC,E08000036,30/06/2016,BUSINESS,A,Net (Surplus) / Deficit of Trading Operations,EDMUNDSON ELECTRICAL,Building Materials,Revenue,160814,385,19/04/2016,1.65,Nil,ELECTRICAL PARTS AND EQUIPMENT,GPC,Not Yet Available
Wakefield MDC,E08000036,30/06/2016,BUSINESS,A,Net (Surplus) / Deficit of Trading Operations,EDMUNDSON ELECTRICAL,Building Materials,Revenue,160819,576,13/05/2016,105.90,Nil,ELECTRICAL PARTS AND EQUIPMENT,GPC,Not Yet Available
Wakefield MDC,E08000036,30/06/2016,BUSINESS,A,Net (Surplus) / Deficit of Trading Operations,EDMUNDSON ELECTRICAL,Building Materials,Revenue,160813,352,15/04/2016,53.78,Nil,ELECTRICAL PARTS AND EQUIPMENT,GPC,Not Yet Available
Wakefield MDC,E08000036,30/06/2016,BUSINESS,A,Net (Surplus) / Deficit of Trading Operations,EDMUNDSON ELECTRICAL,Building Materials,Revenue,160813,429,15/04/2016,24.67,Nil,ELECTRICAL PARTS AND EQUIPMENT,GPC,Not Yet Available
Wakefield MDC,E08000036,30/06/2016,BUSINESS,A,Net (Surplus) / Deficit of Trading Operations,EDMUNDSON ELECTRICAL,Building Materials,Revenue,160826,370,03/06/2016,29.25,Nil,ELECTRICAL PARTS AND EQUIPMENT,GPC,Not Yet Available
Wakefield MDC,E08000036,30/06/2016,BUSINESS,A,Net (Surplus) / Deficit of Trading Operations,EDMUNDSON ELECTRICAL,Building Materials,Revenue,160826,397,03/06/2016,76.24,Nil,ELECTRICAL PARTS AND EQUIPMENT,GPC,Not Yet Available
Wakefield MDC,E08000036,30/06/2016,BUSINESS,A,Net (Surplus) / Deficit of Trading Operations,EDMUNDSON ELECTRICAL,Building Materials,Revenue,160823,418,25/05/2016,11.40,Nil,ELECTRICAL PARTS AND EQUIPMENT,GPC,Not Yet Available
Wakefield MDC,E08000036,30/06/2016,BUSINESS,A,Net (Surplus) / Deficit of Trading Operations,EDMUNDSON ELECTRICAL,Building Materials,Revenue,160823,416,25/05/2016,2.60,Nil,ELECTRICAL PARTS AND EQUIPMENT,GPC,Not Yet Available
Wakefield MDC,E08000036,30/06/2016,BUSINESS,A,Net (Surplus) / Deficit of Trading Operations,EDMUNDSON ELECTRICAL,Building Materials,Revenue,160822,390,20/05/2016,8.54,Nil,ELECTRICAL PARTS AND EQUIPMENT,GPC,Not Yet Available
Wakefield MDC,E08000036,30/06/2016,BUSINESS,A,Net (Surplus) / Deficit of Trading Operations,EDMUNDSON ELECTRICAL,Building Materials,Revenue,160822,348,20/05/2016,4.20,Nil,ELECTRICAL PARTS AND EQUIPMENT,GPC,Not Yet Available
Wakefield MDC,E08000036,30/06/2016,BUSINESS,A,Net (Surplus) / Deficit of Trading Operations,EDMUNDSON ELECTRICAL,Building Materials,Revenue,160834,558,01/07/2016,25.00,Nil,ELECTRICAL PARTS AND EQUIPMENT,GPC,Not Yet Available
Wakefield MDC,E08000036,30/06/2016,BUSINESS,A,Net (Surplus) / Deficit of Trading Operations,EDMUNDSON ELECTRICAL,Building Materials,Revenue,160834,568,01/07/2016,25.00,Nil,ELECTRICAL PARTS AND EQUIPMENT,GPC,Not Yet Available
Wakefield MDC,E08000036,30/06/2016,BUSINESS,A,Net (Surplus) / Deficit of Trading Operations,EDMUNDSON ELECTRICAL,Building Materials,Revenue,160822,351,20/05/2016,5.50,Nil,ELECTRICAL PARTS AND EQUIPMENT,GPC,Not Yet Available
Wakefield MDC,E08000036,30/06/2016,BUSINESS,A,Net (Surplus) / Deficit of Trading Operations,EDMUNDSON ELECTRICAL,Building Materials,Revenue,160822,501,20/05/2016,-23.31,Nil,ELECTRICAL PARTS AND EQUIPMENT,GPC,Not Yet Available
Wakefield MDC,E08000036,30/06/2016,BUSINESS,A,Net (Surplus) / Deficit of Trading Operations,EDMUNDSON ELECTRICAL,Building Materials,Revenue,160822,275,20/05/2016,23.31,Nil,ELECTRICAL PARTS AND EQUIPMENT,GPC,Not Yet Available
Wakefield MDC,E08000036,30/06/2016,BUSINESS,A,Net (Surplus) / Deficit of Trading Operations,EDMUNDSON ELECTRICAL,Building Materials,Revenue,160819,124,13/05/2016,42.35,Nil,ELECTRICAL PARTS AND EQUIPMENT,GPC,Not Yet Available
Wakefield MDC,E08000036,30/06/2016,BUSINESS,A,Net (Surplus) / Deficit of Trading Operations,EDMUNDSON ELECTRICAL,Building Materials,Revenue,160819,500,13/05/2016,33.45,Nil,ELECTRICAL PARTS AND EQUIPMENT,GPC,Not Yet Available
Wakefield MDC,E08000036,30/06/2016,BUSINESS,A,Net (Surplus) / Deficit of Trading Operations,EDMUNDSON ELECTRICAL,Building Materials,Revenue,160811,386,08/04/2016,12.50,Nil,ELECTRICAL PARTS AND EQUIPMENT,GPC,Not Yet Available
Wakefield MDC,E08000036,30/06/2016,BUSINESS,A,Net (Surplus) / Deficit of Trading Operations,EDMUNDSON ELECTRICAL,Building Materials,Revenue,160816,283,26/04/2016,83.85,Nil,ELECTRICAL PARTS AND EQUIPMENT,GPC,Not Yet Available
Wakefield MDC,E08000036,30/06/2016,BUSINESS,A,Net (Surplus) / Deficit of Trading Operations,EDMUNDSON ELECTRICAL,Building Materials,Revenue,160811,425,08/04/2016,83.81,Nil,ELECTRICAL PARTS AND EQUIPMENT,GPC,Not Yet Available
Wakefield MDC,E08000036,30/06/2016,BUSINESS,A,Net (Surplus) / Deficit of Trading Operations,EDMUNDSON ELECTRICAL,Building Materials,Revenue,160811,387,08/04/2016,69.75,Nil,ELECTRICAL PARTS AND EQUIPMENT,GPC,Not Yet Available
Wakefield MDC,E08000036,30/06/2016,BUSINESS,A,Net (Surplus) / Deficit of Trading Operations,EDMUNDSON ELECTRICAL,Building Materials,Revenue,160811,388,08/04/2016,5.35,Nil,ELECTRICAL PARTS AND EQUIPMENT,GPC,Not Yet Available
Wakefield MDC,E08000036,30/06/2016,BUSINESS,A,Net (Surplus) / Deficit of Trading Operations,EDMUNDSON ELECTRICAL,Building Materials,Revenue,160811,389,08/04/2016,3.87,Nil,ELECTRICAL PARTS AND EQUIPMENT,GPC,Not Yet Available
Wakefield MDC,E08000036,30/06/2016,BUSINESS,A,Net (Surplus) / Deficit of Trading Operations,EDMUNDSON ELECTRICAL,Building Materials,Revenue,160811,390,08/04/2016,14.89,Nil,ELECTRICAL PARTS AND EQUIPMENT,GPC,Not Yet Available
Wakefield MDC,E08000036,30/06/2016,BUSINESS,A,Net (Surplus) / Deficit of Trading Operations,EDMUNDSON ELECTRICAL,Building Materials,Revenue,160811,649,08/04/2016,157.76,Nil,ELECTRICAL PARTS AND EQUIPMENT,GPC,Not Yet Available
Wakefield MDC,E08000036,30/06/2016,BUSINESS,A,Net (Surplus) / Deficit of Trading Operations,EDMUNDSON ELECTRICAL,Building Materials,Revenue,160813,343,15/04/2016,21.92,Nil,ELECTRICAL PARTS AND EQUIPMENT,GPC,Not Yet Available
Wakefield MDC,E08000036,30/06/2016,BUSINESS,A,Net (Surplus) / Deficit of Trading Operations,EDMUNDSON ELECTRICAL,Building Materials,Revenue,160834,674,01/07/2016,25.00,Nil,ELECTRICAL PARTS AND EQUIPMENT,GPC,Not Yet Available
Wakefield MDC,E08000036,30/06/2016,BUSINESS,A,Net (Surplus) / Deficit of Trading Operations,EDMUNDSON ELECTRICAL,Building Materials,Revenue,160819,118,13/05/2016,16.16,Nil,ELECTRICAL PARTS AND EQUIPMENT,GPC,Not Yet Available
Wakefield MDC,E08000036,30/06/2016,BUSINESS,A,Net (Surplus) / Deficit of Trading Operations,EDMUNDSON ELECTRICAL,Building Materials,Revenue,160819,43,13/05/2016,1.51,Nil,ELECTRICAL PARTS AND EQUIPMENT,GPC,Not Yet Available
Wakefield MDC,E08000036,30/06/2016,BUSINESS,A,Net (Surplus) / Deficit of Trading Operations,EDMUNDSON ELECTRICAL,Building Materials,Revenue,160811,688,08/04/2016,2.25,Nil,ELECTRICAL PARTS AND EQUIPMENT,GPC,Not Yet Available
Wakefield MDC,E08000036,30/06/2016,BUSINESS,A,Net (Surplus) / Deficit of Trading Operations,EDMUNDSON ELECTRICAL,Building Materials,Revenue,160830,552,17/06/2016,30.00,Nil,ELECTRICAL PARTS AND EQUIPMENT,GPC,Not Yet Available
Wakefield MDC,E08000036,30/06/2016,BUSINESS,A,Net (Surplus) / Deficit of Trading Operations,EDMUNDSON ELECTRICAL,Building Materials,Revenue,160827,660,08/06/2016,3.70,Nil,ELECTRICAL PARTS AND EQUIPMENT,GPC,Not Yet Available
Wakefield MDC,E08000036,30/06/2016,BUSINESS,A,Net (Surplus) / Deficit of Trading Operations,EDMUNDSON ELECTRICAL,Building Materials,Revenue,160827,667,08/06/2016,30.00,Nil,ELECTRICAL PARTS AND EQUIPMENT,GPC,Not Yet Available
Wakefield MDC,E08000036,30/06/2016,BUSINESS,A,Net (Surplus) / Deficit of Trading Operations,EDMUNDSON ELECTRICAL,Building Materials,Revenue,160834,662,01/07/2016,6.38,Nil,ELECTRICAL PARTS AND EQUIPMENT,GPC,Not Yet Available
Wakefield MDC,E08000036,30/06/2016,BUSINESS,A,Net (Surplus) / Deficit of Trading Operations,EDMUNDSON ELECTRICAL,Building Materials,Revenue,160834,668,01/07/2016,76.18,Nil,ELECTRICAL PARTS AND EQUIPMENT,GPC,Not Yet Available
Wakefield MDC,E08000036,30/06/2016,BUSINESS,A,Net (Surplus) / Deficit of Trading Operations,EDMUNDSON ELECTRICAL,Building Materials,Revenue,160819,114,13/05/2016,22.52,Nil,ELECTRICAL PARTS AND EQUIPMENT,GPC,Not Yet Available
Wakefield MDC,E08000036,30/06/2016,BUSINESS,A,Net (Surplus) / Deficit of Trading Operations,EDMUNDSON ELECTRICAL,Building Materials,Revenue,160819,568,13/05/2016,57.00,Nil,ELECTRICAL PARTS AND EQUIPMENT,GPC,Not Yet Available
Wakefield MDC,E08000036,30/06/2016,BUSINESS,A,Net (Surplus) / Deficit of Trading Operations,EDMUNDSON ELECTRICAL,Building Materials,Revenue,160811,424,08/04/2016,25.00,Nil,ELECTRICAL PARTS AND EQUIPMENT,GPC,Not Yet Available
Wakefield MDC,E08000036,30/06/2016,BUSINESS,A,Net (Surplus) / Deficit of Trading Operations,EDMUNDSON ELECTRICAL,Building Materials,Revenue,160811,486,08/04/2016,64.33,Nil,ELECTRICAL PARTS AND EQUIPMENT,GPC,Not Yet Available
Wakefield MDC,E08000036,30/06/2016,BUSINESS,A,Net (Surplus) / Deficit of Trading Operations,EDMUNDSON ELECTRICAL,Building Materials,Revenue,160813,439,15/04/2016,42.35,Nil,ELECTRICAL PARTS AND EQUIPMENT,GPC,Not Yet Available
Wakefield MDC,E08000036,30/06/2016,BUSINESS,A,Net (Surplus) / Deficit of Trading Operations,EDMUNDSON ELECTRICAL,Building Materials,Revenue,160826,363,03/06/2016,29.12,Nil,ELECTRICAL PARTS AND EQUIPMENT,GPC,Not Yet Available
Wakefield MDC,E08000036,30/06/2016,BUSINESS,A,Net (Surplus) / Deficit of Trading Operations,EDMUNDSON ELECTRICAL,Building Materials,Revenue,160816,284,26/04/2016,198.00,Nil,ELECTRICAL PARTS AND EQUIPMENT,GPC,Not Yet Available
Wakefield MDC,E08000036,30/06/2016,BUSINESS,A,Net (Surplus) / Deficit of Trading Operations,EDMUNDSON ELECTRICAL,Building Materials,Revenue,160830,559,17/06/2016,23.43,Nil,ELECTRICAL PARTS AND EQUIPMENT,GPC,Not Yet Available
Wakefield MDC,E08000036,30/06/2016,BUSINESS,A,Net (Surplus) / Deficit of Trading Operations,EDMUNDSON ELECTRICAL,Building Materials,Revenue,160811,536,08/04/2016,17.70,Nil,ELECTRICAL PARTS AND EQUIPMENT,GPC,Not Yet Available
Wakefield MDC,E08000036,30/06/2016,BUSINESS,A,Net (Surplus) / Deficit of Trading Operations,EDMUNDSON ELECTRICAL,Building Materials,Revenue,160811,381,08/04/2016,1.51,Nil,ELECTRICAL PARTS AND EQUIPMENT,GPC,Not Yet Available
Wakefield MDC,E08000036,30/06/2016,BUSINESS,A,Net (Surplus) / Deficit of Trading Operations,EDMUNDSON ELECTRICAL,Building Materials,Revenue,160830,479,17/06/2016,1.20,Nil,ELECTRICAL PARTS AND EQUIPMENT,GPC,Not Yet Available
Wakefield MDC,E08000036,30/06/2016,BUSINESS,A,Net (Surplus) / Deficit of Trading Operations,EDMUNDSON ELECTRICAL,Building Materials,Revenue,160811,693,08/04/2016,16.41,Nil,ELECTRICAL PARTS AND EQUIPMENT,GPC,Not Yet Available
Wakefield MDC,E08000036,30/06/2016,BUSINESS,A,Net (Surplus) / Deficit of Trading Operations,EDMUNDSON ELECTRICAL,Building Materials,Revenue,160830,492,17/06/2016,379.52,Nil,ELECTRICAL PARTS AND EQUIPMENT,GPC,Not Yet Available
Wakefield MDC,E08000036,30/06/2016,BUSINESS,A,Net (Surplus) / Deficit of Trading Operations,EDMUNDSON ELECTRICAL,Building Materials,Revenue,160818,1306,10/05/2016,12.50,Nil,ELECTRICAL PARTS AND EQUIPMENT,GPC,Not Yet Available
Wakefield MDC,E08000036,30/06/2016,BUSINESS,A,Net (Surplus) / Deficit of Trading Operations,EDMUNDSON ELECTRICAL,Building Materials,Revenue,160818,1658,10/05/2016,15.39,Nil,ELECTRICAL PARTS AND EQUIPMENT,GPC,Not Yet Available
Wakefield MDC,E08000036,30/06/2016,BUSINESS,A,Net (Surplus) / Deficit of Trading Operations,EDMUNDSON ELECTRICAL,Building Materials,Revenue,160814,383,19/04/2016,12.50,Nil,ELECTRICAL PARTS AND EQUIPMENT,GPC,Not Yet Available
Wakefield MDC,E08000036,30/06/2016,BUSINESS,A,Net (Surplus) / Deficit of Trading Operations,EDMUNDSON ELECTRICAL,Building Materials,Revenue,160815,496,22/04/2016,2.50,Nil,ELECTRICAL PARTS AND EQUIPMENT,GPC,Not Yet Available
Wakefield MDC,E08000036,30/06/2016,BUSINESS,A,Net (Surplus) / Deficit of Trading Operations,EUROCELL,Building Materials,Revenue,160816,398,26/04/2016,29.91,Nil,BUILDING MATERIALS LUMBER STORES,GPC,Not Yet Available
Wakefield MDC,E08000036,30/06/2016,BUSINESS,A,Net (Surplus) / Deficit of Trading Operations,EUROCELL,Building Materials,Revenue,160818,1551,10/05/2016,18.45,Nil,BUILDING MATERIALS LUMBER STORES,GPC,Not Yet Available
Wakefield MDC,E08000036,30/06/2016,BUSINESS,A,Net (Surplus) / Deficit of Trading Operations,EUROCELL,Building Materials,Revenue,160811,588,08/04/2016,31.76,Nil,BUILDING MATERIALS LUMBER STORES,GPC,Not Yet Available
Wakefield MDC,E08000036,30/06/2016,BUSINESS,A,Net (Surplus) / Deficit of Trading Operations,F H BRUNDLE,Building Materials,Revenue,160817,631,29/04/2016,1438.40,Nil,BUILDING MATERIALS LUMBER STORES,GPC,Not Yet Available
Wakefield MDC,E08000036,30/06/2016,BUSINESS,A,Net (Surplus) / Deficit of Trading Operations,F H BRUNDLE,Building Materials,Revenue,160819,552,13/05/2016,328.90,Nil,BUILDING MATERIALS LUMBER STORES,GPC,Not Yet Available
Wakefield MDC,E08000036,30/06/2016,BUSINESS,A,Net (Surplus) / Deficit of Trading Operations,FARNELL,Building Materials,Revenue,160819,587,13/05/2016,205.88,Nil,ELECTRICAL PARTS AND EQUIPMENT,GPC,Not Yet Available
Wakefield MDC,E08000036,30/06/2016,BUSINESS,A,Net (Surplus) / Deficit of Trading Operations,FIRE SAFETY STORE,Building Materials,Revenue,160819,367,13/05/2016,24.50,Nil,MISCELLANEOUS AND SPECIALTY RETAIL STORES,GPC,Not Yet Available
Wakefield MDC,E08000036,30/06/2016,BUSINESS,A,Net (Surplus) / Deficit of Trading Operations,FOREGALE LIMITED,Building Materials,Revenue,160815,576,22/04/2016,246.00,Nil,COMMERCIAL EQUIPMENT NOT ELSEWHERE CLASSIFIED,GPC,Not Yet Available
Wakefield MDC,E08000036,30/06/2016,BUSINESS,A,Net (Surplus) / Deficit of Trading Operations,GARAGEDOOR SPARES,Building Materials,Revenue,160833,340,28/06/2016,31.79,Nil,CONTRACTORSSPECIAL TRADE-NOT ELSEWHERE CLASSIFIED,GPC,Not Yet Available
Wakefield MDC,E08000036,30/06/2016,BUSINESS,A,Net (Surplus) / Deficit of Trading Operations,GIBBS & DANDY,Building Materials,Revenue,160832,700,24/06/2016,19.94,Nil,BUILDING MATERIALS LUMBER STORES,GPC,Not Yet Available
Wakefield MDC,E08000036,30/06/2016,BUSINESS,A,Net (Surplus) / Deficit of Trading Operations,GRAHAM,Building Materials,Revenue,160813,531,15/04/2016,-2.65,Nil,BUILDING MATERIALS LUMBER STORES,GPC,Not Yet Available
Wakefield MDC,E08000036,30/06/2016,BUSINESS,A,Net (Surplus) / Deficit of Trading Operations,GRAHAM,Building Materials,Revenue,160813,532,15/04/2016,15.92,Nil,BUILDING MATERIALS LUMBER STORES,GPC,Not Yet Available
Wakefield MDC,E08000036,30/06/2016,BUSINESS,A,Net (Surplus) / Deficit of Trading Operations,GRAHAM,Building Materials,Revenue,160830,296,17/06/2016,-1.09,Nil,BUILDING MATERIALS LUMBER STORES,GPC,Not Yet Available
Wakefield MDC,E08000036,30/06/2016,BUSINESS,A,Net (Surplus) / Deficit of Trading Operations,GRAHAM,Building Materials,Revenue,160830,297,17/06/2016,6.53,Nil,BUILDING MATERIALS LUMBER STORES,GPC,Not Yet Available
Wakefield MDC,E08000036,30/06/2016,BUSINESS,A,Net (Surplus) / Deficit of Trading Operations,GRAHAM,Building Materials,Revenue,160824,388,27/05/2016,13.27,Nil,BUILDING MATERIALS LUMBER STORES,GPC,Not Yet Available
Wakefield MDC,E08000036,30/06/2016,BUSINESS,A,Net (Surplus) / Deficit of Trading Operations,GRAHAM,Building Materials,Revenue,160824,571,27/05/2016,79.45,Nil,BUILDING MATERIALS LUMBER STORES,GPC,Not Yet Available
Wakefield MDC,E08000036,30/06/2016,BUSINESS,A,Net (Surplus) / Deficit of Trading Operations,GRAHAM,Building Materials,Revenue,160818,1477,10/05/2016,13.27,Nil,BUILDING MATERIALS LUMBER STORES,GPC,Not Yet Available
Wakefield MDC,E08000036,30/06/2016,BUSINESS,A,Net (Surplus) / Deficit of Trading Operations,GRAHAM,Building Materials,Revenue,160823,927,25/05/2016,13.27,Nil,BUILDING MATERIALS LUMBER STORES,GPC,Not Yet Available
Wakefield MDC,E08000036,30/06/2016,BUSINESS,A,Net (Surplus) / Deficit of Trading Operations,GRAHAM,Building Materials,Revenue,160823,198,25/05/2016,13.27,Nil,BUILDING MATERIALS LUMBER STORES,GPC,Not Yet Available
Wakefield MDC,E08000036,30/06/2016,BUSINESS,A,Net (Surplus) / Deficit of Trading Operations,GRAHAM,Building Materials,Revenue,160814,178,19/04/2016,37.05,Nil,BUILDING MATERIALS LUMBER STORES,GPC,Not Yet Available
Wakefield MDC,E08000036,30/06/2016,BUSINESS,A,Net (Surplus) / Deficit of Trading Operations,GRAHAM,Building Materials,Revenue,160831,148,21/06/2016,46.68,Nil,BUILDING MATERIALS LUMBER STORES,GPC,Not Yet Available
Wakefield MDC,E08000036,30/06/2016,BUSINESS,A,Net (Surplus) / Deficit of Trading Operations,GRAHAM,Building Materials,Revenue,160831,159,21/06/2016,13.27,Nil,BUILDING MATERIALS LUMBER STORES,GPC,Not Yet Available
Wakefield MDC,E08000036,30/06/2016,BUSINESS,A,Net (Surplus) / Deficit of Trading Operations,GRAHAM,Building Materials,Revenue,160831,573,21/06/2016,56.46,Nil,BUILDING MATERIALS LUMBER STORES,GPC,Not Yet Available
Wakefield MDC,E08000036,30/06/2016,BUSINESS,A,Net (Surplus) / Deficit of Trading Operations,GRAHAM,Building Materials,Revenue,160831,530,21/06/2016,33.20,Nil,BUILDING MATERIALS LUMBER STORES,GPC,Not Yet Available
Wakefield MDC,E08000036,30/06/2016,BUSINESS,A,Net (Surplus) / Deficit of Trading Operations,GRAHAM,Building Materials,Revenue,160831,588,21/06/2016,11.09,Nil,BUILDING MATERIALS LUMBER STORES,GPC,Not Yet Available
Wakefield MDC,E08000036,30/06/2016,BUSINESS,A,Net (Surplus) / Deficit of Trading Operations,GRAHAM,Building Materials,Revenue,160831,534,21/06/2016,28.88,Nil,BUILDING MATERIALS LUMBER STORES,GPC,Not Yet Available
Wakefield MDC,E08000036,30/06/2016,BUSINESS,A,Net (Surplus) / Deficit of Trading Operations,GRAHAM,Building Materials,Revenue,160814,348,19/04/2016,62.14,Nil,BUILDING MATERIALS LUMBER STORES,GPC,Not Yet Available
Wakefield MDC,E08000036,30/06/2016,BUSINESS,A,Net (Surplus) / Deficit of Trading Operations,GRAHAM,Building Materials,Revenue,160823,500,25/05/2016,25.65,Nil,BUILDING MATERIALS LUMBER STORES,GPC,Not Yet Available
Wakefield MDC,E08000036,30/06/2016,BUSINESS,A,Net (Surplus) / Deficit of Trading Operations,GRAHAM,Building Materials,Revenue,160823,844,25/05/2016,31.35,Nil,BUILDING MATERIALS LUMBER STORES,GPC,Not Yet Available
Wakefield MDC,E08000036,30/06/2016,BUSINESS,A,Net (Surplus) / Deficit of Trading Operations,GRAHAM,Building Materials,Revenue,160824,574,27/05/2016,10.83,Nil,BUILDING MATERIALS LUMBER STORES,GPC,Not Yet Available
Wakefield MDC,E08000036,30/06/2016,BUSINESS,A,Net (Surplus) / Deficit of Trading Operations,GRAHAM,Building Materials,Revenue,160811,564,08/04/2016,42.00,Nil,BUILDING MATERIALS LUMBER STORES,GPC,Not Yet Available
Wakefield MDC,E08000036,30/06/2016,BUSINESS,A,Net (Surplus) / Deficit of Trading Operations,GRAHAM,Building Materials,Revenue,160824,634,27/05/2016,21.75,Nil,BUILDING MATERIALS LUMBER STORES,GPC,Not Yet Available
Wakefield MDC,E08000036,30/06/2016,BUSINESS,A,Net (Surplus) / Deficit of Trading Operations,GRAHAM,Building Materials,Revenue,160824,749,27/05/2016,-19.33,Nil,BUILDING MATERIALS LUMBER STORES,GPC,Not Yet Available
Wakefield MDC,E08000036,30/06/2016,BUSINESS,A,Net (Surplus) / Deficit of Trading Operations,GRAHAM,Building Materials,Revenue,160824,750,27/05/2016,-2.53,Nil,BUILDING MATERIALS LUMBER STORES,GPC,Not Yet Available
Wakefield MDC,E08000036,30/06/2016,BUSINESS,A,Net (Surplus) / Deficit of Trading Operations,GRAHAM,Building Materials,Revenue,160824,751,27/05/2016,-1.57,Nil,BUILDING MATERIALS LUMBER STORES,GPC,Not Yet Available
Wakefield MDC,E08000036,30/06/2016,BUSINESS,A,Net (Surplus) / Deficit of Trading Operations,GRAHAM,Building Materials,Revenue,160824,752,27/05/2016,140.59,Nil,BUILDING MATERIALS LUMBER STORES,GPC,Not Yet Available
Wakefield MDC,E08000036,30/06/2016,BUSINESS,A,Net (Surplus) / Deficit of Trading Operations,GRAHAM,Building Materials,Revenue,160822,335,20/05/2016,-17.42,Nil,BUILDING MATERIALS LUMBER STORES,GPC,Not Yet Available
Wakefield MDC,E08000036,30/06/2016,BUSINESS,A,Net (Surplus) / Deficit of Trading Operations,GRAHAM,Building Materials,Revenue,160822,336,20/05/2016,104.53,Nil,BUILDING MATERIALS LUMBER STORES,GPC,Not Yet Available
Wakefield MDC,E08000036,30/06/2016,BUSINESS,A,Net (Surplus) / Deficit of Trading Operations,HALFORDS,Building Materials,Revenue,160823,974,25/05/2016,5.80,Nil,BICYCLE SHOPS-SALES AND SERVICE,GPC,Not Yet Available
Wakefield MDC,E08000036,30/06/2016,BUSINESS,A,Net (Surplus) / Deficit of Trading Operations,HOWARTH TIMBER,Building Materials,Revenue,160819,498,13/05/2016,251.98,Nil,BUILDING MATERIALS LUMBER STORES,GPC,Not Yet Available
Wakefield MDC,E08000036,30/06/2016,BUSINESS,A,Net (Surplus) / Deficit of Trading Operations,HOWARTH TIMBER,Building Materials,Revenue,160822,346,20/05/2016,22.50,Nil,BUILDING MATERIALS LUMBER STORES,GPC,Not Yet Available
Wakefield MDC,E08000036,30/06/2016,BUSINESS,A,Net (Surplus) / Deficit of Trading Operations,HOWARTH TIMBER,Building Materials,Revenue,160819,528,13/05/2016,251.98,Nil,BUILDING MATERIALS LUMBER STORES,GPC,Not Yet Available
Wakefield MDC,E08000036,30/06/2016,BUSINESS,A,Net (Surplus) / Deficit of Trading Operations,HOWARTH TIMBER,Building Materials,Revenue,160818,1683,10/05/2016,188.99,Nil,BUILDING MATERIALS LUMBER STORES,GPC,Not Yet Available
Wakefield MDC,E08000036,30/06/2016,BUSINESS,A,Net (Surplus) / Deficit of Trading Operations,HOWARTH TIMBER,Building Materials,Revenue,160815,555,22/04/2016,70.56,Nil,BUILDING MATERIALS LUMBER STORES,GPC,Not Yet Available
Wakefield MDC,E08000036,30/06/2016,BUSINESS,A,Net (Surplus) / Deficit of Trading Operations,HOWARTH TIMBER,Building Materials,Revenue,160822,402,20/05/2016,56.16,Nil,BUILDING MATERIALS LUMBER STORES,GPC,Not Yet Available
Wakefield MDC,E08000036,30/06/2016,BUSINESS,A,Net (Surplus) / Deficit of Trading Operations,HOWARTH TIMBER,Building Materials,Revenue,160822,461,20/05/2016,43.84,Nil,BUILDING MATERIALS LUMBER STORES,GPC,Not Yet Available
Wakefield MDC,E08000036,30/06/2016,BUSINESS,A,Net (Surplus) / Deficit of Trading Operations,HOWARTH TIMBER,Building Materials,Revenue,160823,1070,25/05/2016,12.60,Nil,BUILDING MATERIALS LUMBER STORES,GPC,Not Yet Available
Wakefield MDC,E08000036,30/06/2016,BUSINESS,A,Net (Surplus) / Deficit of Trading Operations,HOWARTH TIMBER,Building Materials,Revenue,160822,453,20/05/2016,93.60,Nil,BUILDING MATERIALS LUMBER STORES,GPC,Not Yet Available
Wakefield MDC,E08000036,30/06/2016,BUSINESS,A,Net (Surplus) / Deficit of Trading Operations,HOWARTH TIMBER,Building Materials,Revenue,160831,256,21/06/2016,153.34,Nil,BUILDING MATERIALS LUMBER STORES,GPC,Not Yet Available
Wakefield MDC,E08000036,30/06/2016,BUSINESS,A,Net (Surplus) / Deficit of Trading Operations,HOWARTH TIMBER,Building Materials,Revenue,160822,365,20/05/2016,72.43,Nil,BUILDING MATERIALS LUMBER STORES,GPC,Not Yet Available
Wakefield MDC,E08000036,30/06/2016,BUSINESS,A,Net (Surplus) / Deficit of Trading Operations,HOWARTH TIMBER,Building Materials,Revenue,160822,310,20/05/2016,117.00,Nil,BUILDING MATERIALS LUMBER STORES,GPC,Not Yet Available
Wakefield MDC,E08000036,30/06/2016,BUSINESS,A,Net (Surplus) / Deficit of Trading Operations,HOWARTH TIMBER,Building Materials,Revenue,160830,291,17/06/2016,131.90,Nil,BUILDING MATERIALS LUMBER STORES,GPC,Not Yet Available
Wakefield MDC,E08000036,30/06/2016,BUSINESS,A,Net (Surplus) / Deficit of Trading Operations,HOWARTH TIMBER,Building Materials,Revenue,160824,764,27/05/2016,111.52,Nil,BUILDING MATERIALS LUMBER STORES,GPC,Not Yet Available
Wakefield MDC,E08000036,30/06/2016,BUSINESS,A,Net (Surplus) / Deficit of Trading Operations,HOWARTH TIMBER,Building Materials,Revenue,160832,712,24/06/2016,31.83,Nil,BUILDING MATERIALS LUMBER STORES,GPC,Not Yet Available
Wakefield MDC,E08000036,30/06/2016,BUSINESS,A,Net (Surplus) / Deficit of Trading Operations,HOWARTH TIMBER,Building Materials,Revenue,160811,629,08/04/2016,12.26,Nil,BUILDING MATERIALS LUMBER STORES,GPC,Not Yet Available
Wakefield MDC,E08000036,30/06/2016,BUSINESS,A,Net (Surplus) / Deficit of Trading Operations,HOWARTH TIMBER,Building Materials,Revenue,160819,590,13/05/2016,135.89,Nil,BUILDING MATERIALS LUMBER STORES,GPC,Not Yet Available
Wakefield MDC,E08000036,30/06/2016,BUSINESS,A,Net (Surplus) / Deficit of Trading Operations,HOWARTH TIMBER,Building Materials,Revenue,160815,560,22/04/2016,25.12,Nil,BUILDING MATERIALS LUMBER STORES,GPC,Not Yet Available
Wakefield MDC,E08000036,30/06/2016,BUSINESS,A,Net (Surplus) / Deficit of Trading Operations,HOWARTH TIMBER,Building Materials,Revenue,160814,458,19/04/2016,46.80,Nil,BUILDING MATERIALS LUMBER STORES,GPC,Not Yet Available
Wakefield MDC,E08000036,30/06/2016,BUSINESS,A,Net (Surplus) / Deficit of Trading Operations,HOWARTH TIMBER,Building Materials,Revenue,160822,430,20/05/2016,67.92,Nil,BUILDING MATERIALS LUMBER STORES,GPC,Not Yet Available
Wakefield MDC,E08000036,30/06/2016,BUSINESS,A,Net (Surplus) / Deficit of Trading Operations,HOWARTH TIMBER,Building Materials,Revenue,160813,426,15/04/2016,19.96,Nil,BUILDING MATERIALS LUMBER STORES,GPC,Not Yet Available
Wakefield MDC,E08000036,30/06/2016,BUSINESS,A,Net (Surplus) / Deficit of Trading Operations,HOWARTH TIMBER,Building Materials,Revenue,160827,56,08/06/2016,64.80,Nil,BUILDING MATERIALS LUMBER STORES,GPC,Not Yet Available
Wakefield MDC,E08000036,30/06/2016,BUSINESS,A,Net (Surplus) / Deficit of Trading Operations,HOWARTH TIMBER,Building Materials,Revenue,160812,102,12/04/2016,43.20,Nil,BUILDING MATERIALS LUMBER STORES,GPC,Not Yet Available
Wakefield MDC,E08000036,30/06/2016,BUSINESS,A,Net (Surplus) / Deficit of Trading Operations,HOWARTH TIMBER,Building Materials,Revenue,160834,621,01/07/2016,3.82,Nil,BUILDING MATERIALS LUMBER STORES,GPC,Not Yet Available
Wakefield MDC,E08000036,30/06/2016,BUSINESS,A,Net (Surplus) / Deficit of Trading Operations,HOWARTH TIMBER,Building Materials,Revenue,160826,323,03/06/2016,192.00,Nil,BUILDING MATERIALS LUMBER STORES,GPC,Not Yet Available
Wakefield MDC,E08000036,30/06/2016,BUSINESS,A,Net (Surplus) / Deficit of Trading Operations,HOWARTH TIMBER,Building Materials,Revenue,160828,209,10/06/2016,79.59,Nil,BUILDING MATERIALS LUMBER STORES,GPC,Not Yet Available
Wakefield MDC,E08000036,30/06/2016,BUSINESS,A,Net (Surplus) / Deficit of Trading Operations,HOWARTH TIMBER,Building Materials,Revenue,160822,729,20/05/2016,56.86,Nil,BUILDING MATERIALS LUMBER STORES,GPC,Not Yet Available
Wakefield MDC,E08000036,30/06/2016,BUSINESS,A,Net (Surplus) / Deficit of Trading Operations,HOWARTH TIMBER,Building Materials,Revenue,160826,290,03/06/2016,67.98,Nil,BUILDING MATERIALS LUMBER STORES,GPC,Not Yet Available
Wakefield MDC,E08000036,30/06/2016,BUSINESS,A,Net (Surplus) / Deficit of Trading Operations,HOWARTH TIMBER,Building Materials,Revenue,160826,304,03/06/2016,8.52,Nil,BUILDING MATERIALS LUMBER STORES,GPC,Not Yet Available
Wakefield MDC,E08000036,30/06/2016,BUSINESS,A,Net (Surplus) / Deficit of Trading Operations,HOWDEN JOINERY,Building Materials,Revenue,160832,652,24/06/2016,-64.00,Nil,CONSTRUCTION MATERIALS NOT ELSEWHERE CLASSIFIED,GPC,Not Yet Available
Wakefield MDC,E08000036,30/06/2016,BUSINESS,A,Net (Surplus) / Deficit of Trading Operations,HOWDEN JOINERY,Building Materials,Revenue,160832,653,24/06/2016,-24.00,Nil,CONSTRUCTION MATERIALS NOT ELSEWHERE CLASSIFIED,GPC,Not Yet Available
Wakefield MDC,E08000036,30/06/2016,BUSINESS,A,Net (Surplus) / Deficit of Trading Operations,HOWDEN JOINERY,Building Materials,Revenue,160832,655,24/06/2016,-12.00,Nil,CONSTRUCTION MATERIALS NOT ELSEWHERE CLASSIFIED,GPC,Not Yet Available
Wakefield MDC,E08000036,30/06/2016,BUSINESS,A,Net (Surplus) / Deficit of Trading Operations,HOWDEN JOINERY,Building Materials,Revenue,160832,656,24/06/2016,-2.95,Nil,CONSTRUCTION MATERIALS NOT ELSEWHERE CLASSIFIED,GPC,Not Yet Available
Wakefield MDC,E08000036,30/06/2016,BUSINESS,A,Net (Surplus) / Deficit of Trading Operations,HOWDEN JOINERY,Building Materials,Revenue,160832,657,24/06/2016,617.67,Nil,CONSTRUCTION MATERIALS NOT ELSEWHERE CLASSIFIED,GPC,Not Yet Available
Wakefield MDC,E08000036,30/06/2016,BUSINESS,A,Net (Surplus) / Deficit of Trading Operations,HOWDEN JOINERY,Building Materials,Revenue,160833,379,28/06/2016,-9.42,Nil,CONSTRUCTION MATERIALS NOT ELSEWHERE CLASSIFIED,GPC,Not Yet Available
Wakefield MDC,E08000036,30/06/2016,BUSINESS,A,Net (Surplus) / Deficit of Trading Operations,HOWDEN JOINERY,Building Materials,Revenue,160833,380,28/06/2016,-1.06,Nil,CONSTRUCTION MATERIALS NOT ELSEWHERE CLASSIFIED,GPC,Not Yet Available
Wakefield MDC,E08000036,30/06/2016,BUSINESS,A,Net (Surplus) / Deficit of Trading Operations,HOWDEN JOINERY,Building Materials,Revenue,160833,381,28/06/2016,62.90,Nil,CONSTRUCTION MATERIALS NOT ELSEWHERE CLASSIFIED,GPC,Not Yet Available
Wakefield MDC,E08000036,30/06/2016,BUSINESS,A,Net (Surplus) / Deficit of Trading Operations,HOWDEN JOINERY,Building Materials,Revenue,160830,259,17/06/2016,-13.68,Nil,CONSTRUCTION MATERIALS NOT ELSEWHERE CLASSIFIED,GPC,Not Yet Available
Wakefield MDC,E08000036,30/06/2016,BUSINESS,A,Net (Surplus) / Deficit of Trading Operations,HOWDEN JOINERY,Building Materials,Revenue,160830,260,17/06/2016,-3.21,Nil,CONSTRUCTION MATERIALS NOT ELSEWHERE CLASSIFIED,GPC,Not Yet Available
Wakefield MDC,E08000036,30/06/2016,BUSINESS,A,Net (Surplus) / Deficit of Trading Operations,HOWDEN JOINERY,Building Materials,Revenue,160830,261,17/06/2016,-8.70,Nil,CONSTRUCTION MATERIALS NOT ELSEWHERE CLASSIFIED,GPC,Not Yet Available
Wakefield MDC,E08000036,30/06/2016,BUSINESS,A,Net (Surplus) / Deficit of Trading Operations,HOWDEN JOINERY,Building Materials,Revenue,160830,262,17/06/2016,-0.46,Nil,CONSTRUCTION MATERIALS NOT ELSEWHERE CLASSIFIED,GPC,Not Yet Available
Wakefield MDC,E08000036,30/06/2016,BUSINESS,A,Net (Surplus) / Deficit of Trading Operations,HOWDEN JOINERY,Building Materials,Revenue,160830,263,17/06/2016,156.30,Nil,CONSTRUCTION MATERIALS NOT ELSEWHERE CLASSIFIED,GPC,Not Yet Available
Wakefield MDC,E08000036,30/06/2016,BUSINESS,A,Net (Surplus) / Deficit of Trading Operations,HOWDEN JOINERY,Building Materials,Revenue,160822,668,20/05/2016,4.48,Nil,CONSTRUCTION MATERIALS NOT ELSEWHERE CLASSIFIED,GPC,Not Yet Available
Wakefield MDC,E08000036,30/06/2016,BUSINESS,A,Net (Surplus) / Deficit of Trading Operations,HOWDEN JOINERY,Building Materials,Revenue,160811,320,08/04/2016,96.15,Nil,CONSTRUCTION MATERIALS NOT ELSEWHERE CLASSIFIED,GPC,Not Yet Available
Wakefield MDC,E08000036,30/06/2016,BUSINESS,A,Net (Surplus) / Deficit of Trading Operations,HOWDEN JOINERY,Building Materials,Revenue,160811,455,08/04/2016,158.80,Nil,CONSTRUCTION MATERIALS NOT ELSEWHERE CLASSIFIED,GPC,Not Yet Available
Wakefield MDC,E08000036,30/06/2016,BUSINESS,A,Net (Surplus) / Deficit of Trading Operations,HOWDEN JOINERY,Building Materials,Revenue,160811,456,08/04/2016,56.00,Nil,CONSTRUCTION MATERIALS NOT ELSEWHERE CLASSIFIED,GPC,Not Yet Available
Wakefield MDC,E08000036,30/06/2016,BUSINESS,A,Net (Surplus) / Deficit of Trading Operations,HSD ONLINE,Building Materials,Revenue,160823,624,25/05/2016,39.48,Nil,MISCELLANEOUS AND SPECIALTY RETAIL STORES,GPC,Not Yet Available
Wakefield MDC,E08000036,30/06/2016,BUSINESS,A,Net (Surplus) / Deficit of Trading Operations,IRONMONGERY DIRECT LTD,Building Materials,Revenue,160833,383,28/06/2016,114.40,Nil,GLASS PAINT WALLPAPER STORES,GPC,Not Yet Available
Wakefield MDC,E08000036,30/06/2016,BUSINESS,A,Net (Surplus) / Deficit of Trading Operations,IRONMONGERY DIRECT LTD,Building Materials,Revenue,160819,553,13/05/2016,141.10,Nil,GLASS PAINT WALLPAPER STORES,GPC,Not Yet Available
Wakefield MDC,E08000036,30/06/2016,BUSINESS,A,Net (Surplus) / Deficit of Trading Operations,IRONMONGERY DIRECT LTD,Building Materials,Revenue,160824,743,27/05/2016,72.00,Nil,GLASS PAINT WALLPAPER STORES,GPC,Not Yet Available
Wakefield MDC,E08000036,30/06/2016,BUSINESS,A,Net (Surplus) / Deficit of Trading Operations,IRONMONGERY DIRECT LTD,Building Materials,Revenue,160818,1672,10/05/2016,81.70,Nil,GLASS PAINT WALLPAPER STORES,GPC,Not Yet Available
Wakefield MDC,E08000036,30/06/2016,BUSINESS,A,Net (Surplus) / Deficit of Trading Operations,IRONMONGERY DIRECT LTD,Building Materials,Revenue,160831,383,21/06/2016,116.90,Nil,GLASS PAINT WALLPAPER STORES,GPC,Not Yet Available
Wakefield MDC,E08000036,30/06/2016,BUSINESS,A,Net (Surplus) / Deficit of Trading Operations,IRONMONGERY DIRECT LTD,Building Materials,Revenue,160821,,18/05/2016,109.50,Nil,GLASS PAINT WALLPAPER STORES,GPC,Not Yet Available
Wakefield MDC,E08000036,30/06/2016,BUSINESS,A,Net (Surplus) / Deficit of Trading Operations,IRONMONGERY DIRECT LTD,Building Materials,Revenue,160818,868,10/05/2016,175.00,Nil,GLASS PAINT WALLPAPER STORES,GPC,Not Yet Available
Wakefield MDC,E08000036,30/06/2016,BUSINESS,A,Net (Surplus) / Deficit of Trading Operations,IRONMONGERY DIRECT LTD,Building Materials,Revenue,160818,1527,10/05/2016,177.50,Nil,GLASS PAINT WALLPAPER STORES,GPC,Not Yet Available
Wakefield MDC,E08000036,30/06/2016,BUSINESS,A,Net (Surplus) / Deficit of Trading Operations,IRONMONGERY DIRECT LTD,Building Materials,Revenue,160833,295,28/06/2016,14.85,Nil,GLASS PAINT WALLPAPER STORES,GPC,Not Yet Available
Wakefield MDC,E08000036,30/06/2016,BUSINESS,A,Net (Surplus) / Deficit of Trading Operations,IRONMONGERY DIRECT LTD,Building Materials,Revenue,160818,1570,10/05/2016,110.10,Nil,GLASS PAINT WALLPAPER STORES,GPC,Not Yet Available
Wakefield MDC,E08000036,30/06/2016,BUSINESS,A,Net (Surplus) / Deficit of Trading Operations,IRONMONGERY DIRECT LTD,Building Materials,Revenue,160822,337,20/05/2016,164.00,Nil,GLASS PAINT WALLPAPER STORES,GPC,Not Yet Available
Wakefield MDC,E08000036,30/06/2016,BUSINESS,A,Net (Surplus) / Deficit of Trading Operations,IRONMONGERY DIRECT LTD,Building Materials,Revenue,160822,434,20/05/2016,134.00,Nil,GLASS PAINT WALLPAPER STORES,GPC,Not Yet Available
Wakefield MDC,E08000036,30/06/2016,BUSINESS,A,Net (Surplus) / Deficit of Trading Operations,IRONMONGERY DIRECT LTD,Building Materials,Revenue,160822,307,20/05/2016,-213.00,Nil,GLASS PAINT WALLPAPER STORES,GPC,Not Yet Available
Wakefield MDC,E08000036,30/06/2016,BUSINESS,A,Net (Surplus) / Deficit of Trading Operations,IRONMONGERY DIRECT LTD,Building Materials,Revenue,160811,465,08/04/2016,14.55,Nil,GLASS PAINT WALLPAPER STORES,GPC,Not Yet Available
Wakefield MDC,E08000036,30/06/2016,BUSINESS,A,Net (Surplus) / Deficit of Trading Operations,IRONMONGERY DIRECT LTD,Building Materials,Revenue,160826,378,03/06/2016,24.73,Nil,GLASS PAINT WALLPAPER STORES,GPC,Not Yet Available
Wakefield MDC,E08000036,30/06/2016,BUSINESS,A,Net (Surplus) / Deficit of Trading Operations,IRONMONGERY DIRECT LTD,Building Materials,Revenue,160826,399,03/06/2016,13.85,Nil,GLASS PAINT WALLPAPER STORES,GPC,Not Yet Available
Wakefield MDC,E08000036,30/06/2016,BUSINESS,A,Net (Surplus) / Deficit of Trading Operations,IRONMONGERY DIRECT LTD,Building Materials,Revenue,160826,305,03/06/2016,48.75,Nil,GLASS PAINT WALLPAPER STORES,GPC,Not Yet Available
Wakefield MDC,E08000036,30/06/2016,BUSINESS,A,Net (Surplus) / Deficit of Trading Operations,IRONMONGERY DIRECT LTD,Building Materials,Revenue,160818,1662,10/05/2016,51.80,Nil,GLASS PAINT WALLPAPER STORES,GPC,Not Yet Available
Wakefield MDC,E08000036,30/06/2016,BUSINESS,A,Net (Surplus) / Deficit of Trading Operations,J DAVIDSON PIPES,Building Materials,Revenue,160813,423,15/04/2016,10.50,Nil,CONSTRUCTION MATERIALS NOT ELSEWHERE CLASSIFIED,GPC,Not Yet Available
Wakefield MDC,E08000036,30/06/2016,BUSINESS,A,Net (Surplus) / Deficit of Trading Operations,J DAVIDSON PIPES,Building Materials,Revenue,160827,69,08/06/2016,41.50,Nil,CONSTRUCTION MATERIALS NOT ELSEWHERE CLASSIFIED,GPC,Not Yet Available
Wakefield MDC,E08000036,30/06/2016,BUSINESS,A,Net (Surplus) / Deficit of Trading Operations,J DAVIDSON PIPES,Building Materials,Revenue,160827,366,08/06/2016,62.00,Nil,CONSTRUCTION MATERIALS NOT ELSEWHERE CLASSIFIED,GPC,Not Yet Available
Wakefield MDC,E08000036,30/06/2016,BUSINESS,A,Net (Surplus) / Deficit of Trading Operations,J M HUNT & CO,Building Materials,Revenue,160818,1028,10/05/2016,16.10,Nil,PLUMBING AND HEATING EQUIPMENT,GPC,Not Yet Available
Wakefield MDC,E08000036,30/06/2016,BUSINESS,A,Net (Surplus) / Deficit of Trading Operations,J M HUNT & CO,Building Materials,Revenue,160831,571,21/06/2016,17.01,Nil,PLUMBING AND HEATING EQUIPMENT,GPC,Not Yet Available
Wakefield MDC,E08000036,30/06/2016,BUSINESS,A,Net (Surplus) / Deficit of Trading Operations,J M HUNT & CO,Building Materials,Revenue,160831,471,21/06/2016,49.46,Nil,PLUMBING AND HEATING EQUIPMENT,GPC,Not Yet Available
Wakefield MDC,E08000036,30/06/2016,BUSINESS,A,Net (Surplus) / Deficit of Trading Operations,J M HUNT & CO,Building Materials,Revenue,160831,569,21/06/2016,17.01,Nil,PLUMBING AND HEATING EQUIPMENT,GPC,Not Yet Available
Wakefield MDC,E08000036,30/06/2016,BUSINESS,A,Net (Surplus) / Deficit of Trading Operations,J M HUNT & CO,Building Materials,Revenue,160814,20,19/04/2016,6.97,Nil,PLUMBING AND HEATING EQUIPMENT,GPC,Not Yet Available
Wakefield MDC,E08000036,30/06/2016,BUSINESS,A,Net (Surplus) / Deficit of Trading Operations,J M HUNT & CO,Building Materials,Revenue,160823,244,25/05/2016,18.11,Nil,PLUMBING AND HEATING EQUIPMENT,GPC,Not Yet Available
Wakefield MDC,E08000036,30/06/2016,BUSINESS,A,Net (Surplus) / Deficit of Trading Operations,J M HUNT & CO,Building Materials,Revenue,160828,189,10/06/2016,3.48,Nil,PLUMBING AND HEATING EQUIPMENT,GPC,Not Yet Available
Wakefield MDC,E08000036,30/06/2016,BUSINESS,A,Net (Surplus) / Deficit of Trading Operations,J M HUNT & CO,Building Materials,Revenue,160811,384,08/04/2016,75.21,Nil,PLUMBING AND HEATING EQUIPMENT,GPC,Not Yet Available
Wakefield MDC,E08000036,30/06/2016,BUSINESS,A,Net (Surplus) / Deficit of Trading Operations,J M HUNT & CO,Building Materials,Revenue,160811,434,08/04/2016,56.85,Nil,PLUMBING AND HEATING EQUIPMENT,GPC,Not Yet Available
Wakefield MDC,E08000036,30/06/2016,BUSINESS,A,Net (Surplus) / Deficit of Trading Operations,J M HUNT & CO,Building Materials,Revenue,160831,394,21/06/2016,107.51,Nil,PLUMBING AND HEATING EQUIPMENT,GPC,Not Yet Available
Wakefield MDC,E08000036,30/06/2016,BUSINESS,A,Net (Surplus) / Deficit of Trading Operations,J M HUNT & CO,Building Materials,Revenue,160831,517,21/06/2016,30.66,Nil,PLUMBING AND HEATING EQUIPMENT,GPC,Not Yet Available
Wakefield MDC,E08000036,30/06/2016,BUSINESS,A,Net (Surplus) / Deficit of Trading Operations,J M HUNT & CO,Building Materials,Revenue,160823,134,25/05/2016,20.06,Nil,PLUMBING AND HEATING EQUIPMENT,GPC,Not Yet Available
Wakefield MDC,E08000036,30/06/2016,BUSINESS,A,Net (Surplus) / Deficit of Trading Operations,J M HUNT & CO,Building Materials,Revenue,160827,627,08/06/2016,13.39,Nil,PLUMBING AND HEATING EQUIPMENT,GPC,Not Yet Available
Wakefield MDC,E08000036,30/06/2016,BUSINESS,A,Net (Surplus) / Deficit of Trading Operations,JAMES BURRELL LTD,Building Materials,Revenue,160832,714,24/06/2016,-1.92,Nil,BUILDING MATERIALS LUMBER STORES,GPC,Not Yet Available
Wakefield MDC,E08000036,30/06/2016,BUSINESS,A,Net (Surplus) / Deficit of Trading Operations,JAMES BURRELL LTD,Building Materials,Revenue,160832,715,24/06/2016,11.51,Nil,BUILDING MATERIALS LUMBER STORES,GPC,Not Yet Available
Wakefield MDC,E08000036,30/06/2016,BUSINESS,A,Net (Surplus) / Deficit of Trading Operations,JAMES HARGREAVES,Building Materials,Revenue,160818,396,10/05/2016,4.17,Nil,HEATING PLUMBING AIR CONDITIONING CONTRACTORS,GPC,Not Yet Available
Wakefield MDC,E08000036,30/06/2016,BUSINESS,A,Net (Surplus) / Deficit of Trading Operations,JOHN MONAGHAN LTD,Building Materials,Revenue,160831,379,21/06/2016,-11.20,Nil,HARDWARE EQUIPMENT AND SUPPLIES,GPC,Not Yet Available
Wakefield MDC,E08000036,30/06/2016,BUSINESS,A,Net (Surplus) / Deficit of Trading Operations,JOHN MONAGHAN LTD,Building Materials,Revenue,160831,380,21/06/2016,67.20,Nil,HARDWARE EQUIPMENT AND SUPPLIES,GPC,Not Yet Available
Wakefield MDC,E08000036,30/06/2016,BUSINESS,A,Net (Surplus) / Deficit of Trading Operations,JOHN MONAGHAN LTD,Building Materials,Revenue,160823,1073,25/05/2016,78.91,Nil,HARDWARE EQUIPMENT AND SUPPLIES,GPC,Not Yet Available
Wakefield MDC,E08000036,30/06/2016,BUSINESS,A,Net (Surplus) / Deficit of Trading Operations,JOHN MONAGHAN LTD,Building Materials,Revenue,160823,1072,25/05/2016,-13.15,Nil,HARDWARE EQUIPMENT AND SUPPLIES,GPC,Not Yet Available
Wakefield MDC,E08000036,30/06/2016,BUSINESS,A,Net (Surplus) / Deficit of Trading Operations,JOHN MONAGHAN LTD,Building Materials,Revenue,160818,889,10/05/2016,29.66,Nil,HARDWARE EQUIPMENT AND SUPPLIES,GPC,Not Yet Available
Wakefield MDC,E08000036,30/06/2016,BUSINESS,A,Net (Surplus) / Deficit of Trading Operations,JOHN MONAGHAN LTD,Building Materials,Revenue,160814,290,19/04/2016,7.00,Nil,HARDWARE EQUIPMENT AND SUPPLIES,GPC,Not Yet Available
Wakefield MDC,E08000036,30/06/2016,BUSINESS,A,Net (Surplus) / Deficit of Trading Operations,JOHN MONAGHAN LTD,Building Materials,Revenue,160814,32,19/04/2016,42.22,Nil,HARDWARE EQUIPMENT AND SUPPLIES,GPC,Not Yet Available
Wakefield MDC,E08000036,30/06/2016,BUSINESS,A,Net (Surplus) / Deficit of Trading Operations,JOHN MONAGHAN LTD,Building Materials,Revenue,160818,938,10/05/2016,75.60,Nil,HARDWARE EQUIPMENT AND SUPPLIES,GPC,Not Yet Available
Wakefield MDC,E08000036,30/06/2016,BUSINESS,A,Net (Surplus) / Deficit of Trading Operations,JOHN MONAGHAN LTD,Building Materials,Revenue,160834,513,01/07/2016,8.38,Nil,HARDWARE EQUIPMENT AND SUPPLIES,GPC,Not Yet Available
Wakefield MDC,E08000036,30/06/2016,BUSINESS,A,Net (Surplus) / Deficit of Trading Operations,KEENCOST WAKEFIELD,Building Materials,Revenue,160830,293,17/06/2016,58.83,Nil,HOME SUPPLY WAREHOUSE STORES,GPC,Not Yet Available
Wakefield MDC,E08000036,30/06/2016,BUSINESS,A,Net (Surplus) / Deficit of Trading Operations,KEYLINE,Building Materials,Revenue,160811,430,08/04/2016,79.46,Nil,BUILDING MATERIALS LUMBER STORES,GPC,Not Yet Available
Wakefield MDC,E08000036,30/06/2016,BUSINESS,A,Net (Surplus) / Deficit of Trading Operations,LOCKS ONLINE,Building Materials,Revenue,160818,927,10/05/2016,53.12,Nil,BUSINESS SERVICES-NOT ELSEWHERE CLASSIFIED,GPC,Not Yet Available
Wakefield MDC,E08000036,30/06/2016,BUSINESS,A,Net (Surplus) / Deficit of Trading Operations,MAPLIN,Building Materials,Revenue,160811,362,08/04/2016,24.99,Nil,ELECTRONIC SALES,GPC,Not Yet Available
Wakefield MDC,E08000036,30/06/2016,BUSINESS,A,Net (Surplus) / Deficit of Trading Operations,MAPLIN,Building Materials,Revenue,160811,257,08/04/2016,24.99,Nil,ELECTRONIC SALES,GPC,Not Yet Available
Wakefield MDC,E08000036,30/06/2016,BUSINESS,A,Net (Surplus) / Deficit of Trading Operations,MAPLIN,Building Materials,Revenue,160814,380,19/04/2016,24.99,Nil,ELECTRONIC SALES,GPC,Not Yet Available
Wakefield MDC,E08000036,30/06/2016,BUSINESS,A,Net (Surplus) / Deficit of Trading Operations,MAPLIN,Building Materials,Revenue,160826,73,03/06/2016,10.82,Nil,ELECTRONIC SALES,GPC,Not Yet Available
Wakefield MDC,E08000036,30/06/2016,BUSINESS,A,Net (Surplus) / Deficit of Trading Operations,MAPLIN,Building Materials,Revenue,160826,80,03/06/2016,-12.99,Nil,ELECTRONIC SALES,GPC,Not Yet Available
Wakefield MDC,E08000036,30/06/2016,BUSINESS,A,Net (Surplus) / Deficit of Trading Operations,MECHLITE,Building Materials,Revenue,160815,543,22/04/2016,81.00,Nil,CONTRACTORSSPECIAL TRADE-NOT ELSEWHERE CLASSIFIED,GPC,Not Yet Available
Wakefield MDC,E08000036,30/06/2016,BUSINESS,A,Net (Surplus) / Deficit of Trading Operations,METAL FLOOR,Building Materials,Revenue,160834,651,01/07/2016,39.38,Nil,FLOOR COVERING STORES,GPC,Not Yet Available
Wakefield MDC,E08000036,30/06/2016,BUSINESS,A,Net (Surplus) / Deficit of Trading Operations,METALS 4 U,Building Materials,Revenue,160822,150,20/05/2016,253.77,Nil,METAL SERVICE CENTERS AND OFFICES,GPC,Not Yet Available
Wakefield MDC,E08000036,30/06/2016,BUSINESS,A,Net (Surplus) / Deficit of Trading Operations,METALS 4 U,Building Materials,Revenue,160818,1192,10/05/2016,75.83,Nil,METAL SERVICE CENTERS AND OFFICES,GPC,Not Yet Available
Wakefield MDC,E08000036,30/06/2016,BUSINESS,A,Net (Surplus) / Deficit of Trading Operations,METALS 4 U,Building Materials,Revenue,160833,297,28/06/2016,29.17,Nil,METAL SERVICE CENTERS AND OFFICES,GPC,Not Yet Available
Wakefield MDC,E08000036,30/06/2016,BUSINESS,A,Net (Surplus) / Deficit of Trading Operations,MKM BUILDING SUPPLIES,Building Materials,Revenue,160811,648,08/04/2016,34.80,Nil,BUILDING MATERIALS LUMBER STORES,GPC,Not Yet Available
Wakefield MDC,E08000036,30/06/2016,BUSINESS,A,Net (Surplus) / Deficit of Trading Operations,MY TOOL SHED,Building Materials,Revenue,160811,700,08/04/2016,110.04,Nil,HARDWARE EQUIPMENT AND SUPPLIES,GPC,Not Yet Available
Wakefield MDC,E08000036,30/06/2016,BUSINESS,A,Net (Surplus) / Deficit of Trading Operations,NEWEY & EYRE,Building Materials,Revenue,160822,309,20/05/2016,71.36,Nil,ELECTRICAL PARTS AND EQUIPMENT,GPC,Not Yet Available
Wakefield MDC,E08000036,30/06/2016,BUSINESS,A,Net (Surplus) / Deficit of Trading Operations,NEWEY & EYRE,Building Materials,Revenue,160832,338,24/06/2016,123.53,Nil,ELECTRICAL PARTS AND EQUIPMENT,GPC,Not Yet Available
Wakefield MDC,E08000036,30/06/2016,BUSINESS,A,Net (Surplus) / Deficit of Trading Operations,O HEAP & SON (DERBY) LTD,Building Materials,Revenue,160813,446,15/04/2016,10.45,Nil,BUSINESS SERVICES-NOT ELSEWHERE CLASSIFIED,GPC,Not Yet Available
Wakefield MDC,E08000036,30/06/2016,BUSINESS,A,Net (Surplus) / Deficit of Trading Operations,OSSETT DIY CENTRE LIMITED,Building Materials,Revenue,160818,856,10/05/2016,6.66,Nil,GLASS PAINT WALLPAPER STORES,GPC,Not Yet Available
Wakefield MDC,E08000036,30/06/2016,BUSINESS,A,Net (Surplus) / Deficit of Trading Operations,PENDOCK,Building Materials,Revenue,160831,366,21/06/2016,220.20,Nil,INDUSTRIAL SUPPLIES NOT ELSEWHERE CLASSIFIED,GPC,Not Yet Available
Wakefield MDC,E08000036,30/06/2016,BUSINESS,A,Net (Surplus) / Deficit of Trading Operations,PLUMB CENTER,Building Materials,Revenue,160830,266,17/06/2016,-1.18,Nil,HEATING PLUMBING AIR CONDITIONING CONTRACTORS,GPC,Not Yet Available
Wakefield MDC,E08000036,30/06/2016,BUSINESS,A,Net (Surplus) / Deficit of Trading Operations,PLUMB CENTER,Building Materials,Revenue,160830,267,17/06/2016,-3.66,Nil,HEATING PLUMBING AIR CONDITIONING CONTRACTORS,GPC,Not Yet Available
Wakefield MDC,E08000036,30/06/2016,BUSINESS,A,Net (Surplus) / Deficit of Trading Operations,PLUMB CENTER,Building Materials,Revenue,160830,268,17/06/2016,-0.31,Nil,HEATING PLUMBING AIR CONDITIONING CONTRACTORS,GPC,Not Yet Available
Wakefield MDC,E08000036,30/06/2016,BUSINESS,A,Net (Surplus) / Deficit of Trading Operations,PLUMB CENTER,Building Materials,Revenue,160830,269,17/06/2016,-1.78,Nil,HEATING PLUMBING AIR CONDITIONING CONTRACTORS,GPC,Not Yet Available
Wakefield MDC,E08000036,30/06/2016,BUSINESS,A,Net (Surplus) / Deficit of Trading Operations,PLUMB CENTER,Building Materials,Revenue,160830,270,17/06/2016,41.59,Nil,HEATING PLUMBING AIR CONDITIONING CONTRACTORS,GPC,Not Yet Available
Wakefield MDC,E08000036,30/06/2016,BUSINESS,A,Net (Surplus) / Deficit of Trading Operations,PLUMB CENTER,Building Materials,Revenue,160824,670,27/05/2016,30.51,Nil,HEATING PLUMBING AIR CONDITIONING CONTRACTORS,GPC,Not Yet Available
Wakefield MDC,E08000036,30/06/2016,BUSINESS,A,Net (Surplus) / Deficit of Trading Operations,PLUMB CENTER,Building Materials,Revenue,160818,243,10/05/2016,29.41,Nil,HEATING PLUMBING AIR CONDITIONING CONTRACTORS,GPC,Not Yet Available
Wakefield MDC,E08000036,30/06/2016,BUSINESS,A,Net (Surplus) / Deficit of Trading Operations,PLUMB CENTER,Building Materials,Revenue,160818,235,10/05/2016,4.23,Nil,HEATING PLUMBING AIR CONDITIONING CONTRACTORS,GPC,Not Yet Available
Wakefield MDC,E08000036,30/06/2016,BUSINESS,A,Net (Surplus) / Deficit of Trading Operations,PLUMB CENTER,Building Materials,Revenue,160823,79,25/05/2016,15.70,Nil,HEATING PLUMBING AIR CONDITIONING CONTRACTORS,GPC,Not Yet Available
Wakefield MDC,E08000036,30/06/2016,BUSINESS,A,Net (Surplus) / Deficit of Trading Operations,PLUMB CENTER,Building Materials,Revenue,160831,378,21/06/2016,8.18,Nil,HEATING PLUMBING AIR CONDITIONING CONTRACTORS,GPC,Not Yet Available
Wakefield MDC,E08000036,30/06/2016,BUSINESS,A,Net (Surplus) / Deficit of Trading Operations,PLUMB CENTER,Building Materials,Revenue,160831,393,21/06/2016,7.11,Nil,HEATING PLUMBING AIR CONDITIONING CONTRACTORS,GPC,Not Yet Available
Wakefield MDC,E08000036,30/06/2016,BUSINESS,A,Net (Surplus) / Deficit of Trading Operations,PLUMB CENTER,Building Materials,Revenue,160831,596,21/06/2016,4.81,Nil,HEATING PLUMBING AIR CONDITIONING CONTRACTORS,GPC,Not Yet Available
Wakefield MDC,E08000036,30/06/2016,BUSINESS,A,Net (Surplus) / Deficit of Trading Operations,PLUMB CENTER,Building Materials,Revenue,160814,388,19/04/2016,16.82,Nil,HEATING PLUMBING AIR CONDITIONING CONTRACTORS,GPC,Not Yet Available
Wakefield MDC,E08000036,30/06/2016,BUSINESS,A,Net (Surplus) / Deficit of Trading Operations,PLUMB CENTER,Building Materials,Revenue,160814,39,19/04/2016,205.47,Nil,HEATING PLUMBING AIR CONDITIONING CONTRACTORS,GPC,Not Yet Available
Wakefield MDC,E08000036,30/06/2016,BUSINESS,A,Net (Surplus) / Deficit of Trading Operations,PLUMB CENTER,Building Materials,Revenue,160818,96,10/05/2016,24.74,Nil,HEATING PLUMBING AIR CONDITIONING CONTRACTORS,GPC,Not Yet Available
Wakefield MDC,E08000036,30/06/2016,BUSINESS,A,Net (Surplus) / Deficit of Trading Operations,PLUMB CENTER,Building Materials,Revenue,160828,187,10/06/2016,28.30,Nil,HEATING PLUMBING AIR CONDITIONING CONTRACTORS,GPC,Not Yet Available
Wakefield MDC,E08000036,30/06/2016,BUSINESS,A,Net (Surplus) / Deficit of Trading Operations,PLUMB CENTER,Building Materials,Revenue,160828,150,10/06/2016,132.30,Nil,HEATING PLUMBING AIR CONDITIONING CONTRACTORS,GPC,Not Yet Available
Wakefield MDC,E08000036,30/06/2016,BUSINESS,A,Net (Surplus) / Deficit of Trading Operations,PLUMB CENTER,Building Materials,Revenue,160823,385,25/05/2016,243.65,Nil,HEATING PLUMBING AIR CONDITIONING CONTRACTORS,GPC,Not Yet Available
Wakefield MDC,E08000036,30/06/2016,BUSINESS,A,Net (Surplus) / Deficit of Trading Operations,PLUMB CENTER,Building Materials,Revenue,160823,81,25/05/2016,1.12,Nil,HEATING PLUMBING AIR CONDITIONING CONTRACTORS,GPC,Not Yet Available
Wakefield MDC,E08000036,30/06/2016,BUSINESS,A,Net (Surplus) / Deficit of Trading Operations,PLUMB CENTER,Building Materials,Revenue,160823,592,25/05/2016,4.92,Nil,HEATING PLUMBING AIR CONDITIONING CONTRACTORS,GPC,Not Yet Available
Wakefield MDC,E08000036,30/06/2016,BUSINESS,A,Net (Surplus) / Deficit of Trading Operations,PLUMB CENTER,Building Materials,Revenue,160818,1300,10/05/2016,15.16,Nil,HEATING PLUMBING AIR CONDITIONING CONTRACTORS,GPC,Not Yet Available
Wakefield MDC,E08000036,30/06/2016,BUSINESS,A,Net (Surplus) / Deficit of Trading Operations,PLUMB CENTER,Building Materials,Revenue,160818,649,10/05/2016,34.01,Nil,HEATING PLUMBING AIR CONDITIONING CONTRACTORS,GPC,Not Yet Available
Wakefield MDC,E08000036,30/06/2016,BUSINESS,A,Net (Surplus) / Deficit of Trading Operations,PLUMB CENTER,Building Materials,Revenue,160811,431,08/04/2016,92.46,Nil,HEATING PLUMBING AIR CONDITIONING CONTRACTORS,GPC,Not Yet Available
Wakefield MDC,E08000036,30/06/2016,BUSINESS,A,Net (Surplus) / Deficit of Trading Operations,PLUMB CENTER,Building Materials,Revenue,160814,158,19/04/2016,14.17,Nil,HEATING PLUMBING AIR CONDITIONING CONTRACTORS,GPC,Not Yet Available
Wakefield MDC,E08000036,30/06/2016,BUSINESS,A,Net (Surplus) / Deficit of Trading Operations,PLUMB CENTER,Building Materials,Revenue,160814,139,19/04/2016,46.37,Nil,HEATING PLUMBING AIR CONDITIONING CONTRACTORS,GPC,Not Yet Available
Wakefield MDC,E08000036,30/06/2016,BUSINESS,A,Net (Surplus) / Deficit of Trading Operations,PLUMB CENTER,Building Materials,Revenue,160814,101,19/04/2016,190.18,Nil,HEATING PLUMBING AIR CONDITIONING CONTRACTORS,GPC,Not Yet Available
Wakefield MDC,E08000036,30/06/2016,BUSINESS,A,Net (Surplus) / Deficit of Trading Operations,PLUMB CENTER,Building Materials,Revenue,160811,443,08/04/2016,51.24,Nil,HEATING PLUMBING AIR CONDITIONING CONTRACTORS,GPC,Not Yet Available
Wakefield MDC,E08000036,30/06/2016,BUSINESS,A,Net (Surplus) / Deficit of Trading Operations,PLUMB CENTER,Building Materials,Revenue,160814,16,19/04/2016,47.05,Nil,HEATING PLUMBING AIR CONDITIONING CONTRACTORS,GPC,Not Yet Available
Wakefield MDC,E08000036,30/06/2016,BUSINESS,A,Net (Surplus) / Deficit of Trading Operations,PLUMB CENTER,Building Materials,Revenue,160814,17,19/04/2016,47.05,Nil,HEATING PLUMBING AIR CONDITIONING CONTRACTORS,GPC,Not Yet Available
Wakefield MDC,E08000036,30/06/2016,BUSINESS,A,Net (Surplus) / Deficit of Trading Operations,PLUMB CENTER,Building Materials,Revenue,160818,535,10/05/2016,80.41,Nil,HEATING PLUMBING AIR CONDITIONING CONTRACTORS,GPC,Not Yet Available
Wakefield MDC,E08000036,30/06/2016,BUSINESS,A,Net (Surplus) / Deficit of Trading Operations,PLUMB CENTER,Building Materials,Revenue,160823,704,25/05/2016,8.25,Nil,HEATING PLUMBING AIR CONDITIONING CONTRACTORS,GPC,Not Yet Available
Wakefield MDC,E08000036,30/06/2016,BUSINESS,A,Net (Surplus) / Deficit of Trading Operations,PLUMB CENTER,Building Materials,Revenue,160811,355,08/04/2016,40.97,Nil,HEATING PLUMBING AIR CONDITIONING CONTRACTORS,GPC,Not Yet Available
Wakefield MDC,E08000036,30/06/2016,BUSINESS,A,Net (Surplus) / Deficit of Trading Operations,PLUMB CENTER,Building Materials,Revenue,160814,141,19/04/2016,71.83,Nil,HEATING PLUMBING AIR CONDITIONING CONTRACTORS,GPC,Not Yet Available
Wakefield MDC,E08000036,30/06/2016,BUSINESS,A,Net (Surplus) / Deficit of Trading Operations,PLUMB CENTER,Building Materials,Revenue,160824,369,27/05/2016,120.80,Nil,HEATING PLUMBING AIR CONDITIONING CONTRACTORS,GPC,Not Yet Available
Wakefield MDC,E08000036,30/06/2016,BUSINESS,A,Net (Surplus) / Deficit of Trading Operations,PLUMB CENTER,Building Materials,Revenue,160832,644,24/06/2016,-0.87,Nil,HEATING PLUMBING AIR CONDITIONING CONTRACTORS,GPC,Not Yet Available
Wakefield MDC,E08000036,30/06/2016,BUSINESS,A,Net (Surplus) / Deficit of Trading Operations,PLUMB CENTER,Building Materials,Revenue,160832,645,24/06/2016,-1.12,Nil,HEATING PLUMBING AIR CONDITIONING CONTRACTORS,GPC,Not Yet Available
Wakefield MDC,E08000036,30/06/2016,BUSINESS,A,Net (Surplus) / Deficit of Trading Operations,PLUMB CENTER,Building Materials,Revenue,160832,646,24/06/2016,-0.50,Nil,HEATING PLUMBING AIR CONDITIONING CONTRACTORS,GPC,Not Yet Available
Wakefield MDC,E08000036,30/06/2016,BUSINESS,A,Net (Surplus) / Deficit of Trading Operations,PLUMB CENTER,Building Materials,Revenue,160832,647,24/06/2016,-0.25,Nil,HEATING PLUMBING AIR CONDITIONING CONTRACTORS,GPC,Not Yet Available
Wakefield MDC,E08000036,30/06/2016,BUSINESS,A,Net (Surplus) / Deficit of Trading Operations,PLUMB CENTER,Building Materials,Revenue,160832,648,24/06/2016,16.43,Nil,HEATING PLUMBING AIR CONDITIONING CONTRACTORS,GPC,Not Yet Available
Wakefield MDC,E08000036,30/06/2016,BUSINESS,A,Net (Surplus) / Deficit of Trading Operations,PLUMB CENTER,Building Materials,Revenue,160811,482,08/04/2016,15.05,Nil,HEATING PLUMBING AIR CONDITIONING CONTRACTORS,GPC,Not Yet Available
Wakefield MDC,E08000036,30/06/2016,BUSINESS,A,Net (Surplus) / Deficit of Trading Operations,PLUMB NATION,Building Materials,Revenue,160829,73,14/06/2016,56.90,Nil,PLUMBING AND HEATING EQUIPMENT,GPC,Not Yet Available
Wakefield MDC,E08000036,30/06/2016,BUSINESS,A,Net (Surplus) / Deficit of Trading Operations,POLYSTAR PLASTICS,Building Materials,Revenue,160831,226,21/06/2016,97.63,Nil,ACCOUNTING AUDITING AND BOOKKEEPING SERVICES,GPC,Not Yet Available
Wakefield MDC,E08000036,30/06/2016,BUSINESS,A,Net (Surplus) / Deficit of Trading Operations,PORCEL CERAM,Building Materials,Revenue,160818,1685,10/05/2016,8.33,Nil,FLOOR COVERING STORES,GPC,Not Yet Available
Wakefield MDC,E08000036,30/06/2016,BUSINESS,A,Net (Surplus) / Deficit of Trading Operations,RAY GRAHAMS LTD,Building Materials,Revenue,160812,89,12/04/2016,12.12,Nil,BUILDING MATERIALS LUMBER STORES,GPC,Not Yet Available
Wakefield MDC,E08000036,30/06/2016,BUSINESS,A,Net (Surplus) / Deficit of Trading Operations,RS COMPONENTS,Building Materials,Revenue,160826,244,03/06/2016,44.91,Nil,ELECTRICAL PARTS AND EQUIPMENT,GPC,Not Yet Available
Wakefield MDC,E08000036,30/06/2016,BUSINESS,A,Net (Surplus) / Deficit of Trading Operations,RS COMPONENTS,Building Materials,Revenue,160818,442,10/05/2016,87.00,Nil,ELECTRICAL PARTS AND EQUIPMENT,GPC,Not Yet Available
Wakefield MDC,E08000036,30/06/2016,BUSINESS,A,Net (Surplus) / Deficit of Trading Operations,RS-ONLINE,Building Materials,Revenue,160822,691,20/05/2016,11.37,Nil,ELECTRICAL PARTS AND EQUIPMENT,GPC,Not Yet Available
Wakefield MDC,E08000036,30/06/2016,BUSINESS,A,Net (Surplus) / Deficit of Trading Operations,SAWMILL TIMBER UK LTD,Building Materials,Revenue,160827,168,08/06/2016,14.37,Nil,BUILDING MATERIALS LUMBER STORES,GPC,Not Yet Available
Wakefield MDC,E08000036,30/06/2016,BUSINESS,A,Net (Surplus) / Deficit of Trading Operations,SAWMILL TIMBER UK LTD,Building Materials,Revenue,160827,169,08/06/2016,72.50,Nil,BUILDING MATERIALS LUMBER STORES,GPC,Not Yet Available
Wakefield MDC,E08000036,30/06/2016,BUSINESS,A,Net (Surplus) / Deficit of Trading Operations,SCREWFIX,Building Materials,Revenue,160811,704,08/04/2016,11.65,Nil,BUILDING MATERIALS LUMBER STORES,GPC,Not Yet Available
Wakefield MDC,E08000036,30/06/2016,BUSINESS,A,Net (Surplus) / Deficit of Trading Operations,SCREWFIX,Building Materials,Revenue,160829,224,14/06/2016,18.72,Nil,BUILDING MATERIALS LUMBER STORES,GPC,Not Yet Available
Wakefield MDC,E08000036,30/06/2016,BUSINESS,A,Net (Surplus) / Deficit of Trading Operations,SCREWFIX,Building Materials,Revenue,160823,748,25/05/2016,16.66,Nil,BUILDING MATERIALS LUMBER STORES,GPC,Not Yet Available
Wakefield MDC,E08000036,30/06/2016,BUSINESS,A,Net (Surplus) / Deficit of Trading Operations,SCREWFIX,Building Materials,Revenue,160824,747,27/05/2016,10.82,Nil,BUILDING MATERIALS LUMBER STORES,GPC,Not Yet Available
Wakefield MDC,E08000036,30/06/2016,BUSINESS,A,Net (Surplus) / Deficit of Trading Operations,SCREWFIX,Building Materials,Revenue,160824,748,27/05/2016,14.74,Nil,BUILDING MATERIALS LUMBER STORES,GPC,Not Yet Available
Wakefield MDC,E08000036,30/06/2016,BUSINESS,A,Net (Surplus) / Deficit of Trading Operations,SCREWFIX,Building Materials,Revenue,160830,438,17/06/2016,17.82,Nil,BUILDING MATERIALS LUMBER STORES,GPC,Not Yet Available
Wakefield MDC,E08000036,30/06/2016,BUSINESS,A,Net (Surplus) / Deficit of Trading Operations,SCREWFIX,Building Materials,Revenue,160813,527,15/04/2016,8.30,Nil,BUILDING MATERIALS LUMBER STORES,GPC,Not Yet Available
Wakefield MDC,E08000036,30/06/2016,BUSINESS,A,Net (Surplus) / Deficit of Trading Operations,SCREWFIX,Building Materials,Revenue,160831,244,21/06/2016,12.83,Nil,BUILDING MATERIALS LUMBER STORES,GPC,Not Yet Available
Wakefield MDC,E08000036,30/06/2016,BUSINESS,A,Net (Surplus) / Deficit of Trading Operations,SCREWFIX,Building Materials,Revenue,160822,334,20/05/2016,29.16,Nil,BUILDING MATERIALS LUMBER STORES,GPC,Not Yet Available
Wakefield MDC,E08000036,30/06/2016,BUSINESS,A,Net (Surplus) / Deficit of Trading Operations,SCREWFIX,Building Materials,Revenue,160819,555,13/05/2016,2.07,Nil,BUILDING MATERIALS LUMBER STORES,GPC,Not Yet Available
Wakefield MDC,E08000036,30/06/2016,BUSINESS,A,Net (Surplus) / Deficit of Trading Operations,SCREWFIX,Building Materials,Revenue,160822,688,20/05/2016,31.64,Nil,BUILDING MATERIALS LUMBER STORES,GPC,Not Yet Available
Wakefield MDC,E08000036,30/06/2016,BUSINESS,A,Net (Surplus) / Deficit of Trading Operations,SCREWFIX,Building Materials,Revenue,160816,341,26/04/2016,1.46,Nil,BUILDING MATERIALS LUMBER STORES,GPC,Not Yet Available
Wakefield MDC,E08000036,30/06/2016,BUSINESS,A,Net (Surplus) / Deficit of Trading Operations,SCREWFIX,Building Materials,Revenue,160831,281,21/06/2016,2.49,Nil,BUILDING MATERIALS LUMBER STORES,GPC,Not Yet Available
Wakefield MDC,E08000036,30/06/2016,BUSINESS,A,Net (Surplus) / Deficit of Trading Operations,SCREWFIX,Building Materials,Revenue,160814,457,19/04/2016,5.25,Nil,BUILDING MATERIALS LUMBER STORES,GPC,Not Yet Available
Wakefield MDC,E08000036,30/06/2016,BUSINESS,A,Net (Surplus) / Deficit of Trading Operations,SCREWFIX,Building Materials,Revenue,160813,546,15/04/2016,5.82,Nil,BUILDING MATERIALS LUMBER STORES,GPC,Not Yet Available
Wakefield MDC,E08000036,30/06/2016,BUSINESS,A,Net (Surplus) / Deficit of Trading Operations,SCREWFIX,Building Materials,Revenue,160822,449,20/05/2016,3.99,Nil,BUILDING MATERIALS LUMBER STORES,GPC,Not Yet Available
Wakefield MDC,E08000036,30/06/2016,BUSINESS,A,Net (Surplus) / Deficit of Trading Operations,SCREWFIX,Building Materials,Revenue,160822,451,20/05/2016,13.33,Nil,BUILDING MATERIALS LUMBER STORES,GPC,Not Yet Available
Wakefield MDC,E08000036,30/06/2016,BUSINESS,A,Net (Surplus) / Deficit of Trading Operations,SCREWFIX,Building Materials,Revenue,160813,323,15/04/2016,18.32,Nil,BUILDING MATERIALS LUMBER STORES,GPC,Not Yet Available
Wakefield MDC,E08000036,30/06/2016,BUSINESS,A,Net (Surplus) / Deficit of Trading Operations,SCREWFIX,Building Materials,Revenue,160827,668,08/06/2016,166.66,Nil,BUILDING MATERIALS LUMBER STORES,GPC,Not Yet Available
Wakefield MDC,E08000036,30/06/2016,BUSINESS,A,Net (Surplus) / Deficit of Trading Operations,SCREWFIX,Building Materials,Revenue,160830,502,17/06/2016,99.99,Nil,BUILDING MATERIALS LUMBER STORES,GPC,Not Yet Available
Wakefield MDC,E08000036,30/06/2016,BUSINESS,A,Net (Surplus) / Deficit of Trading Operations,SCREWFIX,Building Materials,Revenue,160822,452,20/05/2016,4.58,Nil,BUILDING MATERIALS LUMBER STORES,GPC,Not Yet Available
Wakefield MDC,E08000036,30/06/2016,BUSINESS,A,Net (Surplus) / Deficit of Trading Operations,SCREWFIX,Building Materials,Revenue,160828,193,10/06/2016,39.32,Nil,BUILDING MATERIALS LUMBER STORES,GPC,Not Yet Available
Wakefield MDC,E08000036,30/06/2016,BUSINESS,A,Net (Surplus) / Deficit of Trading Operations,SCREWFIX,Building Materials,Revenue,160831,168,21/06/2016,79.16,Nil,BUILDING MATERIALS LUMBER STORES,GPC,Not Yet Available
Wakefield MDC,E08000036,30/06/2016,BUSINESS,A,Net (Surplus) / Deficit of Trading Operations,SCREWFIX,Building Materials,Revenue,160823,521,25/05/2016,41.66,Nil,BUILDING MATERIALS LUMBER STORES,GPC,Not Yet Available
Wakefield MDC,E08000036,30/06/2016,BUSINESS,A,Net (Surplus) / Deficit of Trading Operations,SCREWFIX,Building Materials,Revenue,160823,348,25/05/2016,41.66,Nil,BUILDING MATERIALS LUMBER STORES,GPC,Not Yet Available
Wakefield MDC,E08000036,30/06/2016,BUSINESS,A,Net (Surplus) / Deficit of Trading Operations,SCREWFIX,Building Materials,Revenue,160823,307,25/05/2016,41.66,Nil,BUILDING MATERIALS LUMBER STORES,GPC,Not Yet Available
Wakefield MDC,E08000036,30/06/2016,BUSINESS,A,Net (Surplus) / Deficit of Trading Operations,SCREWFIX,Building Materials,Revenue,160818,448,10/05/2016,2.49,Nil,BUILDING MATERIALS LUMBER STORES,GPC,Not Yet Available
Wakefield MDC,E08000036,30/06/2016,BUSINESS,A,Net (Surplus) / Deficit of Trading Operations,SCREWFIX,Building Materials,Revenue,160818,614,10/05/2016,9.16,Nil,BUILDING MATERIALS LUMBER STORES,GPC,Not Yet Available
Wakefield MDC,E08000036,30/06/2016,BUSINESS,A,Net (Surplus) / Deficit of Trading Operations,SCREWFIX,Building Materials,Revenue,160831,185,21/06/2016,24.15,Nil,BUILDING MATERIALS LUMBER STORES,GPC,Not Yet Available
Wakefield MDC,E08000036,30/06/2016,BUSINESS,A,Net (Surplus) / Deficit of Trading Operations,SCREWFIX,Building Materials,Revenue,160831,165,21/06/2016,22.07,Nil,BUILDING MATERIALS LUMBER STORES,GPC,Not Yet Available
Wakefield MDC,E08000036,30/06/2016,BUSINESS,A,Net (Surplus) / Deficit of Trading Operations,SCREWFIX,Building Materials,Revenue,160813,528,15/04/2016,3.32,Nil,BUILDING MATERIALS LUMBER STORES,GPC,Not Yet Available
Wakefield MDC,E08000036,30/06/2016,BUSINESS,A,Net (Surplus) / Deficit of Trading Operations,SCREWFIX,Building Materials,Revenue,160824,540,27/05/2016,7.07,Nil,BUILDING MATERIALS LUMBER STORES,GPC,Not Yet Available
Wakefield MDC,E08000036,30/06/2016,BUSINESS,A,Net (Surplus) / Deficit of Trading Operations,SCREWFIX,Building Materials,Revenue,160831,467,21/06/2016,5.73,Nil,BUILDING MATERIALS LUMBER STORES,GPC,Not Yet Available
Wakefield MDC,E08000036,30/06/2016,BUSINESS,A,Net (Surplus) / Deficit of Trading Operations,SCREWFIX,Building Materials,Revenue,160829,260,14/06/2016,8.33,Nil,BUILDING MATERIALS LUMBER STORES,GPC,Not Yet Available
Wakefield MDC,E08000036,30/06/2016,BUSINESS,A,Net (Surplus) / Deficit of Trading Operations,SCREWFIX,Building Materials,Revenue,160834,541,01/07/2016,3.32,Nil,BUILDING MATERIALS LUMBER STORES,GPC,Not Yet Available
Wakefield MDC,E08000036,30/06/2016,BUSINESS,A,Net (Surplus) / Deficit of Trading Operations,SCREWFIX,Building Materials,Revenue,160814,375,19/04/2016,60.79,Nil,BUILDING MATERIALS LUMBER STORES,GPC,Not Yet Available
Wakefield MDC,E08000036,30/06/2016,BUSINESS,A,Net (Surplus) / Deficit of Trading Operations,SCREWFIX,Building Materials,Revenue,160822,545,20/05/2016,33.30,Nil,BUILDING MATERIALS LUMBER STORES,GPC,Not Yet Available
Wakefield MDC,E08000036,30/06/2016,BUSINESS,A,Net (Surplus) / Deficit of Trading Operations,SCREWFIX,Building Materials,Revenue,160822,550,20/05/2016,60.83,Nil,BUILDING MATERIALS LUMBER STORES,GPC,Not Yet Available
Wakefield MDC,E08000036,30/06/2016,BUSINESS,A,Net (Surplus) / Deficit of Trading Operations,SCREWFIX,Building Materials,Revenue,160822,543,20/05/2016,87.32,Nil,BUILDING MATERIALS LUMBER STORES,GPC,Not Yet Available
Wakefield MDC,E08000036,30/06/2016,BUSINESS,A,Net (Surplus) / Deficit of Trading Operations,SCREWFIX,Building Materials,Revenue,160834,331,01/07/2016,8.32,Nil,BUILDING MATERIALS LUMBER STORES,GPC,Not Yet Available
Wakefield MDC,E08000036,30/06/2016,BUSINESS,A,Net (Surplus) / Deficit of Trading Operations,SCREWFIX,Building Materials,Revenue,160834,675,01/07/2016,5.62,Nil,BUILDING MATERIALS LUMBER STORES,GPC,Not Yet Available
Wakefield MDC,E08000036,30/06/2016,BUSINESS,A,Net (Surplus) / Deficit of Trading Operations,SCREWFIX,Building Materials,Revenue,160834,661,01/07/2016,59.98,Nil,BUILDING MATERIALS LUMBER STORES,GPC,Not Yet Available
Wakefield MDC,E08000036,30/06/2016,BUSINESS,A,Net (Surplus) / Deficit of Trading Operations,SCREWFIX,Building Materials,Revenue,160828,318,10/06/2016,18.32,Nil,BUILDING MATERIALS LUMBER STORES,GPC,Not Yet Available
Wakefield MDC,E08000036,30/06/2016,BUSINESS,A,Net (Surplus) / Deficit of Trading Operations,SCREWFIX,Building Materials,Revenue,160828,324,10/06/2016,3.45,Nil,BUILDING MATERIALS LUMBER STORES,GPC,Not Yet Available
Wakefield MDC,E08000036,30/06/2016,BUSINESS,A,Net (Surplus) / Deficit of Trading Operations,SCREWFIX,Building Materials,Revenue,160814,,19/04/2016,-1.00,Nil,BUILDING MATERIALS LUMBER STORES,GPC,Not Yet Available
Wakefield MDC,E08000036,30/06/2016,BUSINESS,A,Net (Surplus) / Deficit of Trading Operations,SCREWFIX,Building Materials,Revenue,160811,310,08/04/2016,9.99,Nil,BUILDING MATERIALS LUMBER STORES,GPC,Not Yet Available
Wakefield MDC,E08000036,30/06/2016,BUSINESS,A,Net (Surplus) / Deficit of Trading Operations,SCREWFIX,Building Materials,Revenue,160828,393,10/06/2016,7.45,Nil,BUILDING MATERIALS LUMBER STORES,GPC,Not Yet Available
Wakefield MDC,E08000036,30/06/2016,BUSINESS,A,Net (Surplus) / Deficit of Trading Operations,SCREWFIX,Building Materials,Revenue,160833,382,28/06/2016,49.98,Nil,BUILDING MATERIALS LUMBER STORES,GPC,Not Yet Available
Wakefield MDC,E08000036,30/06/2016,BUSINESS,A,Net (Surplus) / Deficit of Trading Operations,SCREWFIX,Building Materials,Revenue,160816,339,26/04/2016,15.75,Nil,BUILDING MATERIALS LUMBER STORES,GPC,Not Yet Available
Wakefield MDC,E08000036,30/06/2016,BUSINESS,A,Net (Surplus) / Deficit of Trading Operations,SCREWFIX,Building Materials,Revenue,160829,342,14/06/2016,54.16,Nil,BUILDING MATERIALS LUMBER STORES,GPC,Not Yet Available
Wakefield MDC,E08000036,30/06/2016,BUSINESS,A,Net (Surplus) / Deficit of Trading Operations,SIG,Building Materials,Revenue,160829,135,14/06/2016,3799.72,Nil,INDUSTRIAL SUPPLIES NOT ELSEWHERE CLASSIFIED,GPC,Not Yet Available
Wakefield MDC,E08000036,30/06/2016,BUSINESS,A,Net (Surplus) / Deficit of Trading Operations,SIG,Building Materials,Revenue,160818,1688,10/05/2016,432.00,Nil,INDUSTRIAL SUPPLIES NOT ELSEWHERE CLASSIFIED,GPC,Not Yet Available
Wakefield MDC,E08000036,30/06/2016,BUSINESS,A,Net (Surplus) / Deficit of Trading Operations,SIG,Building Materials,Revenue,160811,645,08/04/2016,1533.60,Nil,INDUSTRIAL SUPPLIES NOT ELSEWHERE CLASSIFIED,GPC,Not Yet Available
Wakefield MDC,E08000036,30/06/2016,BUSINESS,A,Net (Surplus) / Deficit of Trading Operations,SIG,Building Materials,Revenue,160818,934,10/05/2016,1849.70,Nil,INDUSTRIAL SUPPLIES NOT ELSEWHERE CLASSIFIED,GPC,Not Yet Available
Wakefield MDC,E08000036,30/06/2016,BUSINESS,A,Net (Surplus) / Deficit of Trading Operations,SIG,Building Materials,Revenue,160814,459,19/04/2016,16.00,Nil,INDUSTRIAL SUPPLIES NOT ELSEWHERE CLASSIFIED,GPC,Not Yet Available
Wakefield MDC,E08000036,30/06/2016,BUSINESS,A,Net (Surplus) / Deficit of Trading Operations,SIG,Building Materials,Revenue,160831,426,21/06/2016,47.47,Nil,INDUSTRIAL SUPPLIES NOT ELSEWHERE CLASSIFIED,GPC,Not Yet Available
Wakefield MDC,E08000036,30/06/2016,BUSINESS,A,Net (Surplus) / Deficit of Trading Operations,SIG,Building Materials,Revenue,160813,447,15/04/2016,56.46,Nil,INDUSTRIAL SUPPLIES NOT ELSEWHERE CLASSIFIED,GPC,Not Yet Available
Wakefield MDC,E08000036,30/06/2016,BUSINESS,A,Net (Surplus) / Deficit of Trading Operations,SIG,Building Materials,Revenue,160811,403,08/04/2016,99.42,Nil,INDUSTRIAL SUPPLIES NOT ELSEWHERE CLASSIFIED,GPC,Not Yet Available
Wakefield MDC,E08000036,30/06/2016,BUSINESS,A,Net (Surplus) / Deficit of Trading Operations,SPARES 2 YOU,Building Materials,Revenue,160822,687,20/05/2016,202.07,Nil,ELECTRICAL PARTS AND EQUIPMENT,GPC,Not Yet Available
Wakefield MDC,E08000036,30/06/2016,BUSINESS,A,Net (Surplus) / Deficit of Trading Operations,SPRING GREEN NURSERIES,Building Materials,Revenue,160827,523,08/06/2016,185.00,Nil,LAWN AND GARDEN SUPPLY STORES,GPC,Not Yet Available
Wakefield MDC,E08000036,30/06/2016,BUSINESS,A,Net (Surplus) / Deficit of Trading Operations,SWIFT DIRECT BLINDS LTD,Building Materials,Revenue,160822,331,20/05/2016,172.60,Nil,DRAPERY UPOLSTERY AND WINDOW COVERINGS STORES,GPC,Not Yet Available
Wakefield MDC,E08000036,30/06/2016,BUSINESS,A,Net (Surplus) / Deficit of Trading Operations,SWIFT DIRECT BLINDS LTD,Building Materials,Revenue,160826,395,03/06/2016,73.24,Nil,DRAPERY UPOLSTERY AND WINDOW COVERINGS STORES,GPC,Not Yet Available
Wakefield MDC,E08000036,30/06/2016,BUSINESS,A,Net (Surplus) / Deficit of Trading Operations,SWIFT DIRECT BLINDS LTD,Building Materials,Revenue,160826,317,03/06/2016,67.58,Nil,DRAPERY UPOLSTERY AND WINDOW COVERINGS STORES,GPC,Not Yet Available
Wakefield MDC,E08000036,30/06/2016,BUSINESS,A,Net (Surplus) / Deficit of Trading Operations,TACKLE 2 U,Building Materials,Revenue,160823,152,25/05/2016,67.50,Nil,SPORTING GOODS STORES,GPC,Not Yet Available
Wakefield MDC,E08000036,30/06/2016,BUSINESS,A,Net (Surplus) / Deficit of Trading Operations,TAP BOXES UK,Building Materials,Revenue,160831,449,21/06/2016,217.86,Nil,HOME SUPPLY WAREHOUSE STORES,GPC,Not Yet Available
Wakefield MDC,E08000036,30/06/2016,BUSINESS,A,Net (Surplus) / Deficit of Trading Operations,TAP BOXES UK,Building Materials,Revenue,160831,261,21/06/2016,208.41,Nil,HOME SUPPLY WAREHOUSE STORES,GPC,Not Yet Available
Wakefield MDC,E08000036,30/06/2016,BUSINESS,A,Net (Surplus) / Deficit of Trading Operations,TAP BOXES UK,Building Materials,Revenue,160823,200,25/05/2016,216.25,Nil,HOME SUPPLY WAREHOUSE STORES,GPC,Not Yet Available
Wakefield MDC,E08000036,30/06/2016,BUSINESS,A,Net (Surplus) / Deficit of Trading Operations,TAP BOXES UK,Building Materials,Revenue,160823,201,25/05/2016,216.25,Nil,HOME SUPPLY WAREHOUSE STORES,GPC,Not Yet Available
Wakefield MDC,E08000036,30/06/2016,BUSINESS,A,Net (Surplus) / Deficit of Trading Operations,TAP BOXES UK,Building Materials,Revenue,160831,565,21/06/2016,259.50,Nil,HOME SUPPLY WAREHOUSE STORES,GPC,Not Yet Available
Wakefield MDC,E08000036,30/06/2016,BUSINESS,A,Net (Surplus) / Deficit of Trading Operations,TAP BOXES UK,Building Materials,Revenue,160831,566,21/06/2016,259.50,Nil,HOME SUPPLY WAREHOUSE STORES,GPC,Not Yet Available
Wakefield MDC,E08000036,30/06/2016,BUSINESS,A,Net (Surplus) / Deficit of Trading Operations,TAP BOXES UK,Building Materials,Revenue,160823,483,25/05/2016,223.86,Nil,HOME SUPPLY WAREHOUSE STORES,GPC,Not Yet Available
Wakefield MDC,E08000036,30/06/2016,BUSINESS,A,Net (Surplus) / Deficit of Trading Operations,TAP BOXES UK,Building Materials,Revenue,160831,526,21/06/2016,217.86,Nil,HOME SUPPLY WAREHOUSE STORES,GPC,Not Yet Available
Wakefield MDC,E08000036,30/06/2016,BUSINESS,A,Net (Surplus) / Deficit of Trading Operations,TASKERS UK LTD,Building Materials,Revenue,160818,549,10/05/2016,153.97,Nil,ELECTRICAL PARTS AND EQUIPMENT,GPC,Not Yet Available
Wakefield MDC,E08000036,30/06/2016,BUSINESS,A,Net (Surplus) / Deficit of Trading Operations,TESCO STORES,Building Materials,Revenue,160818,1680,10/05/2016,1.75,Nil,GROCERY STORES SUPERMARKETS,GPC,Not Yet Available
Wakefield MDC,E08000036,30/06/2016,BUSINESS,A,Net (Surplus) / Deficit of Trading Operations,TILE INN,Building Materials,Revenue,160818,924,10/05/2016,33.82,Nil,GLASS PAINT WALLPAPER STORES,GPC,Not Yet Available
Wakefield MDC,E08000036,30/06/2016,BUSINESS,A,Net (Surplus) / Deficit of Trading Operations,TILE INN,Building Materials,Revenue,160814,454,19/04/2016,8.10,Nil,GLASS PAINT WALLPAPER STORES,GPC,Not Yet Available
Wakefield MDC,E08000036,30/06/2016,BUSINESS,A,Net (Surplus) / Deficit of Trading Operations,TILE INN,Building Materials,Revenue,160818,1023,10/05/2016,57.47,Nil,GLASS PAINT WALLPAPER STORES,GPC,Not Yet Available
Wakefield MDC,E08000036,30/06/2016,BUSINESS,A,Net (Surplus) / Deficit of Trading Operations,TIMBER WORLD,Building Materials,Revenue,160824,766,27/05/2016,91.39,Nil,DISCOUNT STORES,GPC,Not Yet Available
Wakefield MDC,E08000036,30/06/2016,BUSINESS,A,Net (Surplus) / Deficit of Trading Operations,TOOL STATION LTD,Building Materials,Revenue,160812,92,12/04/2016,10.23,Nil,HARDWARE STORES,GPC,Not Yet Available
Wakefield MDC,E08000036,30/06/2016,BUSINESS,A,Net (Surplus) / Deficit of Trading Operations,TOOL STATION LTD,Building Materials,Revenue,160829,172,14/06/2016,19.12,Nil,HARDWARE STORES,GPC,Not Yet Available
Wakefield MDC,E08000036,30/06/2016,BUSINESS,A,Net (Surplus) / Deficit of Trading Operations,TRADERS WAREHOUSE,Building Materials,Revenue,160827,4,08/06/2016,129.07,Nil,MISCELLANEOUS AND SPECIALTY RETAIL STORES,GPC,Not Yet Available
Wakefield MDC,E08000036,30/06/2016,BUSINESS,A,Net (Surplus) / Deficit of Trading Operations,TRAVIS PERKINS,Building Materials,Revenue,160832,660,24/06/2016,-0.84,Nil,BUILDING MATERIALS LUMBER STORES,GPC,Not Yet Available
Wakefield MDC,E08000036,30/06/2016,BUSINESS,A,Net (Surplus) / Deficit of Trading Operations,TRAVIS PERKINS,Building Materials,Revenue,160832,661,24/06/2016,5.04,Nil,BUILDING MATERIALS LUMBER STORES,GPC,Not Yet Available
Wakefield MDC,E08000036,30/06/2016,BUSINESS,A,Net (Surplus) / Deficit of Trading Operations,TRAVIS PERKINS,Building Materials,Revenue,160834,569,01/07/2016,-1.35,Nil,BUILDING MATERIALS LUMBER STORES,GPC,Not Yet Available
Wakefield MDC,E08000036,30/06/2016,BUSINESS,A,Net (Surplus) / Deficit of Trading Operations,TRAVIS PERKINS,Building Materials,Revenue,160834,570,01/07/2016,8.08,Nil,BUILDING MATERIALS LUMBER STORES,GPC,Not Yet Available
Wakefield MDC,E08000036,30/06/2016,BUSINESS,A,Net (Surplus) / Deficit of Trading Operations,TRAVIS PERKINS,Building Materials,Revenue,160811,602,08/04/2016,-2.56,Nil,BUILDING MATERIALS LUMBER STORES,GPC,Not Yet Available
Wakefield MDC,E08000036,30/06/2016,BUSINESS,A,Net (Surplus) / Deficit of Trading Operations,TRAVIS PERKINS,Building Materials,Revenue,160811,603,08/04/2016,15.37,Nil,BUILDING MATERIALS LUMBER STORES,GPC,Not Yet Available
Wakefield MDC,E08000036,30/06/2016,BUSINESS,A,Net (Surplus) / Deficit of Trading Operations,TRAVIS PERKINS,Building Materials,Revenue,160829,219,14/06/2016,-6.70,Nil,BUILDING MATERIALS LUMBER STORES,GPC,Not Yet Available
Wakefield MDC,E08000036,30/06/2016,BUSINESS,A,Net (Surplus) / Deficit of Trading Operations,TRAVIS PERKINS,Building Materials,Revenue,160829,220,14/06/2016,40.22,Nil,BUILDING MATERIALS LUMBER STORES,GPC,Not Yet Available
Wakefield MDC,E08000036,30/06/2016,BUSINESS,A,Net (Surplus) / Deficit of Trading Operations,TRAVIS PERKINS,Building Materials,Revenue,160827,53,08/06/2016,80.24,Nil,BUILDING MATERIALS LUMBER STORES,GPC,Not Yet Available
Wakefield MDC,E08000036,30/06/2016,BUSINESS,A,Net (Surplus) / Deficit of Trading Operations,TRAVIS PERKINS,Building Materials,Revenue,160827,182,08/06/2016,79.92,Nil,BUILDING MATERIALS LUMBER STORES,GPC,Not Yet Available
Wakefield MDC,E08000036,30/06/2016,BUSINESS,A,Net (Surplus) / Deficit of Trading Operations,TRAVIS PERKINS,Building Materials,Revenue,160811,589,08/04/2016,16.08,Nil,BUILDING MATERIALS LUMBER STORES,GPC,Not Yet Available
Wakefield MDC,E08000036,30/06/2016,BUSINESS,A,Net (Surplus) / Deficit of Trading Operations,TRAVIS PERKINS,Building Materials,Revenue,160827,124,08/06/2016,39.76,Nil,BUILDING MATERIALS LUMBER STORES,GPC,Not Yet Available
Wakefield MDC,E08000036,30/06/2016,BUSINESS,A,Net (Surplus) / Deficit of Trading Operations,TRAVIS PERKINS,Building Materials,Revenue,160827,135,08/06/2016,51.78,Nil,BUILDING MATERIALS LUMBER STORES,GPC,Not Yet Available
Wakefield MDC,E08000036,30/06/2016,BUSINESS,A,Net (Surplus) / Deficit of Trading Operations,TRAVIS PERKINS,Building Materials,Revenue,160815,569,22/04/2016,-2.66,Nil,BUILDING MATERIALS LUMBER STORES,GPC,Not Yet Available
Wakefield MDC,E08000036,30/06/2016,BUSINESS,A,Net (Surplus) / Deficit of Trading Operations,TRAVIS PERKINS,Building Materials,Revenue,160815,570,22/04/2016,-0.81,Nil,BUILDING MATERIALS LUMBER STORES,GPC,Not Yet Available
Wakefield MDC,E08000036,30/06/2016,BUSINESS,A,Net (Surplus) / Deficit of Trading Operations,TRAVIS PERKINS,Building Materials,Revenue,160811,652,08/04/2016,-2.66,Nil,BUILDING MATERIALS LUMBER STORES,GPC,Not Yet Available
Wakefield MDC,E08000036,30/06/2016,BUSINESS,A,Net (Surplus) / Deficit of Trading Operations,TRAVIS PERKINS,Building Materials,Revenue,160811,653,08/04/2016,-0.44,Nil,BUILDING MATERIALS LUMBER STORES,GPC,Not Yet Available
Wakefield MDC,E08000036,30/06/2016,BUSINESS,A,Net (Surplus) / Deficit of Trading Operations,TRAVIS PERKINS,Building Materials,Revenue,160811,654,08/04/2016,-0.84,Nil,BUILDING MATERIALS LUMBER STORES,GPC,Not Yet Available
Wakefield MDC,E08000036,30/06/2016,BUSINESS,A,Net (Surplus) / Deficit of Trading Operations,TRAVIS PERKINS,Building Materials,Revenue,160811,655,08/04/2016,-0.81,Nil,BUILDING MATERIALS LUMBER STORES,GPC,Not Yet Available
Wakefield MDC,E08000036,30/06/2016,BUSINESS,A,Net (Surplus) / Deficit of Trading Operations,TRAVIS PERKINS,Building Materials,Revenue,160811,656,08/04/2016,-1.96,Nil,BUILDING MATERIALS LUMBER STORES,GPC,Not Yet Available
Wakefield MDC,E08000036,30/06/2016,BUSINESS,A,Net (Surplus) / Deficit of Trading Operations,TRAVIS PERKINS,Building Materials,Revenue,160811,659,08/04/2016,49.52,Nil,BUILDING MATERIALS LUMBER STORES,GPC,Not Yet Available
Wakefield MDC,E08000036,30/06/2016,BUSINESS,A,Net (Surplus) / Deficit of Trading Operations,TRAVIS PERKINS,Building Materials,Revenue,160811,657,08/04/2016,-0.45,Nil,BUILDING MATERIALS LUMBER STORES,GPC,Not Yet Available
Wakefield MDC,E08000036,30/06/2016,BUSINESS,A,Net (Surplus) / Deficit of Trading Operations,TRAVIS PERKINS,Building Materials,Revenue,160815,571,22/04/2016,-0.84,Nil,BUILDING MATERIALS LUMBER STORES,GPC,Not Yet Available
Wakefield MDC,E08000036,30/06/2016,BUSINESS,A,Net (Surplus) / Deficit of Trading Operations,TRAVIS PERKINS,Building Materials,Revenue,160815,572,22/04/2016,-1.42,Nil,BUILDING MATERIALS LUMBER STORES,GPC,Not Yet Available
Wakefield MDC,E08000036,30/06/2016,BUSINESS,A,Net (Surplus) / Deficit of Trading Operations,TRAVIS PERKINS,Building Materials,Revenue,160815,573,22/04/2016,-0.76,Nil,BUILDING MATERIALS LUMBER STORES,GPC,Not Yet Available
Wakefield MDC,E08000036,30/06/2016,BUSINESS,A,Net (Surplus) / Deficit of Trading Operations,TRAVIS PERKINS,Building Materials,Revenue,160815,574,22/04/2016,-0.45,Nil,BUILDING MATERIALS LUMBER STORES,GPC,Not Yet Available
Wakefield MDC,E08000036,30/06/2016,BUSINESS,A,Net (Surplus) / Deficit of Trading Operations,TRAVIS PERKINS,Building Materials,Revenue,160815,575,22/04/2016,41.65,Nil,BUILDING MATERIALS LUMBER STORES,GPC,Not Yet Available
Wakefield MDC,E08000036,30/06/2016,BUSINESS,A,Net (Surplus) / Deficit of Trading Operations,TRAVIS PERKINS,Building Materials,Revenue,160816,441,26/04/2016,-1.38,Nil,BUILDING MATERIALS LUMBER STORES,GPC,Not Yet Available
Wakefield MDC,E08000036,30/06/2016,BUSINESS,A,Net (Surplus) / Deficit of Trading Operations,TRAVIS PERKINS,Building Materials,Revenue,160816,442,26/04/2016,8.26,Nil,BUILDING MATERIALS LUMBER STORES,GPC,Not Yet Available
Wakefield MDC,E08000036,30/06/2016,BUSINESS,A,Net (Surplus) / Deficit of Trading Operations,TRAVIS PERKINS,Building Materials,Revenue,160831,286,21/06/2016,31.44,Nil,BUILDING MATERIALS LUMBER STORES,GPC,Not Yet Available
Wakefield MDC,E08000036,30/06/2016,BUSINESS,A,Net (Surplus) / Deficit of Trading Operations,TRAVIS PERKINS,Building Materials,Revenue,160831,567,21/06/2016,40.38,Nil,BUILDING MATERIALS LUMBER STORES,GPC,Not Yet Available
Wakefield MDC,E08000036,30/06/2016,BUSINESS,A,Net (Surplus) / Deficit of Trading Operations,TRAVIS PERKINS,Building Materials,Revenue,160831,407,21/06/2016,12.56,Nil,BUILDING MATERIALS LUMBER STORES,GPC,Not Yet Available
Wakefield MDC,E08000036,30/06/2016,BUSINESS,A,Net (Surplus) / Deficit of Trading Operations,TRAVIS PERKINS,Building Materials,Revenue,160814,455,19/04/2016,17.15,Nil,BUILDING MATERIALS LUMBER STORES,GPC,Not Yet Available
Wakefield MDC,E08000036,30/06/2016,BUSINESS,A,Net (Surplus) / Deficit of Trading Operations,TRAVIS PERKINS,Building Materials,Revenue,160834,327,01/07/2016,17.99,Nil,BUILDING MATERIALS LUMBER STORES,GPC,Not Yet Available
Wakefield MDC,E08000036,30/06/2016,BUSINESS,A,Net (Surplus) / Deficit of Trading Operations,TRAVIS PERKINS,Building Materials,Revenue,160834,333,01/07/2016,21.90,Nil,BUILDING MATERIALS LUMBER STORES,GPC,Not Yet Available
Wakefield MDC,E08000036,30/06/2016,BUSINESS,A,Net (Surplus) / Deficit of Trading Operations,TRAVIS PERKINS,Building Materials,Revenue,160814,449,19/04/2016,67.25,Nil,BUILDING MATERIALS LUMBER STORES,GPC,Not Yet Available
Wakefield MDC,E08000036,30/06/2016,BUSINESS,A,Net (Surplus) / Deficit of Trading Operations,TRAVIS PERKINS,Building Materials,Revenue,160826,382,03/06/2016,12.04,Nil,BUILDING MATERIALS LUMBER STORES,GPC,Not Yet Available
Wakefield MDC,E08000036,30/06/2016,BUSINESS,A,Net (Surplus) / Deficit of Trading Operations,TRAVIS PERKINS,Building Materials,Revenue,160822,395,20/05/2016,190.00,Nil,BUILDING MATERIALS LUMBER STORES,GPC,Not Yet Available
Wakefield MDC,E08000036,30/06/2016,BUSINESS,A,Net (Surplus) / Deficit of Trading Operations,TRAVIS PERKINS,Building Materials,Revenue,160822,626,20/05/2016,27.52,Nil,BUILDING MATERIALS LUMBER STORES,GPC,Not Yet Available
Wakefield MDC,E08000036,30/06/2016,BUSINESS,A,Net (Surplus) / Deficit of Trading Operations,TRAVIS PERKINS,Building Materials,Revenue,160818,901,10/05/2016,23.52,Nil,BUILDING MATERIALS LUMBER STORES,GPC,Not Yet Available
Wakefield MDC,E08000036,30/06/2016,BUSINESS,A,Net (Surplus) / Deficit of Trading Operations,TRAVIS PERKINS,Building Materials,Revenue,160828,90,10/06/2016,-1.01,Nil,BUILDING MATERIALS LUMBER STORES,GPC,Not Yet Available
Wakefield MDC,E08000036,30/06/2016,BUSINESS,A,Net (Surplus) / Deficit of Trading Operations,TRAVIS PERKINS,Building Materials,Revenue,160828,91,10/06/2016,-1.98,Nil,BUILDING MATERIALS LUMBER STORES,GPC,Not Yet Available
Wakefield MDC,E08000036,30/06/2016,BUSINESS,A,Net (Surplus) / Deficit of Trading Operations,TRAVIS PERKINS,Building Materials,Revenue,160828,92,10/06/2016,17.98,Nil,BUILDING MATERIALS LUMBER STORES,GPC,Not Yet Available
Wakefield MDC,E08000036,30/06/2016,BUSINESS,A,Net (Surplus) / Deficit of Trading Operations,TRAVIS PERKINS,Building Materials,Revenue,160818,445,10/05/2016,19.95,Nil,BUILDING MATERIALS LUMBER STORES,GPC,Not Yet Available
Wakefield MDC,E08000036,30/06/2016,BUSINESS,A,Net (Surplus) / Deficit of Trading Operations,VIKING DIRECT,Building Materials,Revenue,160824,355,27/05/2016,259.00,Nil,STATIONERY/OFFICE SUPPLIES/PRINTING & WRITING PAP.,GPC,Not Yet Available
Wakefield MDC,E08000036,30/06/2016,BUSINESS,A,Net (Surplus) / Deficit of Trading Operations,W G & A CO.LTD,Building Materials,Revenue,160822,706,20/05/2016,33.33,Nil,HARDWARE STORES,GPC,Not Yet Available
Wakefield MDC,E08000036,30/06/2016,BUSINESS,A,Net (Surplus) / Deficit of Trading Operations,W G & A CO.LTD,Building Materials,Revenue,160812,59,12/04/2016,34.02,Nil,HARDWARE STORES,GPC,Not Yet Available
Wakefield MDC,E08000036,30/06/2016,BUSINESS,A,Net (Surplus) / Deficit of Trading Operations,WAKEFIELD FASCIA COMPANY,Building Materials,Revenue,160829,344,14/06/2016,54.54,Nil,ROOFING AND SIDING SHEET METAL WORK CONTRACTORS,GPC,Not Yet Available
Wakefield MDC,E08000036,30/06/2016,BUSINESS,A,Net (Surplus) / Deficit of Trading Operations,WAKEFIELD FLOORCARE,Building Materials,Revenue,160823,559,25/05/2016,29.50,Nil,ELECTRICAL PARTS AND EQUIPMENT,GPC,Not Yet Available
Wakefield MDC,E08000036,30/06/2016,BUSINESS,A,Net (Surplus) / Deficit of Trading Operations,WAKEFIELD WELDING CENTRE,Building Materials,Revenue,160831,507,21/06/2016,118.90,Nil,MISCELLANEOUS AND SPECIALTY RETAIL STORES,GPC,Not Yet Available
Wakefield MDC,E08000036,30/06/2016,BUSINESS,A,Net (Surplus) / Deficit of Trading Operations,WAKEFIELD WELDING CENTRE,Building Materials,Revenue,160831,167,21/06/2016,48.00,Nil,MISCELLANEOUS AND SPECIALTY RETAIL STORES,GPC,Not Yet Available
Wakefield MDC,E08000036,30/06/2016,BUSINESS,A,Net (Surplus) / Deficit of Trading Operations,WAKEFIELD WELDING CENTRE,Building Materials,Revenue,160826,316,03/06/2016,45.00,Nil,MISCELLANEOUS AND SPECIALTY RETAIL STORES,GPC,Not Yet Available
Wakefield MDC,E08000036,30/06/2016,BUSINESS,A,Net (Surplus) / Deficit of Trading Operations,WARDS OF YORK,Building Materials,Revenue,160814,415,19/04/2016,99.35,Nil,INDUSTRIAL SUPPLIES NOT ELSEWHERE CLASSIFIED,GPC,Not Yet Available
Wakefield MDC,E08000036,30/06/2016,BUSINESS,A,Net (Surplus) / Deficit of Trading Operations,WARDS OF YORK,Building Materials,Revenue,160823,591,25/05/2016,325.00,Nil,INDUSTRIAL SUPPLIES NOT ELSEWHERE CLASSIFIED,GPC,Not Yet Available
Wakefield MDC,E08000036,30/06/2016,BUSINESS,A,Net (Surplus) / Deficit of Trading Operations,WESTBURY FILTERMAT,Building Materials,Revenue,160827,636,08/06/2016,75.92,Nil,HEATING PLUMBING AIR CONDITIONING CONTRACTORS,GPC,Not Yet Available
Wakefield MDC,E08000036,30/06/2016,BUSINESS,A,Net (Surplus) / Deficit of Trading Operations,WICKES,Building Materials,Revenue,160818,1653,10/05/2016,5.82,Nil,BUILDING MATERIALS LUMBER STORES,GPC,Not Yet Available
Wakefield MDC,E08000036,30/06/2016,BUSINESS,A,Net (Surplus) / Deficit of Trading Operations,WICKES,Building Materials,Revenue,160829,175,14/06/2016,5.82,Nil,BUILDING MATERIALS LUMBER STORES,GPC,Not Yet Available
Wakefield MDC,E08000036,30/06/2016,BUSINESS,A,Net (Surplus) / Deficit of Trading Operations,WICKES,Building Materials,Revenue,160832,709,24/06/2016,17.45,Nil,BUILDING MATERIALS LUMBER STORES,GPC,Not Yet Available
Wakefield MDC,E08000036,30/06/2016,BUSINESS,A,Net (Surplus) / Deficit of Trading Operations,WICKES,Building Materials,Revenue,160819,586,13/05/2016,33.29,Nil,BUILDING MATERIALS LUMBER STORES,GPC,Not Yet Available
Wakefield MDC,E08000036,30/06/2016,BUSINESS,A,Net (Surplus) / Deficit of Trading Operations,WICKES,Building Materials,Revenue,160829,249,14/06/2016,32.72,Nil,BUILDING MATERIALS LUMBER STORES,GPC,Not Yet Available
Wakefield MDC,E08000036,30/06/2016,BUSINESS,A,Net (Surplus) / Deficit of Trading Operations,WICKES,Building Materials,Revenue,160830,478,17/06/2016,118.59,Nil,HOME SUPPLY WAREHOUSE STORES,GPC,Not Yet Available
Wakefield MDC,E08000036,30/06/2016,BUSINESS,A,Net (Surplus) / Deficit of Trading Operations,WICKES,Building Materials,Revenue,160829,226,14/06/2016,9.32,Nil,HOME SUPPLY WAREHOUSE STORES,GPC,Not Yet Available
Wakefield MDC,E08000036,30/06/2016,BUSINESS,A,Net (Surplus) / Deficit of Trading Operations,WICKES,Building Materials,Revenue,160812,86,12/04/2016,7.82,Nil,HOME SUPPLY WAREHOUSE STORES,GPC,Not Yet Available
Wakefield MDC,E08000036,30/06/2016,BUSINESS,A,Net (Surplus) / Deficit of Trading Operations,WICKES,Building Materials,Revenue,160824,305,27/05/2016,9.16,Nil,HOME SUPPLY WAREHOUSE STORES,GPC,Not Yet Available
Wakefield MDC,E08000036,30/06/2016,BUSINESS,A,Net (Surplus) / Deficit of Trading Operations,WICKES,Building Materials,Revenue,160826,353,03/06/2016,24.97,Nil,HOME SUPPLY WAREHOUSE STORES,GPC,Not Yet Available
Wakefield MDC,E08000036,30/06/2016,BUSINESS,A,Net (Surplus) / Deficit of Trading Operations,YESSS ELECTRICAL,Building Materials,Revenue,160811,481,08/04/2016,17.01,Nil,ELECTRICAL PARTS AND EQUIPMENT,GPC,Not Yet Available
Wakefield MDC,E08000036,30/06/2016,CHILDYOU,4,Children�s and Education Services,B & Q,Bulbs / Plants / Trees,Revenue,160816,360,26/04/2016,38.56,Nil,BUILDING MATERIALS LUMBER STORES,GPC,Not Yet Available
Wakefield MDC,E08000036,30/06/2016,REGENCULT,M,Environmental and Regulatory Services,HAMPSONS PLANTWORLD LTD,Bulbs / Plants / Trees,Revenue,160816,37,26/04/2016,16.66,Nil,LAWN AND GARDEN SUPPLY STORES,GPC,Not Yet Available
Wakefield MDC,E08000036,30/06/2016,CHILDYOU,4,Children�s and Education Services,MOLES SEEDS,Bulbs / Plants / Trees,Revenue,160818,622,10/05/2016,19.21,Nil,FLORIST SUPPLIESNURSERY STOCK & FLOWERS,GPC,Not Yet Available
Wakefield MDC,E08000036,30/06/2016,CHILDYOU,4,Children�s and Education Services,SPRING GREEN NURSERIES,Bulbs / Plants / Trees,Revenue,160824,211,27/05/2016,69.00,Nil,LAWN AND GARDEN SUPPLY STORES,GPC,Not Yet Available
Wakefield MDC,E08000036,30/06/2016,REGENCULT,M,Environmental and Regulatory Services,SPRING GREEN NURSERIES,Bulbs / Plants / Trees,Revenue,160816,255,26/04/2016,25.00,Nil,LAWN AND GARDEN SUPPLY STORES,GPC,Not Yet Available
Wakefield MDC,E08000036,30/06/2016,BUSINESS,8,Corporate and Democratic Core,BROWNS DRY CLEANERS LTD,Civic Gifts / Hospitality,Revenue,160834,20,01/07/2016,14.95,Nil,DRY CLEANERS,GPC,Not Yet Available
Wakefield MDC,E08000036,30/06/2016,BUSINESS,8,Corporate and Democratic Core,BROWNS DRY CLEANERS LTD,Civic Gifts / Hospitality,Revenue,160834,13,01/07/2016,29.70,Nil,DRY CLEANERS,GPC,Not Yet Available
Wakefield MDC,E08000036,30/06/2016,BUSINESS,8,Corporate and Democratic Core,BROWNS DRY CLEANERS LTD,Civic Gifts / Hospitality,Revenue,160834,43,01/07/2016,7.95,Nil,DRY CLEANERS,GPC,Not Yet Available
Wakefield MDC,E08000036,30/06/2016,BUSINESS,8,Corporate and Democratic Core,CATHEDRAL,Civic Gifts / Hospitality,Revenue,160834,170,01/07/2016,30.00,Nil,BOOK STORES,GPC,Not Yet Available
Wakefield MDC,E08000036,30/06/2016,BUSINESS,8,Corporate and Democratic Core,CO SIGNS,Civic Gifts / Hospitality,Revenue,160834,8,01/07/2016,14.78,Nil,CHEMICALS/ALLIED PRODUCTS NOT ELSEWHERE CLASSIFIED,GPC,Not Yet Available
Wakefield MDC,E08000036,30/06/2016,BUSINESS,8,Corporate and Democratic Core,COUNTRY BASKETS,Civic Gifts / Hospitality,Revenue,160834,40,01/07/2016,162.74,Nil,FLORIST SUPPLIESNURSERY STOCK & FLOWERS,GPC,Not Yet Available
Wakefield MDC,E08000036,30/06/2016,BUSINESS,8,Corporate and Democratic Core,DAVID BROWN JEWELLERS,Civic Gifts / Hospitality,Revenue,160834,66,01/07/2016,28.00,Nil,CLOCK JEWELRY WATCH AND SILVERWARE STORE,GPC,Not Yet Available
Wakefield MDC,E08000036,30/06/2016,BUSINESS,8,Corporate and Democratic Core,GOODMANS,Civic Gifts / Hospitality,Revenue,160814,37,19/04/2016,214.97,Nil,AUTO & TRUCK DLRS-SALESSVC REPRSPRTS & LEASING,GPC,Not Yet Available
Wakefield MDC,E08000036,30/06/2016,BUSINESS,8,Corporate and Democratic Core,HAMPSONS PLANTWORLD LTD,Civic Gifts / Hospitality,Revenue,160834,164,01/07/2016,14.00,Nil,LAWN AND GARDEN SUPPLY STORES,GPC,Not Yet Available
Wakefield MDC,E08000036,30/06/2016,BUSINESS,8,Corporate and Democratic Core,MARKS & SPENCER PLC,Civic Gifts / Hospitality,Revenue,160834,180,01/07/2016,24.00,Nil,GROCERY STORES SUPERMARKETS,GPC,Not Yet Available
Wakefield MDC,E08000036,30/06/2016,BUSINESS,8,Corporate and Democratic Core,MARKS & SPENCER PLC,Civic Gifts / Hospitality,Revenue,160815,38,22/04/2016,8.40,Nil,GROCERY STORES SUPERMARKETS,GPC,Not Yet Available
Wakefield MDC,E08000036,30/06/2016,BUSINESS,8,Corporate and Democratic Core,SAINSBURYS,Civic Gifts / Hospitality,Revenue,160815,26,22/04/2016,11.00,Nil,GROCERY STORES SUPERMARKETS,GPC,Not Yet Available
Wakefield MDC,E08000036,30/06/2016,BUSINESS,8,Corporate and Democratic Core,SAINSBURYS,Civic Gifts / Hospitality,Revenue,160834,6,01/07/2016,32.10,Nil,GROCERY STORES SUPERMARKETS,GPC,Not Yet Available
Wakefield MDC,E08000036,30/06/2016,BUSINESS,8,Corporate and Democratic Core,SAINSBURYS,Civic Gifts / Hospitality,Revenue,160834,219,01/07/2016,11.85,Nil,GROCERY STORES SUPERMARKETS,GPC,Not Yet Available
Wakefield MDC,E08000036,30/06/2016,BUSINESS,8,Corporate and Democratic Core,SAINSBURYS,Civic Gifts / Hospitality,Revenue,160834,162,01/07/2016,42.85,Nil,GROCERY STORES SUPERMARKETS,GPC,Not Yet Available
Wakefield MDC,E08000036,30/06/2016,BUSINESS,8,Corporate and Democratic Core,THE FLOWER SHOP,Civic Gifts / Hospitality,Revenue,160834,80,01/07/2016,20.00,Nil,FLORISTS,GPC,Not Yet Available
Wakefield MDC,E08000036,30/06/2016,BUSINESS,8,Corporate and Democratic Core,WILSON & PALMER LTD,Civic Gifts / Hospitality,Revenue,160834,145,01/07/2016,40.00,Nil,FLORISTS,GPC,Not Yet Available
Wakefield MDC,E08000036,30/06/2016,ADULTS,7,Adult Social Care,ALEXANDRA,Clothing,Revenue,160818,670,10/05/2016,35.98,Nil,MEN�S/WOMEN�S/CHILDREN�S UNIFORMS/COMMERCIAL CLOTH,GPC,Not Yet Available
Wakefield MDC,E08000036,30/06/2016,ADULTS,Z,BVACOP Not Applicable,ALEXANDRA,Clothing,Revenue,160819,481,13/05/2016,31.04,Nil,MEN�S/WOMEN�S/CHILDREN�S UNIFORMS/COMMERCIAL CLOTH,GPC,Not Yet Available
Wakefield MDC,E08000036,30/06/2016,ADULTS,7,Adult Social Care,AMAZON,Clothing,Revenue,160823,561,25/05/2016,45.63,Nil,BOOK STORES,GPC,Not Yet Available
Wakefield MDC,E08000036,30/06/2016,ADULTS,7,Adult Social Care,AMAZON,Clothing,Revenue,160823,221,25/05/2016,22.12,Nil,BOOK STORES,GPC,Not Yet Available
Wakefield MDC,E08000036,30/06/2016,CHILDYOU,4,Children�s and Education Services,ASDA STORES,Clothing,Revenue,160811,161,08/04/2016,14.00,Nil,GROCERY STORES SUPERMARKETS,GPC,Not Yet Available
Wakefield MDC,E08000036,30/06/2016,CHILDYOU,4,Children�s and Education Services,ASDA STORES,Clothing,Revenue,160820,162,17/05/2016,5.00,Nil,GROCERY STORES SUPERMARKETS,GPC,Not Yet Available
Wakefield MDC,E08000036,30/06/2016,CHILDYOU,4,Children�s and Education Services,B & M RETAIL LTD,Clothing,Revenue,160825,24,31/05/2016,93.71,Nil,DISCOUNT STORES,GPC,Not Yet Available
Wakefield MDC,E08000036,30/06/2016,CHILDYOU,4,Children�s and Education Services,CALVIN KLEIN,Clothing,Revenue,160811,687,08/04/2016,30.00,Nil,MEN�S AND WOMEN�S CLOTHING STORES,GPC,Not Yet Available
Wakefield MDC,E08000036,30/06/2016,REGENCULT,M,Environmental and Regulatory Services,GO OUTDOORS LTD,Clothing,Revenue,160811,50,08/04/2016,116.67,Nil,SPORTS APPAREL RIDING APPAREL STORES,GPC,Not Yet Available
Wakefield MDC,E08000036,30/06/2016,REGENCULT,M,Environmental and Regulatory Services,GO OUTDOORS LTD,Clothing,Revenue,160818,23,10/05/2016,212.67,Nil,SPORTS APPAREL RIDING APPAREL STORES,GPC,Not Yet Available
Wakefield MDC,E08000036,30/06/2016,REGENCULT,M,Environmental and Regulatory Services,GO OUTDOORS LTD,Clothing,Revenue,160830,23,17/06/2016,67.50,Nil,SPORTS APPAREL RIDING APPAREL STORES,GPC,Not Yet Available
Wakefield MDC,E08000036,30/06/2016,BUSINESS,A,Net (Surplus) / Deficit of Trading Operations,HALL-FAST,Clothing,Revenue,160833,388,28/06/2016,43.20,Nil,INDUSTRIAL SUPPLIES NOT ELSEWHERE CLASSIFIED,GPC,Not Yet Available
Wakefield MDC,E08000036,30/06/2016,CHILDYOU,4,Children�s and Education Services,JD SPORTS,Clothing,Revenue,160828,312,10/06/2016,125.04,Nil,SPORTING GOODS STORES,GPC,Not Yet Available
Wakefield MDC,E08000036,30/06/2016,CHILDYOU,4,Children�s and Education Services,JD SPORTS,Clothing,Revenue,160811,692,08/04/2016,75.00,Nil,SPORTING GOODS STORES,GPC,Not Yet Available
Wakefield MDC,E08000036,30/06/2016,ADULTS,7,Adult Social Care,JLA,Clothing,Revenue,160828,296,10/06/2016,117.53,Nil,LAUNDRY SERVICES - FAMILY AND COMMERICAL,GPC,Not Yet Available
Wakefield MDC,E08000036,30/06/2016,ADULTS,7,Adult Social Care,JLA,Clothing,Revenue,160818,678,10/05/2016,115.86,Nil,LAUNDRY SERVICES - FAMILY AND COMMERICAL,GPC,Not Yet Available
Wakefield MDC,E08000036,30/06/2016,ADULTS,7,Adult Social Care,JLA,Clothing,Revenue,160825,76,31/05/2016,167.87,Nil,LAUNDRY SERVICES - FAMILY AND COMMERICAL,GPC,Not Yet Available
Wakefield MDC,E08000036,30/06/2016,BUSINESS,A,Net (Surplus) / Deficit of Trading Operations,JOHNSON NORMANTON LTD,Clothing,Revenue,160829,229,14/06/2016,4.99,Nil,BUILDING MATERIALS LUMBER STORES,GPC,Not Yet Available
Wakefield MDC,E08000036,30/06/2016,BUSINESS,A,Net (Surplus) / Deficit of Trading Operations,MAD 4 TOOLS,Clothing,Revenue,160818,1654,10/05/2016,72.16,Nil,HARDWARE EQUIPMENT AND SUPPLIES,GPC,Not Yet Available
Wakefield MDC,E08000036,30/06/2016,BUSINESS,A,Net (Surplus) / Deficit of Trading Operations,MAD 4 TOOLS,Clothing,Revenue,160813,541,15/04/2016,136.02,Nil,HARDWARE EQUIPMENT AND SUPPLIES,GPC,Not Yet Available
Wakefield MDC,E08000036,30/06/2016,BUSINESS,A,Net (Surplus) / Deficit of Trading Operations,MAD 4 TOOLS,Clothing,Revenue,160817,593,29/04/2016,72.16,Nil,HARDWARE EQUIPMENT AND SUPPLIES,GPC,Not Yet Available
Wakefield MDC,E08000036,30/06/2016,BUSINESS,A,Net (Surplus) / Deficit of Trading Operations,MY TOOL SHED,Clothing,Revenue,160832,723,24/06/2016,33.49,Nil,HARDWARE EQUIPMENT AND SUPPLIES,GPC,Not Yet Available
Wakefield MDC,E08000036,30/06/2016,BUSINESS,A,Net (Surplus) / Deficit of Trading Operations,MY TOOL SHED,Clothing,Revenue,160819,531,13/05/2016,50.88,Nil,HARDWARE EQUIPMENT AND SUPPLIES,GPC,Not Yet Available
Wakefield MDC,E08000036,30/06/2016,CHILDYOU,4,Children�s and Education Services,NEW LOOK 2020,Clothing,Revenue,160820,425,17/05/2016,33.05,Nil,WOMEN�S READY TO WEAR STORES,GPC,Not Yet Available
Wakefield MDC,E08000036,30/06/2016,REGENCULT,M,Environmental and Regulatory Services,NEWROSS IMPEX LTD,Clothing,Revenue,160818,34,10/05/2016,58.33,Nil,MEN�S AND BOY�S CLOTHING AND ACCESSORIES STORES,GPC,Not Yet Available
Wakefield MDC,E08000036,30/06/2016,BUSINESS,A,Net (Surplus) / Deficit of Trading Operations,NISBETS,Clothing,Revenue,160823,880,25/05/2016,34.94,Nil,DIRECT MARKETING-CATALOG MERCHANTS,GPC,Not Yet Available
Wakefield MDC,E08000036,30/06/2016,BUSINESS,A,Net (Surplus) / Deficit of Trading Operations,NORTHANTS TOOLS,Clothing,Revenue,160816,457,26/04/2016,114.49,Nil,INDUSTRIAL SUPPLIES NOT ELSEWHERE CLASSIFIED,GPC,Not Yet Available
Wakefield MDC,E08000036,30/06/2016,CHILDYOU,4,Children�s and Education Services,POUNDSTRETCHER,Clothing,Revenue,160825,165,31/05/2016,101.94,Nil,DRAPERY UPOLSTERY AND WINDOW COVERINGS STORES,GPC,Not Yet Available
Wakefield MDC,E08000036,30/06/2016,CHILDYOU,4,Children�s and Education Services,POUNDSTRETCHER,Clothing,Revenue,160825,,31/05/2016,89.30,Nil,DRAPERY UPOLSTERY AND WINDOW COVERINGS STORES,GPC,Not Yet Available
Wakefield MDC,E08000036,30/06/2016,CHILDYOU,4,Children�s and Education Services,PREMIER QUALITY FOODS,Clothing,Revenue,160832,404,24/06/2016,362.06,Nil,MISC FOOD STORE-CONVENIENCEMRKTSPLTYVENDNG MACS,GPC,Not Yet Available
Wakefield MDC,E08000036,30/06/2016,CHILDYOU,4,Children�s and Education Services,PRIMARK,Clothing,Revenue,160811,245,08/04/2016,8.50,Nil,FAMILY CLOTHING STORES,GPC,Not Yet Available
Wakefield MDC,E08000036,30/06/2016,CHILDYOU,4,Children�s and Education Services,PRIMARK,Clothing,Revenue,160811,295,08/04/2016,29.00,Nil,FAMILY CLOTHING STORES,GPC,Not Yet Available
Wakefield MDC,E08000036,30/06/2016,CHILDYOU,4,Children�s and Education Services,PRIMARK,Clothing,Revenue,160823,890,25/05/2016,25.00,Nil,FAMILY CLOTHING STORES,GPC,Not Yet Available
Wakefield MDC,E08000036,30/06/2016,CHILDYOU,4,Children�s and Education Services,PRIMARK,Clothing,Revenue,160816,450,26/04/2016,33.50,Nil,FAMILY CLOTHING STORES,GPC,Not Yet Available
Wakefield MDC,E08000036,30/06/2016,CHILDYOU,4,Children�s and Education Services,PRIMARK,Clothing,Revenue,160820,509,17/05/2016,39.00,Nil,FAMILY CLOTHING STORES,GPC,Not Yet Available
Wakefield MDC,E08000036,30/06/2016,CHILDYOU,4,Children�s and Education Services,PRIMARK,Clothing,Revenue,160820,329,17/05/2016,65.50,Nil,FAMILY CLOTHING STORES,GPC,Not Yet Available
Wakefield MDC,E08000036,30/06/2016,BUSINESS,A,Net (Surplus) / Deficit of Trading Operations,PRO TILER TOOLS,Clothing,Revenue,160830,258,17/06/2016,53.46,Nil,INDUSTRIAL SUPPLIES NOT ELSEWHERE CLASSIFIED,GPC,Not Yet Available
Wakefield MDC,E08000036,30/06/2016,CHILDYOU,4,Children�s and Education Services,SCREWFIX,Clothing,Revenue,160832,514,24/06/2016,38.33,Nil,BUILDING MATERIALS LUMBER STORES,GPC,Not Yet Available
Wakefield MDC,E08000036,30/06/2016,BUSINESS,A,Net (Surplus) / Deficit of Trading Operations,SIMON JERSEY,Clothing,Revenue,160818,869,10/05/2016,113.88,Nil,MISCELLANEOUS AND SPECIALTY RETAIL STORES,GPC,Not Yet Available
Wakefield MDC,E08000036,30/06/2016,CHILDYOU,4,Children�s and Education Services,SPORTS DIRECT,Clothing,Revenue,160811,376,08/04/2016,56.99,Nil,SPORTING GOODS STORES,GPC,Not Yet Available
Wakefield MDC,E08000036,30/06/2016,CHILDYOU,4,Children�s and Education Services,T K MAXX,Clothing,Revenue,160811,274,08/04/2016,19.99,Nil,VARIETY STORES,GPC,Not Yet Available
Wakefield MDC,E08000036,30/06/2016,CHILDYOU,4,Children�s and Education Services,T K MAXX,Clothing,Revenue,160831,156,21/06/2016,24.98,Nil,VARIETY STORES,GPC,Not Yet Available
Wakefield MDC,E08000036,30/06/2016,CHILDYOU,4,Children�s and Education Services,TED BAKER,Clothing,Revenue,160811,703,08/04/2016,26.00,Nil,MEN�S AND WOMEN�S CLOTHING STORES,GPC,Not Yet Available
Wakefield MDC,E08000036,30/06/2016,REGENCULT,M,Environmental and Regulatory Services,TESCO CLOTHING,Clothing,Revenue,160827,623,08/06/2016,23.33,Nil,FAMILY CLOTHING STORES,GPC,Not Yet Available
Wakefield MDC,E08000036,30/06/2016,CHILDYOU,4,Children�s and Education Services,USC,Clothing,Revenue,160831,160,21/06/2016,14.55,Nil,MEN�S AND WOMEN�S CLOTHING STORES,GPC,Not Yet Available
Wakefield MDC,E08000036,30/06/2016,CHILDYOU,4,Children�s and Education Services,VICTORIA�S SECRET,Clothing,Revenue,160820,330,17/05/2016,20.83,Nil,FAMILY CLOTHING STORES,GPC,Not Yet Available
Wakefield MDC,E08000036,30/06/2016,CHILDYOU,4,Children�s and Education Services,ADAPT-IT,Computer Equipment - Hardware,Revenue,160819,8,13/05/2016,24.50,Nil,COMPUTERS COMPUTER PERIPHERAL EQUIPMENT SOFTWARE,GPC,Not Yet Available
Wakefield MDC,E08000036,30/06/2016,BUSINESS,A,Net (Surplus) / Deficit of Trading Operations,AMAZON,Computer Equipment - Hardware,Revenue,160813,32,15/04/2016,46.06,Nil,BOOK STORES,GPC,Not Yet Available
Wakefield MDC,E08000036,30/06/2016,BUSINESS,A,Net (Surplus) / Deficit of Trading Operations,AMAZON,Computer Equipment - Hardware,Revenue,160826,310,03/06/2016,12.98,Nil,BOOK STORES,GPC,Not Yet Available
Wakefield MDC,E08000036,30/06/2016,BUSINESS,A,Net (Surplus) / Deficit of Trading Operations,AMAZON,Computer Equipment - Hardware,Revenue,160832,8,24/06/2016,24.80,Nil,BOOK STORES,GPC,Not Yet Available
Wakefield MDC,E08000036,30/06/2016,BUSINESS,A,Net (Surplus) / Deficit of Trading Operations,AMAZON,Computer Equipment - Hardware,Revenue,160832,9,24/06/2016,37.94,Nil,BOOK STORES,GPC,Not Yet Available
Wakefield MDC,E08000036,30/06/2016,BUSINESS,A,Net (Surplus) / Deficit of Trading Operations,AMAZON,Computer Equipment - Hardware,Revenue,160819,133,13/05/2016,27.30,Nil,BOOK STORES,GPC,Not Yet Available
Wakefield MDC,E08000036,30/06/2016,BUSINESS,A,Net (Surplus) / Deficit of Trading Operations,AMAZON,Computer Equipment - Hardware,Revenue,160819,21,13/05/2016,29.98,Nil,BOOK STORES,GPC,Not Yet Available
Wakefield MDC,E08000036,30/06/2016,BUSINESS,A,Net (Surplus) / Deficit of Trading Operations,AMAZON,Computer Equipment - Hardware,Revenue,160832,44,24/06/2016,1.88,Nil,BOOK STORES,GPC,Not Yet Available
Wakefield MDC,E08000036,30/06/2016,BUSINESS,A,Net (Surplus) / Deficit of Trading Operations,AMAZON,Computer Equipment - Hardware,Revenue,160813,17,15/04/2016,6.99,Nil,BOOK STORES,GPC,Not Yet Available
Wakefield MDC,E08000036,30/06/2016,BUSINESS,A,Net (Surplus) / Deficit of Trading Operations,AMAZON,Computer Equipment - Hardware,Revenue,160813,149,15/04/2016,18.46,Nil,BOOK STORES,GPC,Not Yet Available
Wakefield MDC,E08000036,30/06/2016,BUSINESS,A,Net (Surplus) / Deficit of Trading Operations,AMAZON,Computer Equipment - Hardware,Revenue,160813,41,15/04/2016,96.00,Nil,BOOK STORES,GPC,Not Yet Available
Wakefield MDC,E08000036,30/06/2016,BUSINESS,A,Net (Surplus) / Deficit of Trading Operations,AMAZON,Computer Equipment - Hardware,Revenue,160832,12,24/06/2016,3.99,Nil,BOOK STORES,GPC,Not Yet Available
Wakefield MDC,E08000036,30/06/2016,BUSINESS,A,Net (Surplus) / Deficit of Trading Operations,AMAZON,Computer Equipment - Hardware,Revenue,160813,20,15/04/2016,329.65,Nil,DIRECT MARKETING-OTHER DIRECT MARKETERS/NOT ELSEW.,GPC,Not Yet Available
Wakefield MDC,E08000036,30/06/2016,BUSINESS,A,Net (Surplus) / Deficit of Trading Operations,AMAZON,Computer Equipment - Hardware,Revenue,160813,171,15/04/2016,53.32,Nil,DIRECT MARKETING-OTHER DIRECT MARKETERS/NOT ELSEW.,GPC,Not Yet Available
Wakefield MDC,E08000036,30/06/2016,BUSINESS,A,Net (Surplus) / Deficit of Trading Operations,AMAZON,Computer Equipment - Hardware,Revenue,160813,172,15/04/2016,25.77,Nil,DIRECT MARKETING-OTHER DIRECT MARKETERS/NOT ELSEW.,GPC,Not Yet Available
Wakefield MDC,E08000036,30/06/2016,BUSINESS,A,Net (Surplus) / Deficit of Trading Operations,AMAZON,Computer Equipment - Hardware,Revenue,160819,30,13/05/2016,75.82,Nil,DIRECT MARKETING-OTHER DIRECT MARKETERS/NOT ELSEW.,GPC,Not Yet Available
Wakefield MDC,E08000036,30/06/2016,CHILDYOU,4,Children�s and Education Services,AMAZON,Computer Equipment - Hardware,Revenue,160815,339,22/04/2016,6.62,Nil,BOOK STORES,GPC,Not Yet Available
Wakefield MDC,E08000036,30/06/2016,CHILDYOU,4,Children�s and Education Services,AMAZON,Computer Equipment - Hardware,Revenue,160815,286,22/04/2016,25.82,Nil,BOOK STORES,GPC,Not Yet Available
Wakefield MDC,E08000036,30/06/2016,CHILDYOU,4,Children�s and Education Services,AMAZON,Computer Equipment - Hardware,Revenue,160815,393,22/04/2016,28.25,Nil,BOOK STORES,GPC,Not Yet Available
Wakefield MDC,E08000036,30/06/2016,CHILDYOU,4,Children�s and Education Services,AMAZON,Computer Equipment - Hardware,Revenue,160828,74,10/06/2016,17.98,Nil,BOOK STORES,GPC,Not Yet Available
Wakefield MDC,E08000036,30/06/2016,REGENCULT,6,Housing Services,AMAZON,Computer Equipment - Hardware,Revenue,160813,29,15/04/2016,7.80,Nil,BOOK STORES,GPC,Not Yet Available
Wakefield MDC,E08000036,30/06/2016,REGENCULT,L,Cultural and Related Services,AMAZON,Computer Equipment - Hardware,Revenue,160818,1564,10/05/2016,55.72,Nil,BOOK STORES,GPC,Not Yet Available
Wakefield MDC,E08000036,30/06/2016,REGENCULT,L,Cultural and Related Services,AMAZON,Computer Equipment - Hardware,Revenue,160818,1563,10/05/2016,31.92,Nil,BOOK STORES,GPC,Not Yet Available
Wakefield MDC,E08000036,30/06/2016,REGENCULT,N,Planning Services,AMAZON,Computer Equipment - Hardware,Revenue,160819,54,13/05/2016,18.98,Nil,BOOK STORES,GPC,Not Yet Available
Wakefield MDC,E08000036,30/06/2016,CHILDYOU,4,Children�s and Education Services,CURRYS,Computer Equipment - Hardware,Revenue,160828,57,10/06/2016,99.98,Nil,ELECTRONIC SALES,GPC,Not Yet Available
Wakefield MDC,E08000036,30/06/2016,ADULTS,7,Adult Social Care,IBM PARTS,Computer Equipment - Hardware,Revenue,160832,11,24/06/2016,34.70,Nil,COMPUTERS COMPUTER PERIPHERAL EQUIPMENT SOFTWARE,GPC,Not Yet Available
Wakefield MDC,E08000036,30/06/2016,BUSINESS,A,Net (Surplus) / Deficit of Trading Operations,MICROSOFT STORE,Computer Equipment - Hardware,Revenue,160813,21,15/04/2016,108.32,Nil,COMPUTER SOFTWARE STORES,GPC,Not Yet Available
Wakefield MDC,E08000036,30/06/2016,BUSINESS,A,Net (Surplus) / Deficit of Trading Operations,MICROSOFT STORE,Computer Equipment - Hardware,Revenue,160832,32,24/06/2016,331.67,Nil,COMPUTER SOFTWARE STORES,GPC,Not Yet Available
Wakefield MDC,E08000036,30/06/2016,BUSINESS,A,Net (Surplus) / Deficit of Trading Operations,MICROSOFT STORE,Computer Equipment - Hardware,Revenue,160813,18,15/04/2016,16.58,Nil,COMPUTER SOFTWARE STORES,GPC,Not Yet Available
Wakefield MDC,E08000036,30/06/2016,BUSINESS,A,Net (Surplus) / Deficit of Trading Operations,OPENGEAR,Computer Equipment - Hardware,Revenue,160832,14,24/06/2016,78.14,Nil,DIRECT MARKETING-OTHER DIRECT MARKETERS/NOT ELSEW.,GPC,Not Yet Available
Wakefield MDC,E08000036,30/06/2016,CHILDYOU,4,Children�s and Education Services,PC WORLD,Computer Equipment - Hardware,Revenue,160828,59,10/06/2016,99.97,Nil,COMPUTER SOFTWARE STORES,GPC,Not Yet Available
Wakefield MDC,E08000036,30/06/2016,CHILDYOU,4,Children�s and Education Services,PC WORLD ONLINE,Computer Equipment - Hardware,Revenue,160823,512,25/05/2016,115.83,Nil,ELECTRONIC SALES,GPC,Not Yet Available
Wakefield MDC,E08000036,30/06/2016,ADULTS,7,Adult Social Care,POSTURITE,Computer Equipment - Hardware,Revenue,160819,190,13/05/2016,68.95,Nil,OFFICE AND COMMERCIAL FURNITURE,GPC,Not Yet Available
Wakefield MDC,E08000036,30/06/2016,BUSINESS,A,Net (Surplus) / Deficit of Trading Operations,POSTURITE,Computer Equipment - Hardware,Revenue,160819,122,13/05/2016,224.00,Nil,OFFICE AND COMMERCIAL FURNITURE,GPC,Not Yet Available
Wakefield MDC,E08000036,30/06/2016,BUSINESS,A,Net (Surplus) / Deficit of Trading Operations,POSTURITE,Computer Equipment - Hardware,Revenue,160813,16,15/04/2016,54.95,Nil,OFFICE AND COMMERCIAL FURNITURE,GPC,Not Yet Available
Wakefield MDC,E08000036,30/06/2016,CHILDYOU,4,Children�s and Education Services,PSA PARTS,Computer Equipment - Hardware,Revenue,160820,101,17/05/2016,14.57,Nil,COMP PROGRAMINGDATA PRCSNGINTGRTD SYS DSGN SRVS,GPC,Not Yet Available
Wakefield MDC,E08000036,30/06/2016,BUSINESS,A,Net (Surplus) / Deficit of Trading Operations,STORAGE SOLUTIONS,Computer Equipment - Hardware,Revenue,160819,117,13/05/2016,160.04,Nil,PUBLIC WAREHOUSING-FARM REFRIG GOODS HHG STORAGE,GPC,Not Yet Available
Wakefield MDC,E08000036,30/06/2016,BUSINESS,A,Net (Surplus) / Deficit of Trading Operations,WILKO RETAIL LIMITED,Computer Equipment - Hardware,Revenue,160832,196,24/06/2016,9.98,Nil,HOUSEHOLD APPLIANCE STORES,GPC,Not Yet Available
Wakefield MDC,E08000036,30/06/2016,REGENCULT,L,Cultural and Related Services,INSTANT SSL CERTIFICATE,Computer Equipment - Maintenance,Revenue,160823,715,25/05/2016,119.69,Nil,BUSINESS SERVICES-NOT ELSEWHERE CLASSIFIED,GPC,Not Yet Available
Wakefield MDC,E08000036,30/06/2016,BUSINESS,A,Net (Surplus) / Deficit of Trading Operations,AMAZON,Computer Equipment - Software,Revenue,160827,3,08/06/2016,5.80,Nil,BOOK STORES,GPC,Not Yet Available
Wakefield MDC,E08000036,30/06/2016,BUSINESS,M,Environmental and Regulatory Services,AMAZON,Computer Equipment - Software,Revenue,160813,19,15/04/2016,1.91,Nil,BOOK STORES,GPC,Not Yet Available
Wakefield MDC,E08000036,30/06/2016,BUSINESS,1,Central Services,BLS INSIGHT SOFTWARE,Computer Equipment - Software,Revenue,160832,121,24/06/2016,32.40,Nil,COMPUTER SOFTWARE STORES,GPC,Not Yet Available
Wakefield MDC,E08000036,30/06/2016,BUSINESS,A,Net (Surplus) / Deficit of Trading Operations,HAZARDOUS WASTE,Computer Equipment - Software,Revenue,160813,47,15/04/2016,54.00,Nil,GOVERNMENT SERVICES-NOT ELSEWHERE CLASSIFIED,GPC,Not Yet Available
Wakefield MDC,E08000036,30/06/2016,CHILDYOU,4,Children�s and Education Services,ITECHNOSOFT,Computer Equipment - Software,Revenue,160820,10,17/05/2016,64.00,Nil,COMP PROGRAMINGDATA PRCSNGINTGRTD SYS DSGN SRVS,GPC,Not Yet Available
Wakefield MDC,E08000036,30/06/2016,BUSINESS,A,Net (Surplus) / Deficit of Trading Operations,LOCK LAN SYSTEMS,Computer Equipment - Software,Revenue,160832,15,24/06/2016,16.90,Nil,DIGITAL GOODS AUDIOVISUAL MEDIA,GPC,Not Yet Available
Wakefield MDC,E08000036,30/06/2016,REGENCULT,M,Environmental and Regulatory Services,TEAM VIEWER 14,Computer Equipment - Software,Revenue,160819,460,13/05/2016,634.80,Nil,COMPUTER SOFTWARE STORES,GPC,Not Yet Available
Wakefield MDC,E08000036,30/06/2016,BUSINESS,1,Central Services,TEXTBURST,Computer Equipment - Software,Revenue,160819,580,13/05/2016,20.00,Nil,COMPUTERS COMPUTER PERIPHERAL EQUIPMENT SOFTWARE,GPC,Not Yet Available
Wakefield MDC,E08000036,30/06/2016,REGENCULT,M,Environmental and Regulatory Services,CHARTERED INSTITUTE OF WASTE MANAGEMENT,Conference Expenses,Revenue,160813,75,15/04/2016,280.00,Nil,PROFESSIONAL SERVICES-NOT ELSEWHERE CLASSIFIED,GPC,Not Yet Available
Wakefield MDC,E08000036,30/06/2016,REGENCULT,M,Environmental and Regulatory Services,CHARTERED INSTITUTE OF WASTE MANAGEMENT,Conference Expenses,Revenue,160813,130,15/04/2016,180.00,Nil,PROFESSIONAL SERVICES-NOT ELSEWHERE CLASSIFIED,GPC,Not Yet Available
Wakefield MDC,E08000036,30/06/2016,BUSINESS,1,Central Services,CITILODGE,Conference Expenses,Revenue,160826,81,03/06/2016,47.00,Nil,HOTELS & ACCOMMODATION,GPC,Not Yet Available
Wakefield MDC,E08000036,30/06/2016,BUSINESS,A,Net (Surplus) / Deficit of Trading Operations,CONFERENCE CARE,Conference Expenses,Revenue,160811,306,08/04/2016,380.00,Nil,HOTELS & ACCOMMODATION,GPC,Not Yet Available
Wakefield MDC,E08000036,30/06/2016,BUSINESS,A,Net (Surplus) / Deficit of Trading Operations,DETAILS REDACTED,Conference Expenses,Revenue,160830,47,17/06/2016,195.00,Nil,PROFESSIONAL SERVICES-NOT ELSEWHERE CLASSIFIED,GPC,Not Yet Available
Wakefield MDC,E08000036,30/06/2016,ADULTS,P,Public Health,EURO TRAVELLER HOTEL,Conference Expenses,Revenue,160818,30,10/05/2016,49.17,Nil,HOTELS & ACCOMMODATION,GPC,Not Yet Available
Wakefield MDC,E08000036,30/06/2016,BUSINESS,8,Corporate and Democratic Core,EXPEDIA,Conference Expenses,Revenue,160818,51,10/05/2016,85.00,Nil,TRAVEL AGENCIES AND TOUR OPERATORS,GPC,Not Yet Available
Wakefield MDC,E08000036,30/06/2016,BUSINESS,8,Corporate and Democratic Core,EXPEDIA,Conference Expenses,Revenue,160818,292,10/05/2016,-102.00,Nil,TRAVEL AGENCIES AND TOUR OPERATORS,GPC,Not Yet Available
Wakefield MDC,E08000036,30/06/2016,BUSINESS,8,Corporate and Democratic Core,EXPEDIA,Conference Expenses,Revenue,160823,193,25/05/2016,132.49,Nil,TRAVEL AGENCIES AND TOUR OPERATORS,GPC,Not Yet Available
Wakefield MDC,E08000036,30/06/2016,BUSINESS,8,Corporate and Democratic Core,EXPEDIA,Conference Expenses,Revenue,160834,205,01/07/2016,174.17,Nil,TRAVEL AGENCIES AND TOUR OPERATORS,GPC,Not Yet Available
Wakefield MDC,E08000036,30/06/2016,ADULTS,P,Public Health,FREESTYLE BURBAGE,Conference Expenses,Revenue,160814,2,19/04/2016,95.00,Nil,BOOK STORES,GPC,Not Yet Available
Wakefield MDC,E08000036,30/06/2016,REGENCULT,N,Planning Services,HILTON,Conference Expenses,Revenue,160818,24,10/05/2016,95.00,Nil,HOTELS & ACCOMMODATION,GPC,Not Yet Available
Wakefield MDC,E08000036,30/06/2016,CHILDYOU,4,Children�s and Education Services,HOLIDAY INNS,Conference Expenses,Revenue,160818,124,10/05/2016,310.00,Nil,HOTELS & ACCOMMODATION,GPC,Not Yet Available
Wakefield MDC,E08000036,30/06/2016,BUSINESS,8,Corporate and Democratic Core,LAB EVENTS,Conference Expenses,Revenue,160827,490,08/06/2016,155.00,Nil,BUSINESS SERVICES-NOT ELSEWHERE CLASSIFIED,GPC,Not Yet Available
Wakefield MDC,E08000036,30/06/2016,BUSINESS,8,Corporate and Democratic Core,LOCAL.GOV,Conference Expenses,Revenue,160826,283,03/06/2016,495.00,Nil,BUSINESS SERVICES-NOT ELSEWHERE CLASSIFIED,GPC,Not Yet Available
Wakefield MDC,E08000036,30/06/2016,REGENCULT,P,Public Health,MUSEUMS FOR HEALTH,Conference Expenses,Revenue,160811,71,08/04/2016,20.00,Nil,BUSINESS SERVICES-NOT ELSEWHERE CLASSIFIED,GPC,Not Yet Available
Wakefield MDC,E08000036,30/06/2016,ADULTS,P,Public Health,PARK PLAZA WESTMINSTER,Conference Expenses,Revenue,160826,219,03/06/2016,330.00,Nil,HOTELS & ACCOMMODATION,GPC,Not Yet Available
Wakefield MDC,E08000036,30/06/2016,ADULTS,P,Public Health,PARK PLAZA WESTMINSTER,Conference Expenses,Revenue,160826,218,03/06/2016,330.00,Nil,HOTELS & ACCOMMODATION,GPC,Not Yet Available
Wakefield MDC,E08000036,30/06/2016,BUSINESS,A,Net (Surplus) / Deficit of Trading Operations,PREMIER INN,Conference Expenses,Revenue,160811,278,08/04/2016,426.67,Nil,HOTELS & ACCOMMODATION,GPC,Not Yet Available
Wakefield MDC,E08000036,30/06/2016,CHILDYOU,4,Children�s and Education Services,REGENCY HOUSE HOTEL,Conference Expenses,Revenue,160833,327,28/06/2016,66.00,Nil,HOTELS & ACCOMMODATION,GPC,Not Yet Available
Wakefield MDC,E08000036,30/06/2016,BUSINESS,8,Corporate and Democratic Core,SOLACE,Conference Expenses,Revenue,160811,214,08/04/2016,-120.00,Nil,ORGANIZATIONS MEMBERSHIP-NOT ELSEWHERE CLASSIFIED,GPC,Not Yet Available
Wakefield MDC,E08000036,30/06/2016,ADULTS,6,Housing Services,ST PIERRE HOTEL,Conference Expenses,Revenue,160826,2,03/06/2016,91.67,Nil,HOTELS & ACCOMMODATION,GPC,Not Yet Available
Wakefield MDC,E08000036,30/06/2016,ADULTS,6,Housing Services,ST PIERRE HOTEL,Conference Expenses,Revenue,160826,3,03/06/2016,36.25,Nil,HOTELS & ACCOMMODATION,GPC,Not Yet Available
Wakefield MDC,E08000036,30/06/2016,REGENCULT,N,Planning Services,STUDIOS 2 LET,Conference Expenses,Revenue,160818,1593,10/05/2016,105.29,Nil,HOTELS & ACCOMMODATION,GPC,Not Yet Available
Wakefield MDC,E08000036,30/06/2016,CHILDYOU,4,Children�s and Education Services,SUFFOLK COUNTY COUNCIL,Conference Expenses,Revenue,160833,167,28/06/2016,228.00,Nil,GOVERNMENT SERVICES-NOT ELSEWHERE CLASSIFIED,GPC,Not Yet Available
Wakefield MDC,E08000036,30/06/2016,BUSINESS,8,Corporate and Democratic Core,THE PA HUB,Conference Expenses,Revenue,160833,318,28/06/2016,240.00,Nil,PROFESSIONAL SERVICES-NOT ELSEWHERE CLASSIFIED,GPC,Not Yet Available
Wakefield MDC,E08000036,30/06/2016,BUSINESS,8,Corporate and Democratic Core,THE PA HUB,Conference Expenses,Revenue,160833,213,28/06/2016,80.00,Nil,PROFESSIONAL SERVICES-NOT ELSEWHERE CLASSIFIED,GPC,Not Yet Available
Wakefield MDC,E08000036,30/06/2016,ADULTS,P,Public Health,TRAINLINE,Conference Expenses,Revenue,160818,31,10/05/2016,70.67,Nil,PASSENGER RAILWAYS,GPC,Not Yet Available
Wakefield MDC,E08000036,30/06/2016,CHILDYOU,4,Children�s and Education Services,TRAVELODGE,Conference Expenses,Revenue,160814,5,19/04/2016,131.67,Nil,HOTELS & ACCOMMODATION,GPC,Not Yet Available
Wakefield MDC,E08000036,30/06/2016,REGENCULT,L,Cultural and Related Services,TRAVELODGE,Conference Expenses,Revenue,160822,669,20/05/2016,53.29,Nil,HOTELS & ACCOMMODATION,GPC,Not Yet Available
Wakefield MDC,E08000036,30/06/2016,REGENCULT,L,Cultural and Related Services,TRAVELODGE,Conference Expenses,Revenue,160822,40,20/05/2016,41.62,Nil,HOTELS & ACCOMMODATION,GPC,Not Yet Available
Wakefield MDC,E08000036,30/06/2016,BUSINESS,1,Central Services,AMAZON,Consumable Items,Revenue,160811,437,08/04/2016,19.16,Nil,BOOK STORES,GPC,Not Yet Available
Wakefield MDC,E08000036,30/06/2016,BUSINESS,6,Housing Services,AMAZON,Consumable Items,Revenue,160811,236,08/04/2016,12.54,Nil,BOOK STORES,GPC,Not Yet Available
Wakefield MDC,E08000036,30/06/2016,BUSINESS,1,Central Services,AMAZON,Consumable Items,Revenue,160818,1017,10/05/2016,7.94,Nil,BOOK STORES,GPC,Not Yet Available
Wakefield MDC,E08000036,30/06/2016,BUSINESS,1,Central Services,AMAZON,Consumable Items,Revenue,160818,257,10/05/2016,23.17,Nil,BOOK STORES,GPC,Not Yet Available
Wakefield MDC,E08000036,30/06/2016,BUSINESS,1,Central Services,AMAZON,Consumable Items,Revenue,160817,181,29/04/2016,8.75,Nil,BOOK STORES,GPC,Not Yet Available
Wakefield MDC,E08000036,30/06/2016,CHILDYOU,4,Children�s and Education Services,AMAZON,Consumable Items,Revenue,160825,7,31/05/2016,24.49,Nil,BOOK STORES,GPC,Not Yet Available
Wakefield MDC,E08000036,30/06/2016,CHILDYOU,4,Children�s and Education Services,AMAZON,Consumable Items,Revenue,160825,42,31/05/2016,65.97,Nil,BOOK STORES,GPC,Not Yet Available
Wakefield MDC,E08000036,30/06/2016,REGENCULT,M,Environmental and Regulatory Services,AMAZON,Consumable Items,Revenue,160822,536,20/05/2016,33.90,Nil,BOOK STORES,GPC,Not Yet Available
Wakefield MDC,E08000036,30/06/2016,BUSINESS,A,Net (Surplus) / Deficit of Trading Operations,ARCO LTD,Consumable Items,Revenue,160815,563,22/04/2016,74.80,Nil,INDUSTRIAL SUPPLIES NOT ELSEWHERE CLASSIFIED,GPC,Not Yet Available
Wakefield MDC,E08000036,30/06/2016,CHILDYOU,4,Children�s and Education Services,ASDA STORES,Consumable Items,Revenue,160826,341,03/06/2016,29.07,Nil,GROCERY STORES SUPERMARKETS,GPC,Not Yet Available
Wakefield MDC,E08000036,30/06/2016,CHILDYOU,4,Children�s and Education Services,ASDA STORES,Consumable Items,Revenue,160826,342,03/06/2016,-0.28,Nil,GROCERY STORES SUPERMARKETS,GPC,Not Yet Available
Wakefield MDC,E08000036,30/06/2016,REGENCULT,M,Environmental and Regulatory Services,B & Q,Consumable Items,Revenue,160826,221,03/06/2016,14.27,Nil,BUILDING MATERIALS LUMBER STORES,GPC,Not Yet Available
Wakefield MDC,E08000036,30/06/2016,CHILDYOU,4,Children�s and Education Services,COUNTRY BASKETS,Consumable Items,Revenue,160825,49,31/05/2016,30.32,Nil,FLORIST SUPPLIESNURSERY STOCK & FLOWERS,GPC,Not Yet Available
Wakefield MDC,E08000036,30/06/2016,BUSINESS,A,Net (Surplus) / Deficit of Trading Operations,CPC,Consumable Items,Revenue,160827,699,08/06/2016,14.94,Nil,ELECTRICAL PARTS AND EQUIPMENT,GPC,Not Yet Available
Wakefield MDC,E08000036,30/06/2016,REGENCULT,M,Environmental and Regulatory Services,FARMFOODS LIMITED,Consumable Items,Revenue,160826,263,03/06/2016,8.95,Nil,GROCERY STORES SUPERMARKETS,GPC,Not Yet Available
Wakefield MDC,E08000036,30/06/2016,BUSINESS,A,Net (Surplus) / Deficit of Trading Operations,HUDDERSFIELD DECORATOR,Consumable Items,Revenue,160834,571,01/07/2016,37.50,Nil,PAINTSVARNISHES AND SUPPLIES,GPC,Not Yet Available
Wakefield MDC,E08000036,30/06/2016,REGENCULT,M,Environmental and Regulatory Services,LIDL UK,Consumable Items,Revenue,160830,521,17/06/2016,11.93,Nil,GROCERY STORES SUPERMARKETS,GPC,Not Yet Available
Wakefield MDC,E08000036,30/06/2016,REGENCULT,M,Environmental and Regulatory Services,LIDL UK,Consumable Items,Revenue,160830,237,17/06/2016,10.44,Nil,GROCERY STORES SUPERMARKETS,GPC,Not Yet Available
Wakefield MDC,E08000036,30/06/2016,BUSINESS,A,Net (Surplus) / Deficit of Trading Operations,NISBETS,Consumable Items,Revenue,160823,881,25/05/2016,2.78,Nil,DIRECT MARKETING-CATALOG MERCHANTS,GPC,Not Yet Available
Wakefield MDC,E08000036,30/06/2016,ADULTS,7,Adult Social Care,ORIGINAL FACTORY S,Consumable Items,Revenue,160819,511,13/05/2016,12.05,Nil,DEPARTMENT STORES,GPC,Not Yet Available
Wakefield MDC,E08000036,30/06/2016,BUSINESS,A,Net (Surplus) / Deficit of Trading Operations,PSA PARTS,Consumable Items,Revenue,160821,3,18/05/2016,29.15,Nil,COMP PROGRAMINGDATA PRCSNGINTGRTD SYS DSGN SRVS,GPC,Not Yet Available
Wakefield MDC,E08000036,30/06/2016,BUSINESS,A,Net (Surplus) / Deficit of Trading Operations,SCREWFIX,Consumable Items,Revenue,160813,542,15/04/2016,5.82,Nil,BUILDING MATERIALS LUMBER STORES,GPC,Not Yet Available
Wakefield MDC,E08000036,30/06/2016,BUSINESS,A,Net (Surplus) / Deficit of Trading Operations,TOTAL FOOD SERVICES LTD,Consumable Items,Revenue,160823,724,25/05/2016,180.00,Nil,CATERERS,GPC,Not Yet Available
Wakefield MDC,E08000036,30/06/2016,BUSINESS,A,Net (Surplus) / Deficit of Trading Operations,TOTAL FOOD SERVICES LTD,Consumable Items,Revenue,160834,548,01/07/2016,16.09,Nil,CATERERS,GPC,Not Yet Available
Wakefield MDC,E08000036,30/06/2016,BUSINESS,A,Net (Surplus) / Deficit of Trading Operations,TOTAL FOOD SERVICES LTD,Consumable Items,Revenue,160826,332,03/06/2016,6.99,Nil,CATERERS,GPC,Not Yet Available
Wakefield MDC,E08000036,30/06/2016,CHILDYOU,4,Children�s and Education Services,VISTA PRINT,Consumable Items,Revenue,160825,1,31/05/2016,10.27,Nil,MISCELLANEOUS PUBLISHING AND PRINTING,GPC,Not Yet Available
Wakefield MDC,E08000036,30/06/2016,BUSINESS,A,Net (Surplus) / Deficit of Trading Operations,WAKEFIELD WELDING CENTRE,Consumable Items,Revenue,160811,698,08/04/2016,40.50,Nil,MISCELLANEOUS AND SPECIALTY RETAIL STORES,GPC,Not Yet Available
Wakefield MDC,E08000036,30/06/2016,BUSINESS,1,Central Services,HM COURTS SERVICE,Court Costs,Revenue,160814,19,19/04/2016,270.00,Nil,FINES,GPC,Not Yet Available
Wakefield MDC,E08000036,30/06/2016,BUSINESS,1,Central Services,HM COURTS SERVICE,Court Costs,Revenue,160828,76,10/06/2016,1233.00,Nil,FINES,GPC,Not Yet Available
Wakefield MDC,E08000036,30/06/2016,BUSINESS,1,Central Services,HM COURTS SERVICE,Court Costs,Revenue,160828,9,10/06/2016,4689.00,Nil,FINES,GPC,Not Yet Available
Wakefield MDC,E08000036,30/06/2016,BUSINESS,1,Central Services,HM COURTS SERVICE,Court Costs,Revenue,160818,310,10/05/2016,4578.00,Nil,FINES,GPC,Not Yet Available
Wakefield MDC,E08000036,30/06/2016,BUSINESS,A,Net (Surplus) / Deficit of Trading Operations,HM COURTS SERVICE,Court Costs,Revenue,160830,286,17/06/2016,100.00,Nil,FINES,GPC,Not Yet Available
Wakefield MDC,E08000036,30/06/2016,CHILDYOU,4,Children�s and Education Services,HM COURTS SERVICE,Court Costs,Revenue,160833,98,28/06/2016,15.00,Nil,FINES,GPC,Not Yet Available
Wakefield MDC,E08000036,30/06/2016,REGENCULT,M,Environmental and Regulatory Services,HM COURTS SERVICE,Court Costs,Revenue,160830,285,17/06/2016,100.00,Nil,FINES,GPC,Not Yet Available
Wakefield MDC,E08000036,30/06/2016,ADULTS,7,Adult Social Care,MONEY CLAIM.GOV,Court Costs,Revenue,160828,299,10/06/2016,410.00,Nil,GOVERNMENT SERVICES-NOT ELSEWHERE CLASSIFIED,GPC,Not Yet Available
Wakefield MDC,E08000036,30/06/2016,ADULTS,7,Adult Social Care,MONEY CLAIM.GOV,Court Costs,Revenue,160828,298,10/06/2016,410.00,Nil,GOVERNMENT SERVICES-NOT ELSEWHERE CLASSIFIED,GPC,Not Yet Available
Wakefield MDC,E08000036,30/06/2016,ADULTS,Z,BVACOP Not Applicable,MONEY CLAIM.GOV,Court Costs,Revenue,160834,521,01/07/2016,105.00,Nil,GOVERNMENT SERVICES-NOT ELSEWHERE CLASSIFIED,GPC,Not Yet Available
Wakefield MDC,E08000036,30/06/2016,BUSINESS,Z,BVACOP Not Applicable,MONEY CLAIM.GOV,Court Costs,Revenue,160811,140,08/04/2016,70.00,Nil,GOVERNMENT SERVICES-NOT ELSEWHERE CLASSIFIED,GPC,Not Yet Available
Wakefield MDC,E08000036,30/06/2016,BUSINESS,A,Net (Surplus) / Deficit of Trading Operations,MONEY CLAIM.GOV,Court Costs,Revenue,160811,626,08/04/2016,60.00,Nil,GOVERNMENT SERVICES-NOT ELSEWHERE CLASSIFIED,GPC,Not Yet Available
Wakefield MDC,E08000036,30/06/2016,BUSINESS,N,Planning Services,MONEY CLAIM.GOV,Court Costs,Revenue,160819,626,13/05/2016,70.00,Nil,GOVERNMENT SERVICES-NOT ELSEWHERE CLASSIFIED,GPC,Not Yet Available
Wakefield MDC,E08000036,30/06/2016,BUSINESS,A,Net (Surplus) / Deficit of Trading Operations,MONEY CLAIM.GOV,Court Costs,Revenue,160811,650,08/04/2016,70.00,Nil,GOVERNMENT SERVICES-NOT ELSEWHERE CLASSIFIED,GPC,Not Yet Available
Wakefield MDC,E08000036,30/06/2016,BUSINESS,#N/A,#N/A,MONEY CLAIM.GOV,Court Costs,Revenue,160827,540,08/06/2016,105.00,Nil,GOVERNMENT SERVICES-NOT ELSEWHERE CLASSIFIED,GPC,Not Yet Available
Wakefield MDC,E08000036,30/06/2016,CHILDYOU,4,Children�s and Education Services,MONEY CLAIM.GOV,Court Costs,Revenue,160827,510,08/06/2016,70.00,Nil,GOVERNMENT SERVICES-NOT ELSEWHERE CLASSIFIED,GPC,Not Yet Available
Wakefield MDC,E08000036,30/06/2016,CHILDYOU,4,Children�s and Education Services,MONEY CLAIM.GOV,Court Costs,Revenue,160830,391,17/06/2016,-70.00,Nil,GOVERNMENT SERVICES-NOT ELSEWHERE CLASSIFIED,GPC,Not Yet Available
Wakefield MDC,E08000036,30/06/2016,CHILDYOU,4,Children�s and Education Services,MONEY CLAIM.GOV,Court Costs,Revenue,160831,206,21/06/2016,70.00,Nil,GOVERNMENT SERVICES-NOT ELSEWHERE CLASSIFIED,GPC,Not Yet Available
Wakefield MDC,E08000036,30/06/2016,CHILDYOU,4,Children�s and Education Services,MONEY CLAIM.GOV,Court Costs,Revenue,160811,620,08/04/2016,25.00,Nil,GOVERNMENT SERVICES-NOT ELSEWHERE CLASSIFIED,GPC,Not Yet Available
Wakefield MDC,E08000036,30/06/2016,REGENCULT,N,Planning Services,MONEY CLAIM.GOV,Court Costs,Revenue,160811,623,08/04/2016,25.00,Nil,GOVERNMENT SERVICES-NOT ELSEWHERE CLASSIFIED,GPC,Not Yet Available
Wakefield MDC,E08000036,30/06/2016,REGENCULT,5,Highways & Transport Services,MONEY CLAIM.GOV,Court Costs,Revenue,160827,539,08/06/2016,25.00,Nil,GOVERNMENT SERVICES-NOT ELSEWHERE CLASSIFIED,GPC,Not Yet Available
Wakefield MDC,E08000036,30/06/2016,REGENCULT,L,Cultural and Related Services,MONEY CLAIM.GOV,Court Costs,Revenue,160827,538,08/06/2016,35.00,Nil,GOVERNMENT SERVICES-NOT ELSEWHERE CLASSIFIED,GPC,Not Yet Available
Wakefield MDC,E08000036,30/06/2016,REGENCULT,L,Cultural and Related Services,MONEY CLAIM.GOV,Court Costs,Revenue,160811,627,08/04/2016,35.00,Nil,GOVERNMENT SERVICES-NOT ELSEWHERE CLASSIFIED,GPC,Not Yet Available
Wakefield MDC,E08000036,30/06/2016,REGENCULT,N,Planning Services,MONEY CLAIM.GOV,Court Costs,Revenue,160827,508,08/06/2016,70.00,Nil,GOVERNMENT SERVICES-NOT ELSEWHERE CLASSIFIED,GPC,Not Yet Available
Wakefield MDC,E08000036,30/06/2016,REGENCULT,N,Planning Services,MONEY CLAIM.GOV,Court Costs,Revenue,160834,575,01/07/2016,70.00,Nil,GOVERNMENT SERVICES-NOT ELSEWHERE CLASSIFIED,GPC,Not Yet Available
Wakefield MDC,E08000036,30/06/2016,REGENCULT,M,Environmental and Regulatory Services,WAKEFIELD CIVIL JUSTICE,Court Costs,Revenue,160811,606,08/04/2016,100.00,Nil,FINES,GPC,Not Yet Available
